{"text_format":"1","workbook":"xlsx","n_sheets":49,"sheets":["TitlePage","General Notes","Chemical Notes","Revisions","Contents","A01","A02","A03","B01","B02","B03a","B03b","B04a","B04b","D05","D06","D07","D08a","D08b","D09a","D09b","D09c","D09d","D11","E03","E04","F02a","F02b","F02c","F02d","F02e","F02f","F03a","F03b","F03c","F09a","F09b","F09c","F12a","F12b","F12c","F12d","F12e","F12f","G01","G02","G03","References","PlntRunoV5"],"not_rendered":{"charts":15,"images":8,"macros":1,"external_links":1,"defined_names":443,"comments":0,"pivot_tables":0},"unopened":[],"bounds":{"document_bytes":16777216,"sheet_cells":100000,"rows_first":2000,"rows_last":500,"rows_between":2000,"halvings":0,"cell_chars":16384,"cell_head_chars":4096},"cells_cut":0,"cells_raw":0,"read":"whole","date_system":"1900"}

{"sheet":"TitlePage","index":0,"n_rows":52,"n_cols":6,"rows_kept":52,"cut":false,"hidden":false,"merged":[[0,1,4,7],[5,2,7,6],[50,0,50,8],[51,0,51,8]]}
["Title page","This is a custom workbook that is not produced by WorksheetMaker.  See Chemical Notes for details.\nCorrected July, 2016.  See Revisions worksheet."]
[]
[]
[]
[]
[null,null,"3,5,6-Trichloro-2-pyridinol (TCP) from Emergent Aqautic Applications of Triclopyr"]
[]
[]
[]
[]
[]
[]
[]
[]
[]
[]
[null,null,null,null,"Worksheet Version ","6.00.01"]
[]
[]
[]
[]
[]
[]
[]
[]
[]
[]
[]
[]
[]
[]
[]
[]
[]
[]
[]
[]
[]
[]
[]
[]
[]
[]
[]
[]
[]
[]
[]
[]
[]
["2011-02-20"]
["July 10, 2016 (Major corrections)"]

{"sheet":"General Notes","index":1,"n_rows":59,"n_cols":3,"rows_kept":59,"cut":false,"hidden":false,"merged":[[0,0,0,2]]}
["General Notes"]
[null,"Prepared by:","Patrick R Durkin"]
[null,"Program Version:","6.00.01"]
[null,"Database Used:","FS WsMkr V5-01a.mdb"]
[null,"Template Workbook:","FS WsMkr V5-01a.mdb"]
[null,"Base Workbook:","FS WSMkr Blank V05-01a.xlsm"]
[]
["Color Codes in WorksheetMaker Version 5"]
[]
[]
[]
[]
["Color Codes used in Workbook for Front Matter, Data and Calculation Worksheets"]
[null,"Green shading ","This is a default value or a user specified a value.  You can change these values as you see fit but you should have a reason for doing so."]
[null,"Yellow shading ","This is a source for a link in other parts of the workbook.  If you have good reason to change the value, you should note the change (with your reason) in the “Revisions” page."]
[null,"Blue shading ","This cell is linked to another cell in the workbook.  Do not change this value.  If you change any of these values, the workbook may not update correctly."]
[null,"Blue shading blue border ","This cell is linked to a Program parameter in Worksheet A01.  Do not change this value.  If you want the value to change, go to Worksheet A01 and change the value in that worksheet."]
[null,"Purple Shading","Indicates (for information only) that the typical of order of Lower and Upper values is intentionally reversed.  This is only used in the second (label) column."]
[null,"Italics, no shading","The value in this cell is generated by a formula (the number that you see is the result of an equation).  This cell is linked only to other cells in the worksheet.  Do not change this value."]
[]
[]
[]
[]
[]
["Color Codes used in Workbook for Risk Characterization Worksheets"]
[null,"HQ ≥ 2","For hazard quotient greater than 2, the number is in bold font with a red background and rounded to the nearest integer."]
[null,"HQ > 1 but < 2","For hazard quotient greater than 1 but less than two, the number is in bold font with a white background and rounded to one significant place after the decimal."]
[null,"HQ ≥ 0.1 but <1","For hazard quotient greater than 0.1 but less than one, the number is in regular font with a white background and rounded to one significant place after the decimal."]
[null,"HQ < 0.1","For hazard quotient less than 0.1, the number is in regular font with a white background.   The number is expressed in scientific notation and rounded to one significant place -- e.g., 2E-02 rather than 0.02."]
[]
[]
[]
[]
[]
[]
[]
[]
[]
[]
[]
[]
[]
[]
[]
[]
[]
[]
[]
[]
[]
[]
[]
[]
[]
[null,"Prepared by:","Patrick R Durkin"]
[null,"Program Version:","6.00.01"]
[null,"Database Used:","FS WsMkr V5-01a.mdb"]
[null,"Template Workbook:","FS WsMkr V5-01a.mdb"]
[null,"Base Workbook:","FS WSMkr Blank V05-01a.xlsm"]

{"sheet":"Chemical Notes","index":2,"n_rows":6,"n_cols":4,"rows_kept":6,"cut":false,"hidden":false,"merged":[[0,0,0,2],[1,0,1,2],[1,3,1,5],[2,0,2,2]]}
["Chemical specific notes"]
["Risk Assessment:",null,null,"SERA TR-052-25-03c"]
["Report Date:",null,null,"May 24, 2011 with corrections to July 2016."]
[]
[]
["The area below is an embedded MS Word Document.  Add chemical-specific notes as appropriate."]

{"sheet":"Revisions","index":3,"n_rows":8,"n_cols":1,"rows_kept":8,"cut":false,"hidden":false,"merged":[]}
["Revision Histroy"]
[]
[]
[]
[]
[]
[]
["The area below is an embedded MS Word Document.  Add revision notes as appropriate."]

{"sheet":"Contents","index":4,"n_rows":50,"n_cols":3,"rows_kept":50,"cut":false,"hidden":false,"merged":[]}
[null,"Table of Contents","Toc"]
["Work-sheet No.","Worksheet Title"]
["TitlePage","Title page"]
["General Notes","General Notes"]
["Chemical Notes","Chemical specific notes"]
["Revisions","Revision Histroy"]
["Contents"]
["A01","Program Data: Application rates, application volumns, and concentrations in field solutions"]
["A02","General reference values and exposure factors used in worksheets."]
["A03","Consumption values used in worksheets"]
["B01","Chemical and Physical Properties for  TCP-Triclop"]
["B02","Toxicity values for  TCP-Triclop"]
["B03a","Calculation of Zero-Order Dermal Permeability Rate (Kp) in cm/hour"]
["B03b","Calculation of First-Order Dermal Absorption Rate"]
["B04a","Estimates of Water Contamination Rates -- i.e., the concentration in ambient water per pound applied per acre"]
["B04b","Pond: Concentration of pesticide (liquid formulation) in pond water after an accidental spill"]
["D05","Acute exposure of Child after an accidental spill of the pesticide into a pond"]
["D06","Consumption of contaminated water, Child, acute exposure"]
["D07","Consumption of contaminated water, Child, chronic exposure"]
["D08a","Acute scenario for the consumption of contaminated fish by Adult Male after an accidental spill of the pesticide into a pond"]
["D08b","Acute scenario for the consumption of contaminated fish by Subsistence Populations after an accidental spill of the pesticide into a pond"]
["D09a","Consumption of contaminated fish, Adult Male, chronic exposure"]
["D09b","Consumption of contaminated fish, Subsistence Populations, chronic exposure"]
["D09c","Consumption of contaminated fish, Adult Male, acute exposure"]
["D09d","Consumption of contaminated fish, Subsistence Populations, acute exposure"]
["D11","Swimming Exposure Assessment Using Zero-Order Absorption, Adult Female, Surface Area, Whole body, for 60 minute(s)"]
["E03","Worksheet E03: Summary of Exposure Assessments for the General Public"]
["E04","Worksheet E03: Summary of Hazard Quotients (Toxicity) for the General Public"]
["F02a","Acute exposure of Small Mammal after an accidental spill of the pesticide into a pond"]
["F02b","Acute exposure of 400 gram mammal (e.g., squirrel) after an accidental spill of the pesticide into a pond"]
["F02c","Acute exposure of Carnivorous mammal after an accidental spill of the pesticide into a pond"]
["F02d","Acute exposure of Large Mammal after an accidental spill of the pesticide into a pond"]
["F02e","Acute exposure of Small Bird after an accidental spill of the pesticide into a pond"]
["F02f","Acute exposure of Large Bird after an accidental spill of the pesticide into a pond"]
["F03a","Acute scenario for the consumption of contaminated Fish by Large Carnivorous Mammal after an accidental spill of the pesticide into a pond"]
["F03b","Acute scenario for the consumption of contaminated Fish by Carnivorous mammal after an accidental spill of the pesticide into a pond"]
["F03c","Acute scenario for the consumption of contaminated Fish by Bird (piscivorous) after an accidental spill of the pesticide into a pond"]
["F09a"," acute scenario for the consumption of contaminated Fish by Large Carnivorous Mammal after an accidental spill of the pesticide into a pond"]
["F09b"," acute scenario for the consumption of contaminated Fish by Carnivorous mammal after an accidental spill of the pesticide into a pond"]
["F09c"," acute scenario for the consumption of contaminated Fish by Bird (piscivorous) after an accidental spill of the pesticide into a pond"]
["F12a","Consumption of contaminated water, Small Mammal, chronic exposure"]
["F12b","Consumption of contaminated water, 400 gram mammal (e.g., squirrel), chronic exposure"]
["F12c","Consumption of contaminated water, Carnivorous mammal, chronic exposure"]
["F12d","Consumption of contaminated water, Large Mammal, chronic exposure"]
["F12e","Consumption of contaminated water, Small Bird, chronic exposure"]
["F12f","Consumption of contaminated water, Large Bird, chronic exposure"]
["G01","Summary of Exposure Assessments for the Terrestrial Animals"]
["G02","Summary of Hazard Quotients (Toxicity) for the Terrestrial Animals"]
["G03","Worksheet G03: Summary of Hazard Quotients for Aquatic Species"]
["References","References cited in workbook"]

{"sheet":"A01","index":5,"n_rows":77,"n_cols":5,"rows_kept":77,"cut":false,"hidden":false,"merged":[[57,0,60,0],[61,0,64,0],[65,0,68,0],[69,0,72,0],[73,0,76,0],[53,0,56,0],[0,0,0,4],[3,0,6,0],[7,0,10,0],[12,0,15,0],[16,0,18,0],[29,0,32,0],[33,0,36,0],[37,0,40,0],[41,0,44,0],[45,0,48,0],[49,0,52,0]]}
["Program Data: Application rates, application volumns, and concentrations in field solutions"]
["Parameter/Assumption","Code / Range","Equation/ Value","Units","Reference/ Equation"]
["Application Rate","ApRt",2,"lb/acre","Program Input"]
["Application Volume","ApVol"]
[null,"Central ",25,"gal/acre","Program Input"]
[null,"Upper ",40,null,"Program Input"]
[null,"Lower ",5,null,"Program Input"]
["Concentration in field solution (lb/gal)","Concppg","ApRt (lb/acre) / ApVol (gal/acre)",null,"Note 1"]
[null,"Central ",{"$f":"IF(C5>0, C$3/C5, \"N/A\")","v":0.08},"lb/gal","Eq"]
[null,"Lower ",{"$f":"IF(C6>0, C$3/C6, \"N/A\")","v":0.05},null,"Eq"]
[null,"Upper ",{"$f":"IF(C7>0, C$3/C7, \"N/A\")","v":0.4},null,"Eq"]
["Conversion Factor for lbs/gal to mg/mL","CnvF",119.8,"mg/mL per lb/gal"]
["Concentration in field solution (mg/mL)","FldConc","Concppg * CnvF",null,"Note 2"]
[null,"Central ",{"$f":"IF(C5>0, DigitRound( C9*C$12, C$17), \"NA\")","v":9.6},"mg/mL","Eq"]
[null,"Lower ",{"$f":"IF(C6>0, DigitRound( C10*C$12, C$17), \"NA\")","v":6},null,"Eq"]
[null,"Upper ",{"$f":"IF(C7>0, DigitRound( C11*C$12, C$17), \"NA\")","v":48},null,"Eq"]
["Number of significant figures  used for FldConc.","NSig",2]
[]
[]
["Number of Applications","nApps",1,"Unitless","Program Input"]
["Application Interval","ApIntv",1,"Days","Program Input"]
["Standard Values/Options for Scenarios"]
["Surface area of pond for spill","PondSA_M",1000,"Sq. Meters","Risk assessment."]
["Pond depth","PondDepthM",1,"Meters","Risk assessment."]
["Stream flow rate for drift scenario","StreamFlowLD",710000,"Liters/day","Risk assessment."]
["Stream length for drift scenario","StreamLengthFt",1038,"Feet","Risk assessment."]
["Stream width for drift scenario","StreamWidthFt",6,"Feet","Risk assessment."]
["Duration for longer-term exposures","SubChDays",90,"Days","Risk assessment."]
["Duration for swimming scenarios","SwimMin",60,"Minutes","Risk assessment."]
["Protection factor for workers based on PPE.","WrkProtectFact"]
[null,"Central",0,null,"Risk assessment."]
[null,"Lower",0]
[null,"Upper",0]
["Toxic Equivalency Factor for formulation","TEF"]
[null,"Central",1,null,"Risk assessment."]
[null,"Lower",1]
[null,"Upper",1]
["Used in food commody worksheets","DriftToFood"]
[null,"Central",1,null,"Risk assessment."]
[null,"Lower",1]
[null,"Upper",1]
["Amount spilled into ponds","PondSpillVolGal"]
[null,"Central",100,"Gal","Risk assessment."]
[null,"Lower",20]
[null,"Upper",200]
["Dislodgeable residue, as a proportion of the application rate.","DislogRes"]
[null,"Central",0.1,null,"Risk assessment."]
[null,"Lower",0.1]
[null,"Upper",0.1]
["Residue rates for short grass","VegRRSGT"]
[null,"Central",85,"ppm per lb/ac","Risk assessment."]
[null,"Lower",30]
[null,"Upper",240]
["Residue rates for long grass","VegRRTGT"]
[null,"Central",36,"ppm per lb/ac","Risk assessment."]
[null,"Lower",12]
[null,"Upper",110]
["Residue rates for broadleaf/forage plants and small insects","VegRRBLT"]
[null,"Central",45,"ppm per lb/ac","Risk assessment."]
[null,"Lower",15]
[null,"Upper",135]
["Residue rates for fruit","VegRRFRT"]
[null,"Central",7,"ppm per lb/ac","Risk assessment."]
[null,"Lower",3.2]
[null,"Upper",15]
["Worker Exposure Rate","WrkExpRate"]
[null,"Central",3.0000000000000001E-3,"Mg/kg bw per lb","Risk assessment."]
[null,"Lower",2.9999999999999997E-4]
[null,"Upper",0.01]
["Number of acres that the worker will treat per hour.","WrkAcPerHr"]
[null,"Central",0.625,"Acres/hr","Risk assessment."]
[null,"Lower",0.25]
[null,"Upper",1]
["Number of hours of worker exposure per day.","WrkHsPerDy"]
[null,"Central",7,"Hrs/day","Risk assessment."]
[null,"Lower",6]
[null,"Upper",8]

{"sheet":"A02","index":6,"n_rows":159,"n_cols":6,"rows_kept":159,"cut":false,"hidden":false,"merged":[[0,0,0,4]]}
["General reference values and exposure factors used in worksheets."]
["Receptor","Factor","Value","Units"," Reference","Reference Note"]
["Adult Female","Body weight",64,"kg","U.S. EPA/ORD 1985","page 5, Table 2-2"]
["Adult Female","Surface Area, Feet and lower Legs",2915,"cm2","U.S. EPA/ORD 1992","p. 8-11, Table 8-3, total for feet and lower legs"]
["Adult Female","Surface Area, Wearing shorts and T-shirt",5300,"cm2","U.S. EPA/ORD 1992","p. 8-11, Table 8-3, total for arms, hands, lower legs, and feet."]
["Adult Female","Surface Area, Whole body",16900,"cm2","U.S. EPA/ORD 1997","p. 6-13, Table 6-3, whole body, 50th percentile"]
["Adult Male","Body weight",70,"kg","ICRP 1975","p. 13."]
["Subsistence Populations","Body weight",70,"kg","ICRP 1975","p. 13"]
["Amphibian","Kilocalories, alpha parameter for allometric equation",5.3999999999999999E-2,"BW(g),Kcal (kcal/day)","U.S. EPA/ORD 1993","p. 3-7, equation 3-14"]
["Amphibian","Kilocalories, beta parameter for allometric equation",0.79900000000000004,"BW(g),Kcal (kcal/day)","U.S. EPA/ORD 1993","p. 3-7, equation 3-14"]
["AmphBullFrog","Food consumption, alpha parameter for allometric equation",1.0900000000000001,"BW(g),FC(g)","SERA 2010","Figure 15"]
["AmphBullFrog","Food consumption, beta parameter for allometric equation",0.17230000000000001,"BW(g),FC(g)","SERA 2010","Figure 15"]
["Aerial Spray Worker","Absorbed dose rate, central estimate",3.0000000000000001E-5,"(mg/kg bw)/(lbs handled per day)","SERA 2007","Acres treated per hour"]
["Aerial Spray Worker","Absorbed dose rate, lower range",9.9999999999999995E-7,"(mg/kg bw)/(lbs handled per day)","SERA 2007","Acres treated per hour"]
["Aerial Spray Worker","Absorbed dose rate, upper range",1E-4,"(mg/kg bw)/(lbs handled per day)","SERA 2007","Acres treated per hour"]
["Aerial Spray Worker","Hours of application per day, central estimate",7,"Hours per day","USDA 1989a","N/A"]
["Aerial Spray Worker","Hours of application per day, lower range",6,"Hours per day","USDA 1989a","N/A"]
["Aerial Spray Worker","Hours of application per day, upper range",8,"Hours per day","USDA 1989a","N/A"]
["Aerial Spray Worker","Acres treated per hour, central estimate",70,"acres/hour","USDA 1989a","Acres treated per hour"]
["Aerial Spray Worker","Acres treated per hour, lower range",40,"acres/hour","USDA 1989a","Acres treated per hour"]
["Aerial Spray Worker","Acres treated per hour, upper range",100,"acres/hour","USDA 1989a","Acres treated per hour"]
["Backpack Worker","Absorbed dose rate, central estimate",3.0000000000000001E-3,"(mg/kg bw)/(lbs handled per day)","SERA 2007","Acres treated per hour"]
["Backpack Worker","Absorbed dose rate, lower range",2.9999999999999997E-4,"(mg/kg bw)/(lbs handled per day)","SERA 2007","Acres treated per hour"]
["Backpack Worker","Absorbed dose rate, upper range",0.01,"(mg/kg bw)/(lbs handled per day)","SERA 2007","Acres treated per hour"]
["Backpack Worker","Hours of application per day, central estimate",7,"Hours per day","USDA 1989a","N/A"]
["Backpack Worker","Hours of application per day, lower range",6,"Hours per day","USDA 1989a","N/A"]
["Backpack Worker","Hours of application per day, upper range",8,"Hours per day","USDA 1989a","N/A"]
["Backpack Worker","Acres treated per hour, central estimate",0.625,"acres/hour","USDA 1989a","Acres treated per hour"]
["Backpack Worker","Acres treated per hour, lower range",0.25,"acres/hour","USDA 1989a","Acres treated per hour"]
["Backpack Worker","Acres treated per hour, upper range",1,"acres/hour","USDA 1989a","Acres treated per hour"]
["Birds","Food consumption, alpha parameter for allometric equation",0.64800000000000002,"BW(g),FC(g)","U.S. EPA/ORD 1993","Eq. 3-3, p. 3-4, all birds"]
["Birds","Food consumption, beta parameter for allometric equation",0.65100000000000002,"BW(g),FC(g)","U.S. EPA/ORD 1993","Eq. 3-3, p. 3-4, all birds"]
["Carnivorous bird","Body weight",0.64,"kg","Dunning 1993","p. 97. Female Spotted Owl (Strix occidentalis).  Range of 548 to 760 g."]
["Carnivorous bird","Kilocalories, alpha parameter for allometric equation",1.1459999999999999,"BW(g),KCal(kcal/day)","U.S. EPA/ORD 1993","Eq. 3-37, nonpasserines"]
["Carnivorous bird","Kilocalories, beta parameter for allometric equation",0.749,"BW(g),KCal(kcal/day)","U.S. EPA/ORD 1993","Eq. 3-37, nonpasserines"]
["Carnivorous bird","Water consumption, alpha parameter for allometric equation",5.8999999999999997E-2,"BW(kg), WC(L)","U.S. EPA/ORD 1993","Eq. 3-15, p. 3-8"]
["Carnivorous bird","Water consumption, beta parameter for allometric equation",0.67,"BW(kg), WC(L)","U.S. EPA/ORD 1993","Eq. 3-15, p. 3-8"]
["Large Bird","Body weight",4,"kg","Default","Canada goose"]
["Large Bird","Kilocalories, alpha parameter for allometric equation",1.1459999999999999,"BW(g),KCal(kcal/day)","U.S. EPA/ORD 1993","Eq. 3-37, non-passerines"]
["Large Bird","Kilocalories, beta parameter for allometric equation",0.749,"BW(g),KCal(kcal/day)","U.S. EPA/ORD 1993","Eq. 3-37, non-passerines"]
["Large Bird","Water consumption, alpha parameter for allometric equation",5.8999999999999997E-2,"BW(kg), WC(L)","U.S. EPA/ORD 1993","Eq. 3-15, p. 3-8"]
["Large Bird","Water consumption, beta parameter for allometric equation",0.67,"BW(kg), WC(L)","U.S. EPA/ORD 1993","Eq. 3-15, p. 3-8"]
["Bird, non-Passerine","Food consumption, alpha parameter for allometric equation",0.30099999999999999,"BW(g),FC(g)","U.S. EPA/ORD 1993","Eq. 3-5, p. 3-5, non-passerines"]
["Bird, non-Passerine","Food consumption, beta parameter for allometric equation",0.751,"BW(g),FC(g)","U.S. EPA/ORD 1993","Eq. 3-5, p. 3-5, non-passerines"]
["Bird, Passerine","Food consumption, alpha parameter for allometric equation",0.39800000000000002,"BW(g),FC(g)","U.S. EPA/ORD 1993","Eq. 3-4, p. 3-4, passerines"]
["Bird, Passerine","Food consumption, beta parameter for allometric equation",0.85,"BW(g),FC(g)","U.S. EPA/ORD 1993","Eq. 3-4, p. 3-4, passerines"]
["Bird (piscivorous)","Body weight",2.4,"kg","Sibley 2000","p. 60. Great Blue Heron"]
["Bird (piscivorous)","Food consumption, alpha parameter for allometric equation",0.495,"BW(g), FC(g)","U.S. EPA/ORD 1993","Eq. 3-6, p. 3-5, seabird"]
["Bird (piscivorous)","Food consumption, beta parameter for allometric equation",0.70399999999999996,"BW(g), FC(g)","U.S. EPA/ORD 1993","Eq. 3-6, p. 3-5, seabird"]
["Bird (piscivorous)","Kilocalories, alpha parameter for allometric equation",1.9159999999999999,"BW(g),KCal(kcal/day)","U.S. EPA/ORD 1993","Eq. 3-38, p. 3-23, seabird"]
["Bird (piscivorous)","Kilocalories, beta parameter for allometric equation",0.70399999999999996,"BW(g),KCal(kcal/day)","U.S. EPA/ORD 1993","Eq. 3-38, p. 3-23, seabird"]
["Bird (piscivorous)","Water consumption, alpha parameter for allometric equation",5.8999999999999997E-2,"BW(kg), WC(L)","U.S. EPA/ORD 1993","Eq. 3-15, p. 3-8"]
["Bird (piscivorous)","Water consumption, beta parameter for allometric equation",0.67,"BW(kg), WC(L)","U.S. EPA/ORD 1993","Eq. 3-15, p. 3-8"]
["Small Bird","Body weight",0.01,"kg","Default","N/A"]
["Small Bird","Kilocalories, alpha parameter for allometric equation",3.12,"BW(g),KCal(kcal/day)","U.S. EPA/ORD 1993","Equation 3-36, passerines"]
["Small Bird","Kilocalories, beta parameter for allometric equation",0.60499999999999998,"BW(g),KCal(kcal/day)","U.S. EPA/ORD 1993","Equation 3-36, passerines"]
["Small Bird","Water consumption, alpha parameter for allometric equation",5.8999999999999997E-2,"BW(kg), WC(L)","U.S. EPA/ORD 1993","Eq. 3-15, p. 3-8"]
["Small Bird","Water consumption, beta parameter for allometric equation",0.67,"BW(kg), WC(L)","U.S. EPA/ORD 1993","Eq. 3-15, p. 3-8"]
["Child","Body weight",13.3,"kg","U.S. EPA/ORD 1996","p. 7-1, Table 7-2"]
["Child","Surface Area, Whole body",6030,"cm2","U.S. EPA/ORD 1996","p. 6-15, Table 6-6, 50th percentile."]
["Conversion Factors","acrefoot2gal",325900,"gal/acre-foot","Budavari  1989","N/A"]
["Conversion Factors","liters per gal",3.7850000000000001,"L/gal","Budavari  1989","N/A"]
["Conversion Factors","pound per milligram",453600,"mg/lb","Budavari  1989","N/A"]
["Conversion Factors","lbac2mgcm2",1.1209999999999999E-2,"mg/cm2 per lb/acre","Budavari  1989","N/A"]
["Conversion Factors","lbac2ugcm2",11.21,"ug/cm2 per lb/acre","Budavari  1989","N/A"]
["Conversion Factors","conversion for milligrams to pounds",2.204E-6,"lb/mg","Budavari  1989","N/A"]
["Conversion Factors","conversion for milliliters to gallons",3785,"ml/gal","Budavari  1989","N/A"]
["Small Insects","Caloric content (wet weight)",1.5,"kcal/g (wet weight)","U.S. EPA/ORD 1993","Table 4-1, p. 4-13.  Value for beetles. Wet weight"]
["Fish","Caloric content (wet weight)",1.2,"kcal/g (wet weight)","U.S. EPA/ORD 1993","Table 4-1, p. 4-13.  Value for bony fish. Wet weight"]
["Vegetation","Caloric content (dry weight)",2.2599999999999998,"kcal/g","U.S. EPA/ORD 1993","p. 3-5, Table 3-1"]
["Vegetation","Water content (proportion)",0.85,"unitless","U.S. EPA/ORD 1993","p. 4-14"]
["Ground Spray Worker","Absorbed dose rate, central estimate",2.0000000000000001E-4,"(mg/kg bw)/(lbs handled per day)","SERA 2007","Acres treated per hour"]
["Ground Spray Worker","Absorbed dose rate, lower range",1.0000000000000001E-5,"(mg/kg bw)/(lbs handled per day)","SERA 2007","Acres treated per hour"]
["Ground Spray Worker","Absorbed dose rate, upper range",8.9999999999999998E-4,"(mg/kg bw)/(lbs handled per day)","SERA 2007","Acres treated per hour"]
["Ground Spray Worker","Hours of application per day, central estimate",7,"Hours per day","USDA 1989a","N/A"]
["Ground Spray Worker","Hours of application per day, lower range",6,"Hours per day","USDA 1989a","N/A"]
["Ground Spray Worker","Hours of application per day, upper range",8,"Hours per day","USDA 1989a","N/A"]
["Ground Spray Worker","Acres treated per hour, central estimate",16,"acres/hour","USDA 1989a","Acres treated per hour"]
["Ground Spray Worker","Acres treated per hour, lower range",11,"acres/hour","USDA 1989a","Acres treated per hour"]
["Ground Spray Worker","Acres treated per hour, upper range",21,"acres/hour","USDA 1989a","Acres treated per hour"]
["Honeybee","Body weight",1.16E-4,"kg","Winston 1987","p. 54. Arithmetic average of range: 81 to 151 mg/bee."]
["Honeybee","Surface Area, Whole body",1.42,"cm2","Humphery and Dykes 2008","Based on a bee with a body length of 1.44 cm."]
["Mammals","Food consumption, alpha parameter for allometric equation",0.23499999999999999,"BW(g),FC(g)","U.S. EPA/ORD 1993","Eq. 3-7 ,p. 3-6, all mammals"]
["Mammals","Food consumption, beta parameter for allometric equation",0.82199999999999995,"BW(g),FC(g)","U.S. EPA/ORD 1993","Eq. 3-7 ,p. 3-6, all mammals"]
["400 gram mammal (e.g., squirrel)","Body weight",0.4,"kg","Default","N/A"]
["400 gram mammal (e.g., squirrel)","Food consumption, alpha parameter for allometric equation",0.621,"BW(g),FC(g)","U.S. EPA/ORD 1993","Eq. 3-8, p. 3-6, equation for rodents"]
["400 gram mammal (e.g., squirrel)","Food consumption, beta parameter for allometric equation",0.56399999999999995,"BW(g),FC(g)","U.S. EPA/ORD 1993","Eq. 3-8, p. 3-6, equation for rodents"]
["400 gram mammal (e.g., squirrel)","Kilocalories, alpha parameter for allometric equation",2.5139999999999998,"BW(g),KCal(kcal/day)","U.S. EPA/ORD 1993","Equation 3-48, rodent"]
["400 gram mammal (e.g., squirrel)","Kilocalories, beta parameter for allometric equation",0.50700000000000001,"BW(g),KCal(kcal/day)","U.S. EPA/ORD 1993","Equation 3-48, rodent"]
["400 gram mammal (e.g., squirrel)","Water consumption, alpha parameter for allometric equation",9.9000000000000005E-2,"BW(kg),WC(L)","U.S. EPA/ORD 1993","Eq. 3-17, p. 3-10, all mammals"]
["400 gram mammal (e.g., squirrel)","Water consumption, beta parameter for allometric equation",0.9,"BW(kg),WC(L)","U.S. EPA/ORD 1993","Eq. 3-17, p. 3-10, all mammals"]
["Carnivorous mammal","Body weight",5,"kg","U.S. EPA/ORD 1993","p. 2-221.  Central value for red fox with a range of 3 to 7 kg."]
["Carnivorous mammal","Kilocalories, alpha parameter for allometric equation",0.61670000000000003,"BW(g),KCal(kcal/day)","U.S. EPA/ORD 1993","Equation 3-47, non-herbivore"]
["Carnivorous mammal","Kilocalories, beta parameter for allometric equation",0.86199999999999999,"BW(g),KCal(kcal/day)","U.S. EPA/ORD 1993","Equation 3-47, non-herbivore"]
["Carnivorous mammal","Water consumption, alpha parameter for allometric equation",9.9000000000000005E-2,"BW(kg),WC(L)","U.S. EPA/ORD 1993","Eq. 3-17, p. 3-10, all mammals"]
["Carnivorous mammal","Water consumption, beta parameter for allometric equation",0.9,"BW(kg), WC(L)","U.S. EPA/ORD 1993","Eq. 3-17, p. 3-10, all mammals"]
["Large Carnivorous Mammal","Body weight",70,"kg","Reid 2006"," pp. 451-453.  Black bear or small grizzly."]
["Large Carnivorous Mammal","Kilocalories, alpha parameter for allometric equation",0.61670000000000003,"BW(g),KCal(kcal/day)","U.S. EPA/ORD 1993","Equation 3-47, non-herbivore"]
["Large Carnivorous Mammal","Kilocalories, beta parameter for allometric equation",0.86199999999999999,"BW(g),KCal(kcal/day)","U.S. EPA/ORD 1993","Equation 3-47, non-herbivore"]
["Large Carnivorous Mammal","Water consumption, alpha parameter for allometric equation",9.9000000000000005E-2,"BW(kg),WC(L)","U.S. EPA/ORD 1993","Eq. 3-17, p. 3-10, all mammals"]
["Large Carnivorous Mammal","Water consumption, beta parameter for allometric equation",0.9,"BW(kg), WC(L)","U.S. EPA/ORD 1993","Eq. 3-17, p. 3-10, all mammals"]
["Herbivorous/Omnivorous mammal","Food consumption, alpha parameter for allometric equation",0.57699999999999996,"BW(g),FC(g)","U.S. EPA/ORD 1993","Eq. 3-9, p. 3-6, equation for herbivores"]
["Herbivorous/Omnivorous mammal","Food consumption, beta parameter for allometric equation",0.72699999999999998,"BW(g),FC(g)","U.S. EPA/ORD 1993","Eq. 3-9, p. 3-6, equation for herbivores"]
["Herbivorous/Omnivorous mammal","Kilocalories, alpha parameter for allometric equation",1.518,"BW(g),KCal(kcal/day)","U.S. EPA/ORD 1993","Equation 3-46, herbivores"]
["Herbivorous/Omnivorous mammal","Kilocalories, beta parameter for allometric equation",0.73,"BW(g),KCal(kcal/day)","U.S. EPA/ORD 1993","Equation 3-46, herbivores"]
["Large Mammal","Body weight",70,"kg","Default","N/A"]
["Large Mammal","Kilocalories, alpha parameter for allometric equation",1.518,"BW(g),KCal(kcal/day)","U.S. EPA/ORD 1993","p. 3-6, Eq. 3-10, herbivores"]
["Large Mammal","Kilocalories, beta parameter for allometric equation",0.73,"BW(g),KCal(kcal/day)","U.S. EPA/ORD 1993","p. 3-6, Eq. 3-10, herbivores"]
["Large Mammal","Water consumption, alpha parameter for allometric equation",9.9000000000000005E-2,"BW(kg),WC(L)","U.S. EPA/ORD 1993","Eq. 3-17, p. 3-10, all mammals"]
["Large Mammal","Water consumption, beta parameter for allometric equation",0.9,"BW(kg), WC(L)","U.S. EPA/ORD 1993","Eq. 3-17, p. 3-10, all mammals"]
["Rabbit","Body weight",1.3,"kg","Default","N/A"]
["Rabbit","Surface Area, alpha parameter for allometric equation",0.11,"BW(kg),SA(m2)","U.S. EPA/ORD 1993","p. 3-14, Eq. 3-22, for all mammals"]
["Rabbit","Surface Area, beta parameter for allometric equation",0.65,"BW(kg),SA(m2)","U.S. EPA/ORD 1993","p. 3-14, Eq. 3-22, for all mammals"]
["Rodent","Food consumption, alpha parameter for allometric equation",0.621,"BW(g),FC(g)","U.S. EPA/ORD 1993","Eq. 3-8, p. 3-6, equation for rodents"]
["Rodent","Food consumption, beta parameter for allometric equation",0.58399999999999996,"BW(g),FC(g)","U.S. EPA/ORD 1993","Eq. 3-8,p. 3-6, equation for rodents"]
["Small Mammal","Body weight",0.02,"kg","Default","N/A"]
["Small Mammal","Caloric content (wet weight)",1.7,"kcal/g  (wet weight)","U.S. EPA/ORD 1993","Table 4-1, p. 4-13. Value for small mammals. Wet weight."]
["Small Mammal","Food consumption, alpha parameter for allometric equation",0.621,"BW(g),FC(g)","U.S. EPA/ORD 1993","Eq. 3-8, p. 3-6, equation for rodents"]
["Small Mammal","Food consumption, beta parameter for allometric equation",0.56399999999999995,"BW(g),FC(g)","U.S. EPA/ORD 1993","Eq. 3-8, p. 3-6, equation for rodents"]
["Small Mammal","Kilocalories, alpha parameter for allometric equation",2.5139999999999998,"BW(g),KCal(kcal/day)","U.S. EPA/ORD 1993","Equation 3-48, rodent"]
["Small Mammal","Kilocalories, beta parameter for allometric equation",0.50700000000000001,"BW(g),KCal(kcal/day)","U.S. EPA/ORD 1993","Equation 3-48, rodent"]
["Small Mammal","Surface Area, alpha parameter for allometric equation",0.11,"BW(kg),SA(m2)","U.S. EPA/ORD 1993","p. 3-14, Eq. 3-22, for all mammals"]
["Small Mammal","Surface Area, beta parameter for allometric equation",0.65,"BW(kg),SA(m2)","U.S. EPA/ORD 1993","p. 3-14, Eq. 3-22, for all mammals"]
["Small Mammal","Water consumption, alpha parameter for allometric equation",9.9000000000000005E-2,"BW(kg),WC(L)","U.S. EPA/ORD 1993","Eq. 3-17, p. 3-10, all mammals"]
["Small Mammal","Water consumption, beta parameter for allometric equation",0.9,"BW(kg),WC(L)","U.S. EPA/ORD 1993","Eq. 3-17, p. 3-10, all mammals"]
["Misc","Liquid adhering to skin",8.0000000000000002E-3,"mL/cm2","Mason and Johnson 1987","Weight of liquid adhering to surface of skin after a spill"]
["Misc","Dislodgeable residue as proportion",0.1,"none","Harris and Solomon 1992","Estimate of dislodgeable residue as a proportion of application rate shortly after application based on 2,4-D."]
["Standard Pond","Depth",1,"m","Default","Depth of pond"]
["Standard Pond","Surface Area",1000,"m^2","Default","Surface Area"]
["Standard Pond","Volume of Spill ",200,"gallons","Default","Volume of spill"]
["VegRR","Broadleaf/forage plants and small insects, central estimate",45,"mg chem/kg veg","Fletcher et al. 1994","Broadleaf/forage plants and small insects"]
["VegRR","Broadleaf/forage plants and small insects, lower range",15,"mg chem/kg veg","SERA 2007","Broadleaf/forage plants and small insects"]
["VegRR","Broadleaf/forage plants and small insects, upper range",135,"mg chem/kg veg","Fletcher et al. 1994","Broadleaf/forage plants and small insects"]
["VegRR","Fruits, pods, seeds, and large insects, central estimate",7,"mg chem/kg veg","Fletcher et al. 1994","Fruits, pods, seeds, and large insects"]
["VegRR","Fruits, pods, seeds, and large insects, lower range",3.2,"mg chem/kg veg","SERA 2007","Fruits, pods, seeds, and large insects"]
["VegRR","Fruits, pods, seeds, and large insects, upper range",15,"mg chem/kg veg","Fletcher et al. 1994","Fruits, pods, seeds, and large insects"]
["VegRR","GranBLT, central estimate",1.8,"mg chem/kg veg","SERA 2005","Broadleaf forage plants and contaminated insects after granular application"]
["VegRR","GranBLT, lower range",0.6,"mg chem/kg veg","SERA 2007","Broadleaf/forage plants after granular application"]
["VegRR","GranBLT, upper range",5.4,"mg chem/kg veg","SERA 2005","Broadleaf forage plants and contaminated insects after granular application"]
["VegRR","GranFRT, central estimate",0.28000000000000003,"mg chem/kg veg","SERA 2005","Fruit after granular application"]
["VegRR","GranFRT, lower range",0.13,"mg chem/kg veg","SERA 2007","Fruit after granular application"]
["VegRR","GranFRT, upper range",0.6,"mg chem/kg veg","SERA 2005","Fruit after granular application"]
["VegRR","GranSGT, central estimate",3.4,"mg chem/kg veg","SERA 2005","Short grass after granular application"]
["VegRR","GranSGT, lower range",1.2,"mg chem/kg veg","SERA 2005","Short grass after granular application"]
["VegRR","GranSGT, upper range",9.6,"mg chem/kg veg","SERA 2005","Short grass after granular application"]
["VegRR","GranTGT, central estimate",1.44,"mg chem/kg veg","SERA 2005","Tall grass after granular application"]
["VegRR","GranTGT, lower range",0.48,"mg chem/kg veg","SERA 2007","Tall grass after granular application"]
["VegRR","GranTGT, upper range",4.4000000000000004,"mg chem/kg veg","SERA 2005","Tall grass after granular application"]
["VegRR","Short grass, central estimate",85,"mg chem/kg veg","Fletcher et al. 1994","Short grass"]
["VegRR","Short grass, lower range",30,"mg chem/kg veg","Fletcher et al. 1994","Short grass"]
["VegRR","Short grass, upper range",240,"mg chem/kg veg","Fletcher et al. 1994","Short grass"]
["VegRR","Tall grass, central estimate",36,"mg chem/kg veg","Fletcher et al. 1994","Tall grass"]
["VegRR","Tall grass, lower range",12,"mg chem/kg veg","SERA 2007","Tall grass"]
["VegRR","Tall grass, upper range",110,"mg chem/kg veg","Fletcher et al. 1994","Tall grass"]
["VerRR","GranSGT, lower range",1.2,"mg chem/kg veg","SERA 2007","Short grass after granular application"]
["VerRR","Short grass, lower range",30,"mg chem/kg veg","SERA 2007","Short grass"]
["Worker","Body weight",70,"kg","ICRP 1975","p. 13"]
["Worker","Surface Area, Hands",840,"cm2","U.S. EPA/ORD 1992"," p. 8-11"]
["Worker","Surface Area, Lower legs",2070,"cm2","U.S. EPA/ORD 1992","p. 8-11"]

{"sheet":"A03","index":7,"n_rows":52,"n_cols":8,"rows_kept":52,"cut":false,"hidden":false,"merged":[[0,0,0,6]]}
["Consumption values used in worksheets"]
["Receptor","Item","Qualifier","Modifier","Value","Units"," Reference","Reference Note"]
["Adult Female","Fish","Amount","central estimate",0.01,"kg/day","U.S. EPA/ORD 1996","p. 10-51, average of means from four studies rounded to one significant place."]
["Adult Female","Fish","Amount","upper range",0.158,"kg/day","Ruffle et al. 1994","N/A"]
["Adult Female","Fruit","Proportion of body weight","central estimate",1.6800000000000001E-3,"kg fruit/kg bw/day","U.S. EPA/ORD 1996","Table 9-3, p. 9-11, mean value."]
["Adult Female","Fruit","Proportion of body weight","lower range",1.6800000000000001E-3,"kg fruit/kg bw/day","U.S. EPA/ORD 1996","Table 9-3, p. 9-11. The 5th percentile is given as zero.  For these worksheets, the central estimate is used for the lower bound."]
["Adult Female","Fruit","Proportion of body weight","upper range",1.244E-2,"kg fruit/kg bw/day","U.S. EPA/ORD 1996","Table 9-3, p. 9-11, 95th percentile value."]
["Adult Female","Vegetation, home grown","Proportion of body weight","central estimate",7.6000000000000004E-4,"kg veg/kg bw/day","U.S. EPA/ORD 1996","Table 12-15, p. 9-14, mean for individuals between 20 and 39 years old."]
["Adult Female","Vegetation, home grown","Proportion of body weight","lower range",8.0000000000000007E-5,"kg veg/kg bw/day","U.S. EPA/ORD 1996","Table 12-15, p. 9-14, 5th percentile for individuals between 20 and 39 years old."]
["Adult Female","Vegetation, home grown","Proportion of body weight","upper range",4.9199999999999999E-3,"kg veg/kg bw/day","U.S. EPA/ORD 1996","Table 12-15, p. 9-14, 95th percentile for individuals between 20 and 39 years old."]
["Adult Female","Vegetation","Amount","Extreme",0.45400000000000001,"kg food","U.S. EPA/ORD 1996","1 lb.  The approximate mid range of the above typical and upper limits based on the 64 kg body weight."]
["Adult Female","Vegetation","Proportion of body weight","central estimate",3.5999999999999999E-3,"kg veg/kg bw/day","U.S. EPA/ORD 1996","Table 9-12, p. 9-12, mean."]
["Adult Female","Vegetation","Proportion of body weight","lower range",7.5000000000000002E-4,"kg veg/kg bw/day","U.S. EPA/ORD 1996","Table 9-12, p. 9-12, 5th percentile."]
["Adult Female","Vegetation","Proportion of body weight","upper range",0.01,"kg veg/kg bw/day","U.S. EPA/ORD 1996","Table 9-12, p. 9-12, 95th percentile."]
["Adult Female","Water","Amount","central estimate",2,"L/day","U.S. EPA/ORD 1996","p. 3-28, Table 3-30, midpoint of mean (1.4 L/day) and 90th percentile (2.4 L/day) rounded to one significant place."]
["Adult Female","Water","Amount","lower range",1.4,"L/day","U.S. EPA/ORD 1996","p. 3-28, Table 3-30, mean"]
["Adult Female","Water","Amount","upper range",2.4,"L/day","U.S. EPA/ORD 1996","p. 3-28, Table 3-30, 90th percentile"]
["Adult Male","Fish","Amount","central estimate",0.01,"kg/day","U.S. EPA/ORD 1996","p. 10-51, average of means from four studies rounded to one significant place."]
["Adult Male","Fish","Amount","upper range",0.158,"kg/day","Ruffle et al. 1994","N/A"]
["Adult Male","Fruit","Proportion of body weight","central estimate",1.6800000000000001E-3,"unitless","U.S. EPA/ORD 1996","Table 9-3, p. 9-11, mean value."]
["Adult Male","Fruit","Proportion of body weight","lower range",1.6800000000000001E-3,"unitless","U.S. EPA/ORD 1996","Table 9-3, p. 9-11. The 5th percentile is given as zero.  For these worksheets, the central estimate is used for the lower bound."]
["Adult Male","Fruit","Proportion of body weight","upper range",1.244E-2,"unitless","U.S. EPA/ORD 1996","Table 9-3, p. 9-11, 95th percentile value."]
["Adult Male","Vegetation, home grown","Proportion of body weight","central estimate",7.6000000000000004E-4,"unitless","U.S. EPA/ORD 1996","Table 12-15, p. 9-14, mean for individuals between 20 and 39 years old."]
["Adult Male","Vegetation, home grown","Proportion of body weight","lower range",8.0000000000000007E-5,"unitless","U.S. EPA/ORD 1996","Table 12-15, p. 9-14, 5th percentile for individuals between 20 and 39 years old."]
["Adult Male","Vegetation, home grown","Proportion of body weight","upper range",4.9199999999999999E-3,"unitless","U.S. EPA/ORD 1996","Table 12-15, p. 9-14, 95th percentile for individuals between 20 and 39 years old."]
["Adult Male","Vegetation","Amount","Extreme",0.45400000000000001,"kg/day","U.S. EPA/ORD 1996","1 lb.  The approximate mid range of the above typical and upper limits based on the 64 kg body weight."]
["Adult Male","Vegetation","Proportion of body weight","central estimate",3.5999999999999999E-3,"unitless","U.S. EPA/ORD 1996","Table 9-12, p. 9-12, mean."]
["Adult Male","Vegetation","Proportion of body weight","lower range",7.5000000000000002E-4,"unitless","U.S. EPA/ORD 1996","Table 9-12, p. 9-12, 5th percentile."]
["Adult Male","Vegetation","Proportion of body weight","upper range",0.01,"unitless","U.S. EPA/ORD 1996","Table 9-12, p. 9-12, 95th percentile."]
["Adult Male","Water","Amount","central estimate",2,"L/day","U.S. EPA/ORD 1996","p. 3-28, Table 3-30, midpoint of mean (1.4 L/day) and 90th percentile (2.4 L/day) rounded to one significant place."]
["Adult Male","Water","Amount","lower range",1.4,"L/day","U.S. EPA/ORD 1996","p. 3-28, Table 3-30, mean"]
["Adult Male","Water","Amount","upper range",2.4,"L/day","U.S. EPA/ORD 1996","p. 3-28, Table 3-30, 90th percentile"]
["Subsistence Populations","Fish","Amount","central estimate",8.1000000000000003E-2,"kg/day","U.S. EPA/ORD 1996","p. 10-51, median value of 94 individuals"]
["Subsistence Populations","Fish","Amount","upper range",0.77,"kg/day","U.S. EPA/ORD 1996","p. 10-51, highest value of 94 individuals"]
["Fish-eating bird","Fish","Proportion of body weight","central estimate",0.1,"unitless","U.S. EPA/ORD 1993","various species."]
["Fish-eating bird","Fish","Proportion of body weight","lower range",0.05,"unitless","U.S. EPA/ORD 1993","various species."]
["Fish-eating bird","Fish","Proportion of body weight","upper range",0.15,"unitless","U.S. EPA/ORD 1993","various species."]
["Child","Water","Amount","central estimate",1,"L/day","U.S. EPA/ORD 1996","p. 3-28, Table 3-30, midpoint of mean (0.61L/day) and 90th percentile (1.5 L/day) rounded to one significant place."]
["Child","Water","Amount","lower range",0.61,"L/day","U.S. EPA/ORD 1996","p. 3-28, Table 3-30, mean"]
["Child","Water","Amount","upper range",1.5,"L/day","U.S. EPA/ORD 1996","p. 3-28, Table 3-30, 90th percentile"]
["Herbivorous Insect","Broadleaf/Small Insects","Proportion of body weight","central estimate",1.3,"kg food/kg bw/day","Waldbauer 1968","N/A"]
["Herbivorous Insect","Broadleaf/Small Insects","Proportion of body weight","lower range",0.6,"kg food/kg bw/day","Reichle et al. 1973","N/A"]
["Herbivorous Insect","Broadleaf/Small Insects","Proportion of body weight","upper range",2.2000000000000002,"kg food/kg bw/day","Waldbauer 1968","N/A"]
["Herbivorous Insect","Fruit/Large Insects","Proportion of body weight","central estimate",1.3,"kg food/kg bw/day","Waldbauer 1968","N/A"]
["Herbivorous Insect","Fruit/Large Insects","Proportion of body weight","lower range",0.6,"kg food/kg bw/day","Reichle et al. 1973","N/A"]
["Herbivorous Insect","Fruit/Large Insects","Proportion of body weight","upper range",2.2000000000000002,"kg food/kg bw/day","Waldbauer 1968","N/A"]
["Herbivorous Insect","Short grass","Proportion of body weight","central estimate",1.3,"kg food/kg bw/day","Waldbauer 1968","N/A"]
["Herbivorous Insect","Short grass","Proportion of body weight","lower range",0.6,"kg food/kg bw/day","Reichle et al. 1973","N/A"]
["Herbivorous Insect","Short grass","Proportion of body weight","upper range",2.2000000000000002,"kg food/kg bw/day","Waldbauer 1968","N/A"]
["Herbivorous Insect","Tall Grass","Proportion of body weight","central estimate",1.3,"kg food/kg bw/day","Waldbauer 1968","N/A"]
["Herbivorous Insect","Tall Grass","Proportion of body weight","lower range",0.6,"kg food/kg bw/day","Reichle et al. 1973","N/A"]
["Herbivorous Insect","Tall Grass","Proportion of body weight","upper range",2.2000000000000002,"kg food/kg bw/day","Waldbauer 1968","N/A"]

{"sheet":"B01","index":8,"n_rows":21,"n_cols":5,"rows_kept":21,"cut":false,"hidden":false,"merged":[[0,0,0,4]]}
["Chemical and Physical Properties for  TCP-Triclop"]
["Property","Receptor","Value","Units","Document Reference"]
["Bioconcentration Factor (BCF), edible, acute","N/A",0.06,"L/kg fish","Section 3.2.3.5."]
["Bioconcentration Factor (BCF), edible, chronic","N/A",0.06,"L/kg fish","Section 3.2.3.5."]
["Bioconcentration Factor (BCF), whole fish, acute","N/A",0.83,"L/kg fish","Section 3.2.3.5."]
["Bioconcentration Factor (BCF), whole fish, chronic","N/A",0.83,"L/kg fish","Section 3.2.3.5."]
["Kow (Octanol-water partition coefficient)","N/A",1000,"unitless","Table 2-1"]
["Molecular weight","N/A",198.43,"grams/mole","Table 2-1"]
["Water Solubility","N/A",100,"mg/L","Table 2-1"]
["First order dermal absorption rate (ka), central estimate","N/A",1.2E-2,"per hour","Worksheet B03b.  Not used in RA"]
["First order dermal absorption rate (ka), lower range","N/A",4.1000000000000003E-3,"per hour","Worksheet B03b.  Not used in RA"]
["First order dermal absorption rate (ka), upper range","N/A",3.5999999999999997E-2,"per hour","Worksheet B03b.  Not used in RA"]
["Dermal permeability (Kp), central estimate","N/A",1.4999999999999999E-2,"cm/hour","Section 3.1.3.2.2"]
["Dermal permeability (Kp), lower range","N/A",9.4000000000000004E-3,"cm/hour","Section 3.1.3.2.2"]
["Dermal permeability (Kp), upper range","N/A",2.4E-2,"cm/hour","Section 3.1.3.2.2"]
["Halftime, central estimate","Fruit",26.9,"days","Section 3.2.3.6.  Not used in this workbook."]
["Halftime, lower range","Fruit",16.5,"days","Section 3.2.3.6.  Not used in this workbook."]
["Halftime, upper range","Fruit",73.099999999999994,"days","Section 3.2.3.6.  Not used in this workbook."]
["Halftime, central estimate","Vegetation",6.2,"days","Section 3.2.3.6.  Not used in this workbook."]
["Halftime, lower range","Vegetation",2.6,"days","Section 3.2.3.6.  Not used in this workbook."]
["Halftime, upper range","Vegetation",15,"days","Section 3.2.3.6.  Not used in this workbook."]

{"sheet":"B02","index":9,"n_rows":17,"n_cols":7,"rows_kept":17,"cut":false,"hidden":false,"merged":[[0,0,0,6]]}
["Toxicity values for  TCP-Triclop"]
["Receptor","Receptor","Qualifier","Endpoint","Value","Units","Document Reference"]
["Human","chronic","N/A","Reference Dose (RfD)",1.2E-2,"mg/kg bw/day","Table 29"]
["Human","acute","N/A","Reference Dose (RfD)",2.5000000000000001E-2,"mg/kg bw/day","Table 29"]
["Mammals","acute","N/A","NOAEL",25,"mg/kg bw/day","Table 40"]
["Mammals","chronic","N/A","NOAEL",12,"mg/kg bw/day","Table 40"]
["Fish","acute","sensitive species","NOAEC*",0.18,"mg/L","Table 45"]
["Fish","acute","tolerant species","NOAEC*",0.63,"mg/L","Table 45"]
["Aquatic invertebrate","acute","sensitive species","NOAEC*",0.55000000000000004,"mg/L","Table 45"]
["Aquatic invertebrate","acute","tolerant species","NOAEC*",0.55000000000000004,"mg/L","Table 45"]
["Fish","chronic","sensitive species","NOAEC",0.18,"mg/L","Table 45"]
["Fish","chronic","tolerant species","NOAEC",0.18,"mg/L","Table 45"]
["Aquatic invertebrate","chronic","sensitive species","NOAEC",5.8000000000000003E-2,"mg/L","Table 45"]
["Aquatic invertebrate","chronic","tolerant species","NOAEC",5.8000000000000003E-2,"mg/L","Table 45"]
["Birds","acute","N/A","LOAEL",116,"mg/kg bw","Table 40"]
["Algae","acute","sensitive species","NOAEC",0.36,"mg/L","Table 45"]
["Algae","acute","tolerant species","NOAEC",0.65,"mg/L","Table 45"]

{"sheet":"B03a","index":10,"n_rows":28,"n_cols":5,"rows_kept":28,"cut":false,"hidden":false,"merged":[[24,0,27,0],[0,0,0,4],[1,1,1,3],[5,0,7,0],[9,0,12,0],[20,0,23,0]]}
["Calculation of Zero-Order Dermal Permeability Rate (Kp) in cm/hour"]
["Short Title","Calculation of Kp",null,null,"ChemDrmKp"]
["Parameter/Assumption","Code / Range","Equation/   Value","Units","Reference/Designation"]
["Molecular weight","MW",{"$f":"'B01'!$C$8","v":198.43},"g/mole","Table 2-1"]
["Ko/w","Kow",{"$f":"'B01'!$C$7","v":1000},"unitless","Table 2-1"]
["Vector a[]","a[1]",1]
[null,"a[2]",{"$f":"C4","v":198.43}]
[null,"a[3]",{"$f":"LOG10(C5)","v":3}]
["Transpose of a[] (a')",{"$f":"$C$6","v":1},{"$f":"$C$7","v":198.43},{"$f":"$C$8","v":3}]
["X'X Cross Product Matrix","X'X"]
[null,5.5931000000000002E-2,-9.4154599999999995E-5,-1.0344300000000001E-2]
[null,-9.4154599999999995E-5,5.9780000000000002E-7,-2.22508E-5]
[null,-1.0344300000000001E-2,-2.22508E-5,7.40677E-3]
["a'X'X a","a'X'X a",{"$f":"MMULT(B9:D9,MMULT(B11:D13, C6:C8))","v":2.0206633097219998E-2}]
["Coefficients for model"]
["Intercept","K0",-2.7257600000000002]
["Coeff for Log10(Kow)","K1",0.70664800000000005]
["Coeff for MW","K2",-6.1510000000000002E-3]
["Standard deviation of model","s",0.72712900000000003]
["Critical value at 0.025 with 87 d.f.","t0.025",1.96]
["Log10 of Estimated dermal permeability rate (Kp)","Log(Kp) = ","K1  MW × K2 Log10(Kow) + K0"]
[null,"Central",{"$f":"($C$18*$C$4) + ($C$17*LOG10($C$5)) + $C$16","v":-1.82635893},null,"Eq"]
[null,"Lower 95% CI",{"$f":"$C$22 - ($C$20 * $C$19 * ($C$14^0.5))","v":-2.0289473023289974},null,"Eq"]
[null,"Upper 95% CI",{"$f":"$C$22 + ($C$20 * $C$19 * ($C$14^0.5))","v":-1.6237705576710026},null,"Eq"]
["Estimated dermal permeability rate (Kp)","Kp = ","10Log(Kp)"]
[null,"Central",{"$f":"10^C22","v":1.4915611741439055E-2},"cm/hour","Eq"]
[null,"Lower 95% CI",{"$f":"10^C23","v":9.3551918397398372E-3},null,"Eq"]
[null,"Upper 95% CI",{"$f":"10^C24","v":2.3780963280336281E-2},null,"Eq"]

{"sheet":"B03b","index":11,"n_rows":28,"n_cols":5,"rows_kept":28,"cut":false,"hidden":false,"merged":[[24,0,27,0],[0,0,0,4],[1,1,1,3],[5,0,7,0],[9,0,12,0],[20,0,23,0]]}
["Calculation of First-Order Dermal Absorption Rate"]
["Short Title","Calculation of ka",null,null,"ChemDrmKa"]
["Parameter/Assumption","Code / Range","Equation/   Value","Units","Reference/Designation"]
["Molecular weight","MW",{"$f":"'B01'!$C$8","v":198.43},"g/mole","Table 2-1"]
["Ko/w","Kow",{"$f":"'B01'!$C$7","v":1000},"unitless","Table 2-1"]
["Vector a[]","a[1]",1]
[null,"a[2]",{"$f":"C4","v":198.43}]
[null,"a[3]",{"$f":"LOG10(C5)","v":3}]
["Transpose of a[] (a')",{"$f":"$C$6","v":1},{"$f":"$C$7","v":198.43},{"$f":"$C$8","v":3}]
["X'X Cross Product Matrix","X'X"]
[null,0.307537,-1.03089E-3,8.2276899999999993E-3]
[null,-1.03089E-3,4.3769999999999998E-6,-9.4435899999999995E-5]
[null,8.2276899999999993E-3,-9.4435899999999995E-5,8.5286000000000008E-3]
["a'X'X a","a'X'X a",{"$f":"MMULT(B9:D9,MMULT(B11:D13, C6:C8))","v":8.4450073645300008E-2}]
["Coefficients for model"]
["Intercept","K0",-1.4961500000000001]
["Coeff for Log10(Kow)","K1",0.23325499999999999]
["Coeff for MW","K2",-5.6569999999999997E-3]
["Standard deviation of model","s",0.78721799999999997]
["Critical value at 0.025 with 26 d.f.","t0.025",2.056]
["Log10 of Estimated first-order absorption rate","Log(ka) = ","K1  MW × K2 Log10(Kow) + K0"]
[null,"Central",{"$f":"($C$18*$C$4) + ($C$17*LOG10($C$5)) + $C$16","v":-1.91890351},null,"Eq"]
[null,"Lower 95% CI",{"$f":"$C$22 - ($C$20 * $C$19 * ($C$14^0.5))","v":-2.3892502545636525},null,"Eq"]
[null,"Upper 95% CI",{"$f":"$C$22 + ($C$20 * $C$19 * ($C$14^0.5))","v":-1.4485567654363476},null,"Eq"]
["Estimated first-order absorption rate","ka = ","10Log(ka)"]
[null,"Central",{"$f":"10^C22","v":1.2053037007057437E-2},"hour-1","Eq"]
[null,"Lower 95% CI",{"$f":"10^C23","v":4.0808416723836366E-3},null,"Eq"]
[null,"Upper 95% CI",{"$f":"10^C24","v":3.5599445593937934E-2},null,"Eq"]

{"sheet":"B04a","index":12,"n_rows":24,"n_cols":5,"rows_kept":24,"cut":false,"hidden":false,"merged":[[0,0,0,3],[3,0,6,0],[7,0,10,0],[16,0,19,0],[20,0,23,0],[11,0,14,0]]}
["Estimates of Water Contamination Rates -- i.e., the concentration in ambient water per pound applied per acre",null,null,null,"EECRtV6"]
["Parameter/Assumption","Code / Range","Equation/ Value","Units","EECRtV6"]
["Expected Concentrations of Triclopyr In Surface Water"]
["Short-term peak concentration of triclopyr surface water","Peak"]
[null,"Central ",0.18384618608400388,"mg/L"]
[null,"Lower ",9.1923093042001941E-2]
[null,"Upper ",0.36769237216800776]
["Longer-term average concentrations of triclopyr in surface water","Average"]
[null,"Central ",5.894088465549654E-3,"mg/L"]
[null,"Lower ",7.3676105819372767E-4]
[null,"Upper ",2.3576349887523228E-2]
["Adjustment factors for metabolite formulation based on monitoring data","Factor"]
[null,"Central ",235,null,"See Section 3.2.3.4.1.2 of Risk Assessment"]
[null,"Upper ",586]
[null,"Lower ",137]
["Expected Concentrations of TCP In Surface Water"]
["Short-term peak concentrations","Peak"]
[null,"Central ",{"$f":"C5/C13","v":7.8232419610214422E-4},"mg/L","Eq"]
[null,"Lower ",{"$f":"C6/C14","v":1.5686534648805793E-4},null,"Eq"]
[null,"Upper ",2.6838859282336332E-3,null,"Eq"]
["Longer-term average concentrations","Average"]
[null,"Central ",{"$f":"C9/C13","v":2.5081227512977251E-5},"mg/L","Eq"]
[null,"Lower ",{"$f":"C10/C14","v":1.257271430364723E-6},null,"Eq"]
[null,"Upper ",1.7209014516440314E-4,null,"Eq"]

{"sheet":"B04b","index":13,"n_rows":17,"n_cols":5,"rows_kept":17,"cut":false,"hidden":false,"merged":[[13,0,16,0],[0,0,0,4],[1,1,1,3],[2,1,2,3],[3,1,3,3],[9,0,12,0],[5,0,8,0]]}
["Pond: Concentration of pesticide (liquid formulation) in pond water after an accidental spill"]
["Short Title","Pond Spill",null,null,"PondSpillLiqV6"]
["Receptor","Pond"]
["Duration","Acute"]
["Parameter/Assumption","Code / Range","Equation/   Value","Units","Reference/Designation"]
["Concentration of parent compound in pond water immediately after spill","ConcWat"]
[null,"Central ",1.8168,"mg/L"]
[null,"Lower ",0.2271]
[null,"Upper ",18.167999999999999]
["Adjustment factors for metabolite formulation based on monitoring data","Factor"]
[null,"Central ",235,null,"See Section 3.2.3.4.1.2 of Risk Assessment"]
[null,"Upper ",586]
[null,"Lower ",137]
["Concentration of metabolite in pond water","ConcWat","ConcWat ÷ Factor"]
[null,"Central ",{"$f":"C7/C11","v":7.7310638297872335E-3},"mg/L","Eq."]
[null,"Lower ",{"$f":"C8/C12","v":3.8754266211604097E-4},null,"Eq."]
[null,"Upper ",0.13261313868613139,null,"Eq."]

{"sheet":"D05","index":14,"n_rows":18,"n_cols":5,"rows_kept":18,"cut":false,"hidden":false,"merged":[[14,0,17,0],[0,0,0,4],[1,1,1,3],[2,1,2,3],[5,0,8,0],[9,0,12,0]]}
["Acute exposure of Child after an accidental spill of the pesticide into a pond"]
["Short Title","Water consumption, accidental spill",null,null,"WatSpillAmntV6"]
["Receptor","Child"]
["Duration","Acute"]
["Parameter/Assumption","Code / Range","Equation/   Value","Units","Reference/Designation"]
["Concentration in pond water","ConcWat"]
[null,"Central ",{"$f":"B04b!Water_C","v":7.7310638297872335E-3},"mg/L","='B04b'!Water_C"]
[null,"Lower ",{"$f":"B04b!Water_L","v":3.8754266211604097E-4},null,"='B04b'!Water_L"]
[null,"Upper ",{"$f":"B04b!Water_U","v":0.13261313868613139},null,"='B04b'!Water_U"]
["Amount of water consumed in one day","Amnt"]
[null,"Central ",{"$f":"'A03'!$E$38","v":1},"liters/day","U.S. EPA/ORD 1996"]
[null,"Lower ",{"$f":"'A03'!$E$39","v":0.61},null,"U.S. EPA/ORD 1996"]
[null,"Upper ",{"$f":"'A03'!$E$40","v":1.5},null,"U.S. EPA/ORD 1996"]
["Body weight","BW",{"$f":"'A02'!$C$59","v":13.3},"kg","U.S. EPA/ORD 1996"]
["Dose","Dose","ConcWat  × Amnt ÷ BW"]
[null,"Central ",{"$f":"C7*C11/C$14","v":5.8128299472084456E-4},"mg/kg","Eq"]
[null,"Lower ",{"$f":"C8*C12/C$14","v":1.7774513074495111E-5},"mg/kg","Eq"]
[null,"Upper ",{"$f":"C9*C13/C$14","v":1.495636902475166E-2},"mg/kg","Eq"]

{"sheet":"D06","index":15,"n_rows":22,"n_cols":5,"rows_kept":22,"cut":false,"hidden":false,"merged":[[13,0,16,0],[14,3,16,3],[18,0,21,0],[0,0,0,4],[1,1,1,3],[2,1,2,3],[3,1,3,3],[5,0,8,0],[9,0,12,0]]}
["Consumption of contaminated water, Child, acute exposure"]
["Short Title","Water consumption, ambient",null,null,"WatAmbAmntV6"]
["Receptor","Child"]
["Duration","acute"]
["Parameter/Assumption","Code / Range","Equation/   Value","Units","Reference/Designation"]
["Concentration in water","ConcWat","ApR × WCR ×TEF"]
[null,"Central ",{"$f":"B04a!Acute_C","v":7.8232419610214422E-4},"mg/L","='B04a'!Acute_C"]
[null,"Lower ",{"$f":"B04a!Acute_L","v":1.5686534648805793E-4},null,"='B04a'!Acute_L"]
[null,"Upper ",{"$f":"B04a!Acute_U","v":2.6838859282336332E-3},null,"='B04a'!Acute_U"]
["Toxic Equivalency Factor for formulation:  (See risk assessment if this has a value other than 1.)","TEF"]
[null,"Central ",{"$f":"'A01'!C$35","v":1},"unitless","Worksheet A01"]
[null,"Lower ",{"$f":"'A01'!C$36","v":1},null,"Worksheet A01"]
[null,"Upper ",{"$f":"'A01'!C$37","v":1},null,"Worksheet A01"]
["Amount of water consumed in one day","Amnt"]
[null,"Central ",{"$f":"'A03'!$E$38","v":1},"L/day","U.S. EPA/ORD 1996"]
[null,"Lower ",{"$f":"'A03'!$E$39","v":0.61},null,"U.S. EPA/ORD 1996"]
[null,"Upper ",{"$f":"'A03'!$E$40","v":1.5},null,"U.S. EPA/ORD 1996"]
["Body weight","BW",{"$f":"'A02'!$C$59","v":13.3},"kg","U.S. EPA/ORD 1996"]
["Dose","Dose","ConcWat  × Amnt  ×TEF ÷ BW"]
[null,"Central ",{"$f":"C7*C15/C$18","v":5.8821368127980767E-5},"mg/kg","Eq"]
[null,"Lower ",{"$f":"C8*C16/C$18","v":7.1945760419334832E-6},"mg/kg","Eq"]
[null,"Upper ",{"$f":"C9*C17/C$18","v":3.0269390168048493E-4},"mg/kg","Eq"]

{"sheet":"D07","index":16,"n_rows":22,"n_cols":5,"rows_kept":22,"cut":false,"hidden":false,"merged":[[13,0,16,0],[14,3,16,3],[18,0,21,0],[0,0,0,4],[1,1,1,3],[2,1,2,3],[3,1,3,3],[5,0,8,0],[9,0,12,0]]}
["Consumption of contaminated water, Child, chronic exposure"]
["Short Title","Water consumption, ambient",null,null,"WatAmbAmntV6"]
["Receptor","Child"]
["Duration","chronic"]
["Parameter/Assumption","Code / Range","Equation/   Value","Units","Reference/Designation"]
["Concentration in water","ConcWat","ApR × WCR ×TEF"]
[null,"Central ",{"$f":"B04a!Chronic_C","v":2.5081227512977251E-5},"mg/L","='B04a'!Chronic_C"]
[null,"Lower ",{"$f":"B04a!Chronic_L","v":1.257271430364723E-6},null,"='B04a'!Chronic_L"]
[null,"Upper ",{"$f":"B04a!Chronic_U","v":1.7209014516440314E-4},null,"='B04a'!Chronic_U"]
["Toxic Equivalency Factor for formulation:  (See risk assessment if this has a value other than 1.)","TEF"]
[null,"Central ",{"$f":"'A01'!C$35","v":1},"unitless","Worksheet A01"]
[null,"Lower ",{"$f":"'A01'!C$36","v":1},null,"Worksheet A01"]
[null,"Upper ",{"$f":"'A01'!C$37","v":1},null,"Worksheet A01"]
["Amount of water consumed in one day","Amnt"]
[null,"Central ",{"$f":"'A03'!$E$38","v":1},"L/day","U.S. EPA/ORD 1996"]
[null,"Lower ",{"$f":"'A03'!$E$39","v":0.61},null,"U.S. EPA/ORD 1996"]
[null,"Upper ",{"$f":"'A03'!$E$40","v":1.5},null,"U.S. EPA/ORD 1996"]
["Body weight","BW",{"$f":"'A02'!$C$59","v":13.3},"kg","U.S. EPA/ORD 1996"]
["Dose","Dose","ConcWat  × Amnt  ×TEF ÷ BW"]
[null,"Central ",{"$f":"C7*C15/C$18","v":1.8858065799231014E-6},"mg/kg","Eq"]
[null,"Lower ",{"$f":"C8*C16/C$18","v":5.7664328761088794E-8},"mg/kg","Eq"]
[null,"Upper ",{"$f":"C9*C17/C$18","v":1.940866298846652E-5},"mg/kg","Eq"]

{"sheet":"D08a","index":17,"n_rows":47,"n_cols":5,"rows_kept":47,"cut":false,"hidden":false,"merged":[[43,0,46,0],[18,0,21,0],[22,0,25,0],[26,0,29,0],[30,0,33,0],[34,0,37,0],[38,0,41,0],[13,0,16,0],[0,0,0,4],[1,1,1,3],[2,1,2,3],[3,1,3,3],[9,0,12,0]]}
["Acute scenario for the consumption of contaminated fish by Adult Male after an accidental spill of the pesticide into a pond"]
["Short Title","Fish consumption, accidental spill",null,null,"FishAmntSpill"]
["Receptor","Adult Male"]
["Duration","Acute"]
["Parameter/Assumption","Code / Range","Equation/   Value","Units","Reference/Designation"]
["Surface Area of Pond","SA",{"$f":"'A01'!C$23","v":1000},"m2","Worksheet A01"]
["Depth of Pond","Depth",{"$f":"'A01'!C$24","v":1},"meter","Worksheet A01"]
["Volume of Pond","VPM",{"$f":"C6*C7","v":1000},"m3","Eq"]
[null,"VPL",{"$f":"1000*C8","v":1000000},"liters","Eq"]
["Concentration in field solution","Conc"]
[null,"Central ",{"$f":"'A01'!FldConc_C","v":9.6},"mg/mL","Worksheet A01"]
[null,"Lower ",{"$f":"'A01'!FldConc_L","v":6},null,"Worksheet A01"]
[null,"Upper ",{"$f":"'A01'!FldConc_U","v":48},null,"Worksheet A01"]
["Volume of Spill (gallons)","VSGal"]
[null,"Central ",{"$f":"'A01'!C$43","v":100},"gallons","Worksheet A01"]
[null,"Lower ",{"$f":"'A01'!C$44","v":20},null,"Worksheet A01"]
[null,"Upper ",{"$f":"'A01'!C$45","v":200},null,"Worksheet A01"]
["Conversion factor for gallons to liters","Conv",3.7850000000000001,"liters/gal"]
["Volume of Spill (liters)","VSLit","VSGal x Conv"]
[null,"Central ",{"$f":"C15*C$18","v":378.5},"liters","Eq"]
[null,"Lower ",{"$f":"C16*C$18","v":75.7},"liters","Eq"]
[null,"Upper ",{"$f":"C17*C$18","v":757},"liters","Eq"]
["Concentration in pond water","ConcWat","Conc × 1000 mL/L × VSLit ÷ VPL"]
[null,"Central ",{"$f":"C11*1000*C20/C$9","v":3.6335999999999999},"mg/L","Eq"]
[null,"Lower ",{"$f":"C12*1000*C21/C$9","v":0.45419999999999999},null,"Eq"]
[null,"Upper ",{"$f":"C13*1000*C22/C$9","v":36.335999999999999},null,"Eq"]
["Bioconcentration factor","BCF"]
[null,"Central ",{"$f":"'B01'!$C$3","v":0.06},"L/kg","Section 3.2.3.5."]
[null,"Lower ",{"$f":"'B01'!$C$3","v":0.06},null,"Section 3.2.3.5."]
[null,"Upper ",{"$f":"'B01'!$C$3","v":0.06},null,"Section 3.2.3.5."]
["Concentration in fish","ConcFish","ConcWat × BCF"]
[null,"Central ",{"$f":"C24*C28","v":0.21801599999999999},"mg/kg","Eq"]
[null,"Lower ",{"$f":"C25*C29","v":2.7251999999999998E-2},null,"Eq"]
[null,"Upper ",{"$f":"C26*C30","v":2.1801599999999999},null,"Eq"]
["Amount of fish consumed","Amnt"]
[null,"Central ",{"$f":"'A03'!$E$19","v":0.158},"kg/day","Ruffle et al. 1994"]
[null,"Lower ",{"$f":"'A03'!$E$19","v":0.158},null,"Ruffle et al. 1994"]
[null,"Upper ",{"$f":"'A03'!$E$19","v":0.158},null,"Ruffle et al. 1994"]
["Toxic Equivalency Factor for formulation:  (See risk assessment if this has a value other than 1.)","TEF"]
[null,"Central ",{"$f":"'A01'!C$35","v":1},"Unitless","Worksheet A01"]
[null,"Lower ",{"$f":"'A01'!C$36","v":1},null,"Worksheet A01"]
[null,"Upper ",{"$f":"'A01'!C$37","v":1},null,"Worksheet A01"]
["Body weight","BW",{"$f":"'A02'!$C$7","v":70},"kg","ICRP 1975"]
["Dose","Dose","ConcFish × Amnt × TEF ÷ BW"]
[null,"Central ",{"$f":"C32*C36*C40/C$43","v":4.9209325714285712E-4},"mg/kg","Eq"]
[null,"Lower ",{"$f":"C33*C37*C41/C$43","v":6.151165714285714E-5},"mg/kg","Eq"]
[null,"Upper ",{"$f":"C34*C38*C42/C$43","v":4.9209325714285714E-3},"mg/kg","Eq"]

{"sheet":"D08b","index":18,"n_rows":47,"n_cols":5,"rows_kept":47,"cut":false,"hidden":false,"merged":[[43,0,46,0],[18,0,21,0],[22,0,25,0],[26,0,29,0],[30,0,33,0],[34,0,37,0],[38,0,41,0],[13,0,16,0],[0,0,0,4],[1,1,1,3],[2,1,2,3],[3,1,3,3],[9,0,12,0]]}
["Acute scenario for the consumption of contaminated fish by Subsistence Populations after an accidental spill of the pesticide into a pond"]
["Short Title","Fish consumption, accidental spill",null,null,"FishAmntSpill"]
["Receptor","Subsistence Populations"]
["Duration","Acute"]
["Parameter/Assumption","Code / Range","Equation/   Value","Units","Reference/Designation"]
["Surface Area of Pond","SA",{"$f":"'A01'!C$23","v":1000},"m2","Worksheet A01"]
["Depth of Pond","Depth",{"$f":"'A01'!C$24","v":1},"meter","Worksheet A01"]
["Volume of Pond","VPM",{"$f":"C6*C7","v":1000},"m3","Eq"]
[null,"VPL",{"$f":"1000*C8","v":1000000},"liters","Eq"]
["Concentration in field solution","Conc"]
[null,"Central ",{"$f":"'A01'!FldConc_C","v":9.6},"mg/mL","Worksheet A01"]
[null,"Lower ",{"$f":"'A01'!FldConc_L","v":6},null,"Worksheet A01"]
[null,"Upper ",{"$f":"'A01'!FldConc_U","v":48},null,"Worksheet A01"]
["Volume of Spill (gallons)","VSGal"]
[null,"Central ",{"$f":"'A01'!C$43","v":100},"gallons","Worksheet A01"]
[null,"Lower ",{"$f":"'A01'!C$44","v":20},null,"Worksheet A01"]
[null,"Upper ",{"$f":"'A01'!C$45","v":200},null,"Worksheet A01"]
["Conversion factor for gallons to liters","Conv",3.7850000000000001,"liters/gal"]
["Volume of Spill (liters)","VSLit","VSGal x Conv"]
[null,"Central ",{"$f":"C15*C$18","v":378.5},"liters","Eq"]
[null,"Lower ",{"$f":"C16*C$18","v":75.7},"liters","Eq"]
[null,"Upper ",{"$f":"C17*C$18","v":757},"liters","Eq"]
["Concentration in pond water","ConcWat","Conc × 1000 mL/L × VSLit ÷ VPL"]
[null,"Central ",{"$f":"C11*1000*C20/C$9","v":3.6335999999999999},"mg/L","Eq"]
[null,"Lower ",{"$f":"C12*1000*C21/C$9","v":0.45419999999999999},null,"Eq"]
[null,"Upper ",{"$f":"C13*1000*C22/C$9","v":36.335999999999999},null,"Eq"]
["Bioconcentration factor","BCF"]
[null,"Central ",{"$f":"'B01'!$C$3","v":0.06},"L/kg","Section 3.2.3.5."]
[null,"Lower ",{"$f":"'B01'!$C$3","v":0.06},null,"Section 3.2.3.5."]
[null,"Upper ",{"$f":"'B01'!$C$3","v":0.06},null,"Section 3.2.3.5."]
["Concentration in fish","ConcFish","ConcWat × BCF"]
[null,"Central ",{"$f":"C24*C28","v":0.21801599999999999},"mg/kg","Eq"]
[null,"Lower ",{"$f":"C25*C29","v":2.7251999999999998E-2},null,"Eq"]
[null,"Upper ",{"$f":"C26*C30","v":2.1801599999999999},null,"Eq"]
["Amount of fish consumed","Amnt"]
[null,"Central ",{"$f":"'A03'!$E$34","v":0.77},"kg/day","U.S. EPA/ORD 1996"]
[null,"Lower ",{"$f":"'A03'!$E$34","v":0.77},null,"U.S. EPA/ORD 1996"]
[null,"Upper ",{"$f":"'A03'!$E$34","v":0.77},null,"U.S. EPA/ORD 1996"]
["Toxic Equivalency Factor for formulation:  (See risk assessment if this has a value other than 1.)","TEF"]
[null,"Central ",{"$f":"'A01'!C$35","v":1},"Unitless","Worksheet A01"]
[null,"Lower ",{"$f":"'A01'!C$36","v":1},null,"Worksheet A01"]
[null,"Upper ",{"$f":"'A01'!C$37","v":1},null,"Worksheet A01"]
["Body weight","BW",{"$f":"'A02'!$C$8","v":70},"kg","ICRP 1975"]
["Dose","Dose","ConcFish × Amnt × TEF ÷ BW"]
[null,"Central ",{"$f":"C32*C36*C40/C$43","v":2.3981759999999997E-3},"mg/kg","Eq"]
[null,"Lower ",{"$f":"C33*C37*C41/C$43","v":2.9977199999999996E-4},"mg/kg","Eq"]
[null,"Upper ",{"$f":"C34*C38*C42/C$43","v":2.3981759999999998E-2},"mg/kg","Eq"]

{"sheet":"D09a","index":19,"n_rows":30,"n_cols":5,"rows_kept":30,"cut":false,"hidden":false,"merged":[[26,0,29,0],[0,0,0,4],[1,1,1,3],[2,1,2,3],[3,1,3,3],[5,0,8,0],[10,0,12,0],[13,0,16,0],[17,0,20,0],[21,0,24,0]]}
["Consumption of contaminated fish, Adult Male, chronic exposure"]
["Short Title","Fish consumption, chronic",null,null,"FishAmntAmb"]
["Receptor","Adult Male"]
["Duration","chronic"]
["Parameter/Assumption","Code / Range","Equation/   Value","Units","Reference/Designation"]
["Concentration in water","ConcWat","ApR × WCR"]
[null,"Central ",{"$f":"B04a!C22","v":2.5081227512977251E-5},"mg/L","Eq"]
[null,"Lower ",{"$f":"B04a!C23","v":1.257271430364723E-6},null,"Eq"]
[null,"Upper ",{"$f":"B04a!C24","v":1.7209014516440314E-4},null,"Eq"]
["Bioconcentration factor","BCF"]
[null,"Central ",{"$f":"'B01'!$C$4","v":0.06},"L/kg","Section 3.2.3.5."]
[null,"Lower ",{"$f":"'B01'!$C$4","v":0.06},null,"Section 3.2.3.5."]
[null,"Upper ",{"$f":"'B01'!$C$4","v":0.06},null,"Section 3.2.3.5."]
["Concentration in fish","ConcFish","ConcWat × BCF"]
[null,"Central ",{"$f":"C7*C11","v":1.5048736507786349E-6},"mg/kg","Eq"]
[null,"Lower ",{"$f":"C8*C12","v":7.5436285821883377E-8},null,"Eq"]
[null,"Upper ",{"$f":"C9*C13","v":1.0325408709864187E-5},null,"Eq"]
["Amount of fish consumed","Amnt"]
[null,"Central ",{"$f":"'A03'!$E$18","v":0.01},"kg/day","U.S. EPA/ORD 1996"]
[null,"Lower ",{"$f":"'A03'!$E$18","v":0.01},null,"U.S. EPA/ORD 1996"]
[null,"Upper ",{"$f":"'A03'!$E$18","v":0.01},null,"U.S. EPA/ORD 1996"]
["Toxic Equivalency Factor for formulation:  (See risk assessment if this has a value other than 1.)","TEF"]
[null,"Central ",{"$f":"'A01'!C$35","v":1},"Unitless","Worksheet A01"]
[null,"Lower ",{"$f":"'A01'!C$36","v":1},null,"Worksheet A01"]
[null,"Upper ",{"$f":"'A01'!C$37","v":1},null,"Worksheet A01"]
["Body weight","BW",{"$f":"'A02'!$C$7","v":70},"kg","ICRP 1975"]
["Dose","Dose","ConcFish× Amnt x TEF ÷ BW"]
[null,"Central ",{"$f":"C15*C19*C23/C$26","v":2.1498195011123355E-10},"mg/kg","Eq"]
[null,"Lower ",{"$f":"C16*C20*C24/C$26","v":1.0776612260269054E-11},"mg/kg","Eq"]
[null,"Upper ",{"$f":"C17*C21*C25/C$26","v":1.4750583871234554E-9},"mg/kg","Eq"]

{"sheet":"D09b","index":20,"n_rows":30,"n_cols":5,"rows_kept":30,"cut":false,"hidden":false,"merged":[[26,0,29,0],[0,0,0,4],[1,1,1,3],[2,1,2,3],[3,1,3,3],[5,0,8,0],[10,0,12,0],[13,0,16,0],[17,0,20,0],[21,0,24,0]]}
["Consumption of contaminated fish, Subsistence Populations, chronic exposure"]
["Short Title","Fish consumption, chronic",null,null,"FishAmntAmb"]
["Receptor","Subsistence Populations"]
["Duration","chronic"]
["Parameter/Assumption","Code / Range","Equation/   Value","Units","Reference/Designation"]
["Concentration in water","ConcWat","ApR × WCR"]
[null,"Central ",{"$f":"B04a!C22","v":2.5081227512977251E-5},"mg/L","Eq"]
[null,"Lower ",{"$f":"B04a!C23","v":1.257271430364723E-6},null,"Eq"]
[null,"Upper ",{"$f":"B04a!C24","v":1.7209014516440314E-4},null,"Eq"]
["Bioconcentration factor","BCF"]
[null,"Central ",{"$f":"'B01'!$C$4","v":0.06},"L/kg","Section 3.2.3.5."]
[null,"Lower ",{"$f":"'B01'!$C$4","v":0.06},null,"Section 3.2.3.5."]
[null,"Upper ",{"$f":"'B01'!$C$4","v":0.06},null,"Section 3.2.3.5."]
["Concentration in fish","ConcFish","ConcWat × BCF"]
[null,"Central ",{"$f":"C7*C11","v":1.5048736507786349E-6},"mg/kg","Eq"]
[null,"Lower ",{"$f":"C8*C12","v":7.5436285821883377E-8},null,"Eq"]
[null,"Upper ",{"$f":"C9*C13","v":1.0325408709864187E-5},null,"Eq"]
["Amount of fish consumed","Amnt"]
[null,"Central ",{"$f":"'A03'!$E$33","v":8.1000000000000003E-2},"kg/day","U.S. EPA/ORD 1996"]
[null,"Lower ",{"$f":"'A03'!$E$33","v":8.1000000000000003E-2},null,"U.S. EPA/ORD 1996"]
[null,"Upper ",{"$f":"'A03'!$E$33","v":8.1000000000000003E-2},null,"U.S. EPA/ORD 1996"]
["Toxic Equivalency Factor for formulation:  (See risk assessment if this has a value other than 1.)","TEF"]
[null,"Central ",{"$f":"'A01'!C$35","v":1},"Unitless","Worksheet A01"]
[null,"Lower ",{"$f":"'A01'!C$36","v":1},null,"Worksheet A01"]
[null,"Upper ",{"$f":"'A01'!C$37","v":1},null,"Worksheet A01"]
["Body weight","BW",{"$f":"'A02'!$C$8","v":70},"kg","ICRP 1975"]
["Dose","Dose","ConcFish× Amnt x TEF ÷ BW"]
[null,"Central ",{"$f":"C15*C19*C23/C$26","v":1.7413537959009918E-9},"mg/kg","Eq"]
[null,"Lower ",{"$f":"C16*C20*C24/C$26","v":8.729055930817933E-11},"mg/kg","Eq"]
[null,"Upper ",{"$f":"C17*C21*C25/C$26","v":1.1947972935699989E-8},"mg/kg","Eq"]

{"sheet":"D09c","index":21,"n_rows":30,"n_cols":5,"rows_kept":30,"cut":false,"hidden":false,"merged":[[26,0,29,0],[0,0,0,4],[1,1,1,3],[2,1,2,3],[3,1,3,3],[5,0,8,0],[10,0,12,0],[13,0,16,0],[17,0,20,0],[21,0,24,0]]}
["Consumption of contaminated fish, Adult Male, acute exposure"]
["Short Title","Fish consumption, acute",null,null,"FishAmntAmb"]
["Receptor","Adult Male"]
["Duration","acute"]
["Parameter/Assumption","Code / Range","Equation/   Value","Units","Reference/Designation"]
["Concentration in water","ConcWat"]
[null,"Central ",{"$f":"B04a!C18","v":7.8232419610214422E-4},"mg/L","B04a, acute"]
[null,"Lower ",{"$f":"B04a!C19","v":1.5686534648805793E-4},null,"B04a, acute"]
[null,"Upper ",{"$f":"B04a!C20","v":2.6838859282336332E-3},null,"B04a, acute"]
["Bioconcentration factor","BCF"]
[null,"Central ",{"$f":"'B01'!$C$3","v":0.06},"L/kg","Section 3.2.3.5."]
[null,"Lower ",{"$f":"'B01'!$C$3","v":0.06},null,"Section 3.2.3.5."]
[null,"Upper ",{"$f":"'B01'!$C$3","v":0.06},null,"Section 3.2.3.5."]
["Concentration in fish","ConcFish","ConcWat × BCF"]
[null,"Central ",{"$f":"C7*C11","v":4.6939451766128649E-5},"mg/kg","Eq"]
[null,"Lower ",{"$f":"C8*C12","v":9.4119207892834761E-6},null,"Eq"]
[null,"Upper ",{"$f":"C9*C13","v":1.61033155694018E-4},null,"Eq"]
["Amount of fish consumed","Amnt"]
[null,"Central ",{"$f":"'A03'!$E$19","v":0.158},"kg/day","Ruffle et al. 1994"]
[null,"Lower ",{"$f":"'A03'!$E$19","v":0.158},null,"Ruffle et al. 1994"]
[null,"Upper ",{"$f":"'A03'!$E$19","v":0.158},null,"Ruffle et al. 1994"]
["Toxic Equivalency Factor for formulation:  (See risk assessment if this has a value other than 1.)","TEF"]
[null,"Central ",{"$f":"'A01'!C$35","v":1},"Unitless","Worksheet A01"]
[null,"Lower ",{"$f":"'A01'!C$36","v":1},null,"Worksheet A01"]
[null,"Upper ",{"$f":"'A01'!C$37","v":1},null,"Worksheet A01"]
["Body weight","BW",{"$f":"'A02'!$C$7","v":70},"kg","ICRP 1975"]
["Dose","Dose","ConcFish× Amnt x TEF ÷ BW"]
[null,"Central ",{"$f":"C15*C19*C23/C$26","v":1.0594904827211895E-7},"mg/kg","Eq"]
[null,"Lower ",{"$f":"C16*C20*C24/C$26","v":2.124404978152556E-8},"mg/kg","Eq"]
[null,"Upper ",{"$f":"C17*C21*C25/C$26","v":3.6347483713792638E-7},"mg/kg","Eq"]

{"sheet":"D09d","index":22,"n_rows":30,"n_cols":5,"rows_kept":30,"cut":false,"hidden":false,"merged":[[26,0,29,0],[0,0,0,4],[1,1,1,3],[2,1,2,3],[3,1,3,3],[5,0,8,0],[10,0,12,0],[13,0,16,0],[17,0,20,0],[21,0,24,0]]}
["Consumption of contaminated fish, Subsistence Populations, acute exposure"]
["Short Title","Fish consumption, acute",null,null,"FishAmntAmb"]
["Receptor","Subsistence Populations"]
["Duration","acute"]
["Parameter/Assumption","Code / Range","Equation/   Value","Units","Reference/Designation"]
["Concentration in water","ConcWat","ApR × WCR"]
[null,"Central ",{"$f":"B04a!C18","v":7.8232419610214422E-4},"mg/L","B04a, acute"]
[null,"Lower ",{"$f":"B04a!C19","v":1.5686534648805793E-4},null,"B04a, acute"]
[null,"Upper ",{"$f":"B04a!C20","v":2.6838859282336332E-3},null,"B04a, acute"]
["Bioconcentration factor","BCF"]
[null,"Central ",{"$f":"'B01'!$C$3","v":0.06},"L/kg","Section 3.2.3.5."]
[null,"Lower ",{"$f":"'B01'!$C$3","v":0.06},null,"Section 3.2.3.5."]
[null,"Upper ",{"$f":"'B01'!$C$3","v":0.06},null,"Section 3.2.3.5."]
["Concentration in fish","ConcFish","ConcWat × BCF"]
[null,"Central ",{"$f":"C7*C11","v":4.6939451766128649E-5},"mg/kg","Eq"]
[null,"Lower ",{"$f":"C8*C12","v":9.4119207892834761E-6},null,"Eq"]
[null,"Upper ",{"$f":"C9*C13","v":1.61033155694018E-4},null,"Eq"]
["Amount of fish consumed","Amnt"]
[null,"Central ",{"$f":"'A03'!$E$34","v":0.77},"kg/day","U.S. EPA/ORD 1996"]
[null,"Lower ",{"$f":"'A03'!$E$34","v":0.77},null,"U.S. EPA/ORD 1996"]
[null,"Upper ",{"$f":"'A03'!$E$34","v":0.77},null,"U.S. EPA/ORD 1996"]
["Toxic Equivalency Factor for formulation:  (See risk assessment if this has a value other than 1.)","TEF"]
[null,"Central ",{"$f":"'A01'!C$35","v":1},"Unitless","Worksheet A01"]
[null,"Lower ",{"$f":"'A01'!C$36","v":1},null,"Worksheet A01"]
[null,"Upper ",{"$f":"'A01'!C$37","v":1},null,"Worksheet A01"]
["Body weight","BW",{"$f":"'A02'!$C$8","v":70},"kg","ICRP 1975"]
["Dose","Dose","ConcFish× Amnt x TEF ÷ BW"]
[null,"Central ",{"$f":"C15*C19*C23/C$26","v":5.1633396942741517E-7},"mg/kg","Eq"]
[null,"Lower ",{"$f":"C16*C20*C24/C$26","v":1.0353112868211824E-7},"mg/kg","Eq"]
[null,"Upper ",{"$f":"C17*C21*C25/C$26","v":1.7713647126341979E-6},"mg/kg","Eq"]

{"sheet":"D11","index":23,"n_rows":26,"n_cols":5,"rows_kept":26,"cut":false,"hidden":false,"merged":[[22,0,25,0],[0,0,0,4],[1,1,1,3],[2,1,2,3],[3,1,3,3],[4,1,4,3],[7,0,8,0],[10,0,13,0],[14,0,17,0],[18,0,21,0]]}
["Swimming Exposure Assessment Using Zero-Order Absorption, Adult Female, Surface Area, Whole body, for 60 minute(s)"]
["Short Title","Swimming",null,null,"DrmZrSwm"]
["Receptor","Adult Female"]
["Duration","Acute"]
["Surface Contaminated","Surface Area, Whole body"]
["Parameter/Assumption","Code / Range","Equation/   Value","Units","Reference/Designation"]
["Surface Area","SA",{"$f":"'A02'!$C$6","v":16900},"cm2","U.S. EPA/ORD 1997"]
["Duration of Exposure","T_min",{"$f":"'A01'!C$29","v":60},"minutes","Worksheet A01"]
[null,"T_hr",{"$f":"C8/60","v":1},"hours","Eq"]
["Body weight","BW",{"$f":"'A02'!$C$3","v":64},"kg","U.S. EPA/ORD 1985"]
["Concentration in water in mg/mL","ConcWat","ApR × WCR / 1000"]
[null,"Central ",{"$f":"B04a!C18","v":7.8232419610214422E-4},"mg/mL","B04a, acute"]
[null,"Lower ",{"$f":"B04a!C19","v":1.5686534648805793E-4},null,"B04a, acute"]
[null,"Upper ",{"$f":"B04a!C20","v":2.6838859282336332E-3},null,"B04a, acute"]
["Toxic Equivalency Factor for formulation:  (See risk assessment if this has a value other than 1.)","TEF"]
[null,"Central ",{"$f":"'A01'!C$35","v":1},"Unitless","Worksheet A01"]
[null,"Lower ",{"$f":"'A01'!C$36","v":1},null,"Worksheet A01"]
[null,"Upper ",{"$f":"'A01'!C$37","v":1},null,"Worksheet A01"]
["Dermal permeability","Kp"]
[null,"Central ",{"$f":"'B01'!$C$13","v":1.4999999999999999E-2},"cm/hour","Section 3.2.2.2"]
[null,"Lower ",{"$f":"'B01'!$C$14","v":9.4000000000000004E-3},null,"Section 3.2.2.2"]
[null,"Upper ",{"$f":"'B01'!$C$15","v":2.4E-2},null,"Section 3.2.2.2"]
["Absorbed Dose","Dose","Kp × Conc × T_hr × SA × TEF ÷ BW"]
[null,"Central ",{"$f":"C20*C12*C$9*C$7*C16/C$10","v":3.0987372454983368E-3},"mg/kg"]
[null,"Lower ",{"$f":"C21*C13*C$9*C$7*C17/C$10","v":3.8936920223582632E-4},"mg/kg"]
[null,"Upper ",{"$f":"C22*C14*C$9*C$7*C18/C$10","v":1.7009127070180648E-2},"mg/kg"]

{"sheet":"E03","index":24,"n_rows":24,"n_cols":9,"rows_kept":24,"cut":false,"hidden":false,"merged":[[0,0,0,5],[1,2,1,4],[2,0,3,0],[2,1,3,1],[2,2,2,4],[2,5,3,5],[12,2,12,4],[13,2,13,4],[19,2,19,4],[20,2,20,4],[5,2,5,4],[6,2,6,4],[11,2,11,4]]}
["Worksheet E03: Summary of Exposure Assessments for the General Public"]
["Application Rate:",{"$f":"'A01'!ApRt_C","v":2}," lb a.e./acre",null,null,"E03aV6"]
["Scenario","Receptor","mg/kg/day or mg/kg/event",null,null,"Detail Worksheet"]
[null,null,"Central","Lower","Upper"]
["Accidental Acute Exposures (dose in mg/kg/event)"]
["Direct Spray of Child, whole body","Child","No exposure assessment.",null,null,null,null,null,"Spray: Child"]
["Direct Spray of Woman, feet and lower legs","Adult Female","No exposure assessment.",null,null,null,null,null,"Spray: Woman"]
["Water consumption (spill)","Child",{"$f":"'D05'!Dose_C","v":5.8128299472084456E-4},{"$f":"'D05'!Dose_L","v":1.7774513074495111E-5},{"$f":"'D05'!Dose_U","v":1.495636902475166E-2},"D05",null,null,"Water: Child"]
["Fish consumption (spill)","Adult Male",{"$f":"D08a!Dose_C","v":4.9209325714285712E-4},{"$f":"D08a!Dose_L","v":6.151165714285714E-5},{"$f":"D08a!Dose_U","v":4.9209325714285714E-3},"D08a",null,null,"Fish: Man"]
["Fish consumption (spill)","Subsistence Populations",{"$f":"D08b!Dose_C","v":2.3981759999999997E-3},{"$f":"D08b!Dose_L","v":2.9977199999999996E-4},{"$f":"D08b!Dose_U","v":2.3981759999999998E-2},"D08b",null,null,"Fish: Subsist"]
["Non-Accidental Acute Exposures (dose in mg/kg/event)"]
["Vegetation Contact, shorts and T-shirt","Adult Female","No exposure assessment.",null,null,null,null,null,"Contact: Female"]
["Contaminated Fruit","Adult Female","No exposure assessment.",null,null,null,null,null,"Fruit: Female"]
["Contaminated Vegetation","Adult Female","No exposure assessment.",null,null,null,null,null,"Veg: Female"]
["Swimming, one hour","Adult Female",{"$f":"'D11'!Dose_C","v":3.0987372454983368E-3},{"$f":"'D11'!Dose_L","v":3.8936920223582632E-4},{"$f":"'D11'!Dose_U","v":1.7009127070180648E-2},"D11",null,null,"Swim: Female"]
["Water consumption","Child",{"$f":"'D06'!Dose_C","v":5.8821368127980767E-5},{"$f":"'D06'!Dose_L","v":7.1945760419334832E-6},{"$f":"'D06'!Dose_U","v":3.0269390168048493E-4},"D06",null,null,"Water: Child"]
["Fish consumption","Adult Male",{"$f":"D09c!Dose_C","v":1.0594904827211895E-7},{"$f":"D09c!Dose_L","v":2.124404978152556E-8},{"$f":"D09c!Dose_U","v":3.6347483713792638E-7},"D09c",null,null,"Fish: Male"]
["Fish consumption","Subsistence Populations",{"$f":"D09d!Dose_C","v":5.1633396942741517E-7},{"$f":"D09d!Dose_L","v":1.0353112868211824E-7},{"$f":"D09d!Dose_U","v":1.7713647126341979E-6},"D09d",null,null,"Fish: Subsist"]
["Chronic/Longer Term Exposures (dose in mg/kg/day)"]
["Contaminated Fruit","Adult Female","No exposure assessment.",null,null,null,null,null,"Fruit: Female"]
["Contaminated Vegetation","Adult Female","No exposure assessment.",null,null,null,null,null,"Veg: Female"]
["Water consumption","Adult Male",{"$f":"'D07'!Dose_C","v":1.8858065799231014E-6},{"$f":"'D07'!Dose_L","v":5.7664328761088794E-8},{"$f":"'D07'!Dose_U","v":1.940866298846652E-5},"D07",null,null,"Water: Male"]
["Fish consumption","Adult Male",{"$f":"D09a!Dose_C","v":2.1498195011123355E-10},{"$f":"D09a!Dose_L","v":1.0776612260269054E-11},{"$f":"D09a!Dose_U","v":1.4750583871234554E-9},"D09a",null,null,"Fish: Male"]
["Fish consumption","Subsistence Populations",{"$f":"D09b!Dose_C","v":1.7413537959009918E-9},{"$f":"D09b!Dose_L","v":8.729055930817933E-11},{"$f":"D09b!Dose_U","v":1.1947972935699989E-8},"D09b",null,null,"Fish: Subsist"]

{"sheet":"E04","index":25,"n_rows":24,"n_cols":9,"rows_kept":24,"cut":false,"hidden":false,"merged":[[0,0,0,5],[1,2,1,4],[2,0,3,0],[2,1,3,1],[2,2,2,4],[2,5,3,5],[12,2,12,4],[13,2,13,4],[19,2,19,4],[20,2,20,4],[5,2,5,4],[6,2,6,4],[11,2,11,4]]}
["Worksheet E03: Summary of Hazard Quotients (Toxicity) for the General Public"]
["Application Rate:",{"$f":"'A01'!ApRt_C","v":2}," lb a.e./acre",null,null,"E03aV6"]
["Scenario","Receptor","Hazard Quotients",null,null,"Toxicity Value"]
[null,null,"Central","Lower","Upper"]
["Accidental Acute Exposures (dose in mg/kg/event)"]
["Direct Spray of Child, whole body","Child","No exposure assessment.",null,null,null,null,null,"Spray: Child"]
["Direct Spray of Woman, feet and lower legs","Adult Female","No exposure assessment.",null,null,null,null,null,"Spray: Woman"]
["Water consumption (spill)","Child",{"$f":"'D05'!$C$16/$F$8","v":2.3251319788833782E-2},{"$f":"'D05'!$C$17/$F$8","v":7.1098052297980437E-4},{"$f":"'D05'!$C$18/$F$8","v":0.59825476099006636},{"$f":"'B02'!$E$4","v":2.5000000000000001E-2},null,null,"Water: Child"]
["Fish consumption (spill)","Adult Male",{"$f":"D08a!$C$45/$F$9","v":1.9683730285714282E-2},{"$f":"D08a!$C$46/$F$9","v":2.4604662857142853E-3},{"$f":"D08a!$C$47/$F$9","v":0.19683730285714285},{"$f":"'B02'!$E$4","v":2.5000000000000001E-2},null,null,"Fish: Man"]
["Fish consumption (spill)","Subsistence Populations",{"$f":"D08b!$C$45/$F$10","v":9.5927039999999977E-2},{"$f":"D08b!$C$46/$F$10","v":1.1990879999999997E-2},{"$f":"D08b!$C$47/$F$10","v":0.95927039999999986},{"$f":"'B02'!$E$4","v":2.5000000000000001E-2},null,null,"Fish: Subsist"]
["Non-Accidental Acute Exposures (dose in mg/kg/event)"]
["Vegetation Contact, shorts and T-shirt","Adult Female","No exposure assessment.",null,null,null,null,null,"Contact: Female"]
["Contaminated Fruit","Adult Female","No exposure assessment.",null,null,null,null,null,"Fruit: Female"]
["Contaminated Vegetation","Adult Female","No exposure assessment.",null,null,null,null,null,"Veg: Female"]
["Swimming, one hour","Adult Female",{"$f":"'D11'!$C$24/$F$15","v":0.12394948981993346},{"$f":"'D11'!$C$25/$F$15","v":1.5574768089433052E-2},{"$f":"'D11'!$C$26/$F$15","v":0.68036508280722585},{"$f":"'B02'!$E$4","v":2.5000000000000001E-2},null,null,"Swim: Female"]
["Water consumption","Child",{"$f":"'D06'!$C$20/$F$16","v":2.3528547251192304E-3},{"$f":"'D06'!$C$21/$F$16","v":2.8778304167733932E-4},{"$f":"'D06'!$C$22/$F$16","v":1.2107756067219396E-2},{"$f":"'B02'!$E$4","v":2.5000000000000001E-2},null,null,"Water: Child"]
["Fish consumption","Adult Male",{"$f":"D09c!$C$28/$F$17","v":4.2379619308847578E-6},{"$f":"D09c!$C$29/$F$17","v":8.4976199126102239E-7},{"$f":"D09c!$C$30/$F$17","v":1.4538993485517054E-5},{"$f":"'B02'!$E$4","v":2.5000000000000001E-2},null,null,"Fish: Male"]
["Fish consumption","Subsistence Populations",{"$f":"D09d!$C$28/$F$18","v":2.0653358777096604E-5},{"$f":"D09d!$C$29/$F$18","v":4.1412451472847291E-6},{"$f":"D09d!$C$30/$F$18","v":7.0854588505367915E-5},{"$f":"'B02'!$E$4","v":2.5000000000000001E-2},null,null,"Fish: Subsist"]
["Chronic/Longer Term Exposures (dose in mg/kg/day)"]
["Contaminated Fruit","Adult Female","No exposure assessment.",null,null,null,null,null,"Fruit: Female"]
["Contaminated Vegetation","Adult Female","No exposure assessment.",null,null,null,null,null,"Veg: Female"]
["Water consumption","Adult Male",{"$f":"'D07'!$C$20/$F$22","v":1.5715054832692512E-4},{"$f":"'D07'!$C$21/$F$22","v":4.8053607300907327E-6},{"$f":"'D07'!$C$22/$F$22","v":1.6173885823722099E-3},{"$f":"'B02'!$E$3","v":1.2E-2},null,null,"Water: Male"]
["Fish consumption","Adult Male",{"$f":"D09a!$C$28/$F$23","v":1.7915162509269461E-8},{"$f":"D09a!$C$29/$F$23","v":8.9805102168908783E-10},{"$f":"D09a!$C$30/$F$23","v":1.2292153226028795E-7},{"$f":"'B02'!$E$3","v":1.2E-2},null,null,"Fish: Male"]
["Fish consumption","Subsistence Populations",{"$f":"D09b!$C$28/$F$24","v":1.4511281632508265E-7},{"$f":"D09b!$C$29/$F$24","v":7.2742132756816109E-9},{"$f":"D09b!$C$30/$F$24","v":9.956644113083323E-7},{"$f":"'B02'!$E$3","v":1.2E-2},null,null,"Fish: Subsist"]

{"sheet":"F02a","index":26,"n_rows":24,"n_cols":5,"rows_kept":24,"cut":false,"hidden":false,"merged":[[16,0,19,0],[20,0,23,0],[0,0,0,4],[1,1,1,3],[2,1,2,3],[5,0,8,0],[11,0,13,0],[14,0,15,0]]}
["Acute exposure of Small Mammal after an accidental spill of the pesticide into a pond"]
["Short Title","Water consumption, accidental spill",null,null,"WatSpillAlloV6"]
["Receptor","Small Mammal"]
["Duration","Acute"]
["Parameter/Assumption","Code / Range","Equation/   Value","Units","Reference/Designation"]
["Concentration in pond water","ConcWat"]
[null,"Central ",{"$f":"B04b!Water_C","v":7.7310638297872335E-3},"mg/L","='B04b'!Water_C"]
[null,"Lower ",{"$f":"B04b!Water_L","v":3.8754266211604097E-4},null,"='B04b'!Water_L"]
[null,"Upper ",{"$f":"B04b!Water_U","v":0.13261313868613139},null,"='B04b'!Water_U"]
["Receptor"]
["Body weight","BW",{"$f":"'A02'!$C$116","v":0.02},"kg","Default"]
["Allometric coefficients forwater consumption per day in liters and BW in kilograms"]
[null,"alpha",{"$f":"'A02'!$C$124","v":9.9000000000000005E-2},null,"U.S. EPA/ORD 1993"]
[null,"beta",{"$f":"'A02'!$C$125","v":0.9},null,"U.S. EPA/ORD 1993"]
["Amount of water consumed per day",null,"Amnt = alpha BW beta"]
[null,"Amnt",{"$f":"C13*(C11^C14)","v":2.9279401205240612E-3},"liters","Eq"]
["Toxic Equivalency Factor for formulation:  (See risk assessment if this has a value other than 1.)","TEF"]
[null,"Central ",{"$f":"'A01'!C$35","v":1},"unitless","Worksheet A01"]
[null,"Lower ",{"$f":"'A01'!C$36","v":1},null,"Worksheet A01"]
[null,"Upper ",{"$f":"'A01'!C$37","v":1},null,"Worksheet A01"]
["Absorbed Dose","Dose","ConcWat  × Amnt ÷ BW"]
[null,"Central ",{"$f":"C7*C$16/C$11","v":1.131804598078322E-3},"mg/kg","Eq"]
[null,"Lower ",{"$f":"C8*C$16/C$11","v":5.6735085441212832E-5},"mg/kg","Eq"]
[null,"Upper ",{"$f":"C9*C$16/C$11","v":1.941416646338728E-2},"mg/kg","Eq"]

{"sheet":"F02b","index":27,"n_rows":24,"n_cols":5,"rows_kept":24,"cut":false,"hidden":false,"merged":[[16,0,19,0],[20,0,23,0],[0,0,0,4],[1,1,1,3],[2,1,2,3],[5,0,8,0],[11,0,13,0],[14,0,15,0]]}
["Acute exposure of 400 gram mammal (e.g., squirrel) after an accidental spill of the pesticide into a pond"]
["Short Title","Water consumption, accidental spill",null,null,"WatSpillAlloV6"]
["Receptor","400 gram mammal (e.g., squirrel)"]
["Duration","Acute"]
["Parameter/Assumption","Code / Range","Equation/   Value","Units","Reference/Designation"]
["Concentration in pond water","ConcWat"]
[null,"Central ",{"$f":"B04b!Water_C","v":7.7310638297872335E-3},"mg/L","='B04b'!Water_C"]
[null,"Lower ",{"$f":"B04b!Water_L","v":3.8754266211604097E-4},null,"='B04b'!Water_L"]
[null,"Upper ",{"$f":"B04b!Water_U","v":0.13261313868613139},null,"='B04b'!Water_U"]
["Receptor"]
["Body weight","BW",{"$f":"'A02'!$C$85","v":0.4},"kg","Default"]
["Allometric coefficients forwater consumption per day in liters and BW in kilograms"]
[null,"alpha",{"$f":"'A02'!$C$90","v":9.9000000000000005E-2},null,"U.S. EPA/ORD 1993"]
[null,"beta",{"$f":"'A02'!$C$91","v":0.9},null,"U.S. EPA/ORD 1993"]
["Amount of water consumed per day",null,"Amnt = alpha BW beta"]
[null,"Amnt",{"$f":"C13*(C11^C14)","v":4.3399945764854612E-2},"liters","Eq"]
["Toxic Equivalency Factor for formulation:  (See risk assessment if this has a value other than 1.)","TEF"]
[null,"Central ",{"$f":"'A01'!C$35","v":1},"unitless","Worksheet A01"]
[null,"Lower ",{"$f":"'A01'!C$36","v":1},null,"Worksheet A01"]
[null,"Upper ",{"$f":"'A01'!C$37","v":1},null,"Worksheet A01"]
["Absorbed Dose","Dose","ConcWat  × Amnt ÷ BW"]
[null,"Central ",{"$f":"C7*C$16/C$11","v":8.3881937729348777E-4},"mg/kg","Eq"]
[null,"Lower ",{"$f":"C8*C$16/C$11","v":4.204832629350889E-5},"mg/kg","Eq"]
[null,"Upper ",{"$f":"C9*C$16/C$11","v":1.4388507566713112E-2},"mg/kg","Eq"]

{"sheet":"F02c","index":28,"n_rows":24,"n_cols":5,"rows_kept":24,"cut":false,"hidden":false,"merged":[[16,0,19,0],[20,0,23,0],[0,0,0,4],[1,1,1,3],[2,1,2,3],[5,0,8,0],[11,0,13,0],[14,0,15,0]]}
["Acute exposure of Carnivorous mammal after an accidental spill of the pesticide into a pond"]
["Short Title","Water consumption, accidental spill",null,null,"WatSpillAlloV6"]
["Receptor","Carnivorous mammal"]
["Duration","Acute"]
["Parameter/Assumption","Code / Range","Equation/   Value","Units","Reference/Designation"]
["Concentration in pond water","ConcWat"]
[null,"Central ",{"$f":"B04b!Water_C","v":7.7310638297872335E-3},"mg/L","='B04b'!Water_C"]
[null,"Lower ",{"$f":"B04b!Water_L","v":3.8754266211604097E-4},null,"='B04b'!Water_L"]
[null,"Upper ",{"$f":"B04b!Water_U","v":0.13261313868613139},null,"='B04b'!Water_U"]
["Receptor"]
["Body weight","BW",{"$f":"'A02'!$C$92","v":5},"kg","U.S. EPA/ORD 1993"]
["Allometric coefficients forwater consumption per day in liters and BW in kilograms"]
[null,"alpha",{"$f":"'A02'!$C$95","v":9.9000000000000005E-2},null,"U.S. EPA/ORD 1993"]
[null,"beta",{"$f":"'A02'!$C$96","v":0.9},null,"U.S. EPA/ORD 1993"]
["Amount of water consumed per day",null,"Amnt = alpha BW beta"]
[null,"Amnt",{"$f":"C13*(C11^C14)","v":0.42141326164778842},"liters","Eq"]
["Toxic Equivalency Factor for formulation:  (See risk assessment if this has a value other than 1.)","TEF"]
[null,"Central ",{"$f":"'A01'!C$35","v":1},"unitless","Worksheet A01"]
[null,"Lower ",{"$f":"'A01'!C$36","v":1},null,"Worksheet A01"]
[null,"Upper ",{"$f":"'A01'!C$37","v":1},null,"Worksheet A01"]
["Absorbed Dose","Dose","ConcWat  × Amnt ÷ BW"]
[null,"Central ",{"$f":"C7*C$16/C$11","v":6.5159456490357609E-4},"mg/kg","Eq"]
[null,"Lower ",{"$f":"C8*C$16/C$11","v":3.2663123453997522E-5},"mg/kg","Eq"]
[null,"Upper ",{"$f":"C9*C$16/C$11","v":1.1176987062214629E-2},"mg/kg","Eq"]

{"sheet":"F02d","index":29,"n_rows":24,"n_cols":5,"rows_kept":24,"cut":false,"hidden":false,"merged":[[16,0,19,0],[20,0,23,0],[0,0,0,4],[1,1,1,3],[2,1,2,3],[5,0,8,0],[11,0,13,0],[14,0,15,0]]}
["Acute exposure of Large Mammal after an accidental spill of the pesticide into a pond"]
["Short Title","Water consumption, accidental spill",null,null,"WatSpillAlloV6"]
["Receptor","Large Mammal"]
["Duration","Acute"]
["Parameter/Assumption","Code / Range","Equation/   Value","Units","Reference/Designation"]
["Concentration in pond water","ConcWat"]
[null,"Central ",{"$f":"B04b!Water_C","v":7.7310638297872335E-3},"mg/L","='B04b'!Water_C"]
[null,"Lower ",{"$f":"B04b!Water_L","v":3.8754266211604097E-4},null,"='B04b'!Water_L"]
[null,"Upper ",{"$f":"B04b!Water_U","v":0.13261313868613139},null,"='B04b'!Water_U"]
["Receptor"]
["Body weight","BW",{"$f":"'A02'!$C$106","v":70},"kg","Default"]
["Allometric coefficients forwater consumption per day in liters and BW in kilograms"]
[null,"alpha",{"$f":"'A02'!$C$109","v":9.9000000000000005E-2},null,"U.S. EPA/ORD 1993"]
[null,"beta",{"$f":"'A02'!$C$110","v":0.9},null,"U.S. EPA/ORD 1993"]
["Amount of water consumed per day",null,"Amnt = alpha BW beta"]
[null,"Amnt",{"$f":"C13*(C11^C14)","v":4.5313064115862725},"liters","Eq"]
["Toxic Equivalency Factor for formulation:  (See risk assessment if this has a value other than 1.)","TEF"]
[null,"Central ",{"$f":"'A01'!C$35","v":1},"unitless","Worksheet A01"]
[null,"Lower ",{"$f":"'A01'!C$36","v":1},null,"Worksheet A01"]
[null,"Upper ",{"$f":"'A01'!C$37","v":1},null,"Worksheet A01"]
["Absorbed Dose","Dose","ConcWat  × Amnt ÷ BW"]
[null,"Central ",{"$f":"C7*C$16/C$11","v":5.0045455857568018E-4},"mg/kg","Eq"]
[null,"Lower ",{"$f":"C8*C$16/C$11","v":2.5086779280137554E-5},"mg/kg","Eq"]
[null,"Upper ",{"$f":"C9*C$16/C$11","v":8.5844395084149535E-3},"mg/kg","Eq"]

{"sheet":"F02e","index":30,"n_rows":24,"n_cols":5,"rows_kept":24,"cut":false,"hidden":false,"merged":[[16,0,19,0],[20,0,23,0],[0,0,0,4],[1,1,1,3],[2,1,2,3],[5,0,8,0],[11,0,13,0],[14,0,15,0]]}
["Acute exposure of Small Bird after an accidental spill of the pesticide into a pond"]
["Short Title","Water consumption, accidental spill",null,null,"WatSpillAlloV6"]
["Receptor","Small Bird"]
["Duration","Acute"]
["Parameter/Assumption","Code / Range","Equation/   Value","Units","Reference/Designation"]
["Concentration in pond water","ConcWat"]
[null,"Central ",{"$f":"B04b!Water_C","v":7.7310638297872335E-3},"mg/L","='B04b'!Water_C"]
[null,"Lower ",{"$f":"B04b!Water_L","v":3.8754266211604097E-4},null,"='B04b'!Water_L"]
[null,"Upper ",{"$f":"B04b!Water_U","v":0.13261313868613139},null,"='B04b'!Water_U"]
["Receptor"]
["Body weight","BW",{"$f":"'A02'!$C$54","v":0.01},"kg","Default"]
["Allometric coefficients forwater consumption per day in liters and BW in kilograms"]
[null,"alpha",{"$f":"'A02'!$C$57","v":5.8999999999999997E-2},null,"U.S. EPA/ORD 1993"]
[null,"beta",{"$f":"'A02'!$C$58","v":0.67},null,"U.S. EPA/ORD 1993"]
["Amount of water consumed per day",null,"Amnt = alpha BW beta"]
[null,"Amnt",{"$f":"C13*(C11^C14)","v":2.6968203187277624E-3},"liters","Eq"]
["Toxic Equivalency Factor for formulation:  (See risk assessment if this has a value other than 1.)","TEF"]
[null,"Central ",{"$f":"'A01'!C$35","v":1},"unitless","Worksheet A01"]
[null,"Lower ",{"$f":"'A01'!C$36","v":1},null,"Worksheet A01"]
[null,"Upper ",{"$f":"'A01'!C$37","v":1},null,"Worksheet A01"]
["Absorbed Dose","Dose","ConcWat  × Amnt ÷ BW"]
[null,"Central ",{"$f":"C7*C$16/C$11","v":2.0849290021551481E-3},"mg/kg","Eq"]
[null,"Lower ",{"$f":"C8*C$16/C$11","v":1.0451329255683871E-4},"mg/kg","Eq"]
[null,"Upper ",{"$f":"C9*C$16/C$11","v":3.5763380693902183E-2},"mg/kg","Eq"]

{"sheet":"F02f","index":31,"n_rows":24,"n_cols":5,"rows_kept":24,"cut":false,"hidden":false,"merged":[[16,0,19,0],[20,0,23,0],[0,0,0,4],[1,1,1,3],[2,1,2,3],[5,0,8,0],[11,0,13,0],[14,0,15,0]]}
["Acute exposure of Large Bird after an accidental spill of the pesticide into a pond"]
["Short Title","Water consumption, accidental spill",null,null,"WatSpillAlloV6"]
["Receptor","Large Bird"]
["Duration","Acute"]
["Parameter/Assumption","Code / Range","Equation/   Value","Units","Reference/Designation"]
["Concentration in pond water","ConcWat"]
[null,"Central ",{"$f":"B04b!Water_C","v":7.7310638297872335E-3},"mg/L","='B04b'!Water_C"]
[null,"Lower ",{"$f":"B04b!Water_L","v":3.8754266211604097E-4},null,"='B04b'!Water_L"]
[null,"Upper ",{"$f":"B04b!Water_U","v":0.13261313868613139},null,"='B04b'!Water_U"]
["Receptor"]
["Body weight","BW",{"$f":"'A02'!$C$38","v":4},"kg","Default"]
["Allometric coefficients forwater consumption per day in liters and BW in kilograms"]
[null,"alpha",{"$f":"'A02'!$C$41","v":5.8999999999999997E-2},null,"U.S. EPA/ORD 1993"]
[null,"beta",{"$f":"'A02'!$C$42","v":0.67},null,"U.S. EPA/ORD 1993"]
["Amount of water consumed per day",null,"Amnt = alpha BW beta"]
[null,"Amnt",{"$f":"C13*(C11^C14)","v":0.14935927808849303},"liters","Eq"]
["Toxic Equivalency Factor for formulation:  (See risk assessment if this has a value other than 1.)","TEF"]
[null,"Central ",{"$f":"'A01'!C$35","v":1},"unitless","Worksheet A01"]
[null,"Lower ",{"$f":"'A01'!C$36","v":1},null,"Worksheet A01"]
[null,"Upper ",{"$f":"'A01'!C$37","v":1},null,"Worksheet A01"]
["Absorbed Dose","Dose","ConcWat  × Amnt ÷ BW"]
[null,"Central ",{"$f":"C7*C$16/C$11","v":2.8867652811827033E-4},"mg/kg","Eq"]
[null,"Lower ",{"$f":"C8*C$16/C$11","v":1.4470773060536164E-5},"mg/kg","Eq"]
[null,"Upper ",{"$f":"C9*C$16/C$11","v":4.9517506648024479E-3},"mg/kg","Eq"]

{"sheet":"F03a","index":32,"n_rows":49,"n_cols":5,"rows_kept":49,"cut":false,"hidden":false,"merged":[[36,0,39,0],[41,0,44,0],[45,0,48,0],[12,0,15,0],[16,0,19,0],[22,0,24,0],[27,0,28,0],[30,0,31,0],[32,0,33,0],[7,0,10,0],[0,0,0,4],[1,1,1,3],[2,1,2,3],[3,1,3,3],[4,1,4,3]]}
["Acute scenario for the consumption of contaminated Fish by Large Carnivorous Mammal after an accidental spill of the pesticide into a pond"]
["Short Title","Fish consumption, accidental spill",null,null,"FishKcalPondSpillAcV6"]
["Predator","Large Carnivorous Mammal"]
["Food Item (Prey)","Fish"]
["Duration","Acute"]
["Parameter/Assumption","Code / Range","Equation/   Value","Units","Reference/Designation"]
["Pond"]
["Concentration in pond water","ConcWat"]
[null,"Central ",{"$f":"B04b!Water_C","v":7.7310638297872335E-3},"mg/L","='B04b'!Water_C"]
[null,"Lower ",{"$f":"B04b!Water_L","v":3.8754266211604097E-4},null,"='B04b'!Water_L"]
[null,"Upper ",{"$f":"B04b!Water_U","v":0.13261313868613139},null,"='B04b'!Water_U"]
["Fish"]
["Bioconcentration factor","BCF"]
[null,"Central ",{"$f":"'B01'!$C$5","v":0.83},"L/kg","Section 3.2.3.5."]
[null,"Lower ",{"$f":"'B01'!$C$5","v":0.83},null,"Section 3.2.3.5."]
[null,"Upper ",{"$f":"'B01'!$C$5","v":0.83},null,"Section 3.2.3.5."]
["Concentration in fish","ConcFish","ConcWat × BCF"]
[null,"Central ",{"$f":"C9*C14","v":6.4167829787234038E-3},"mg/kg","Eq"]
[null,"Lower ",{"$f":"C10*C15","v":3.2166040955631397E-4},null,"Eq"]
[null,"Upper ",{"$f":"C11*C16","v":0.11006890510948905},null,"Eq"]
["Receptor"]
["Body weight","BW",{"$f":"'A02'!$C$97","v":70},"kg","Reid 2006"]
["Allometric coefficients for caloric requirement per day in kilocalories and BW in grams"]
[null,"alpha",{"$f":"'A02'!$C$98","v":0.61670000000000003},null,"U.S. EPA/ORD 1993"]
[null,"beta",{"$f":"'A02'!$C$99","v":0.86199999999999999},null,"U.S. EPA/ORD 1993"]
["Caloric requirement per day","KR",{"$f":"C24*(C22*1000)^C25","v":9258.6668828796119},"kcal/day","Eq"]
["Caloric content of commodity (dry weight)","KCD",4.47,"kcal/gdw [Note 1]","WkMk Documentation"]
["Food consumed per day (dry weight)","AmntDry"," = KR ÷ KCD"]
[null,null,{"$f":"C26/C27","v":2071.2901303981234},"gdry/day","Eq"]
["Water content of vegetation as a proportion","PropWater",0.7,"gwater/gfood","WkMk Documentation"]
["Dry weight content of vegetation as a proportion","PropDry"," = 1-PropWater"]
[null,null,{"$f":"1-C30","v":0.30000000000000004},"gdry/gfood","Eq"]
["Amount of fish consumed per day,  wet weight","AmntFish"," = (AmntDry ÷ PropDry) ÷ (1000g/kg)"]
[null,"Central ",{"$f":"(C29/C32)/1000","v":6.90430043466041},"kgfood/day","Eq"]
[null,"Lower ",{"$f":"C34*0.3","v":2.0712901303981228},"Note 1","Eq"]
[null,"Upper ",{"$f":"C34*1.7","v":11.737310738922696},"Note 1","Eq"]
["Proportion of diet that is contaminated","Prop"]
[null,"Central ",0.3,"Unitless","Scenario parameter"]
[null,"Lower ",0.1,null,"Scenario parameter"]
[null,"Upper ",1,null,"Scenario parameter"]
["Dose"]
["Toxic Equivalency Factor for formulation:  (See risk assessment if this has a value other than 1.)","TEF"]
[null,"Central ",{"$f":"'A01'!C$35","v":1},"Unitless","Worksheet A01"]
[null,"Lower ",{"$f":"'A01'!C$36","v":1},"Note 2","Worksheet A01"]
[null,"Upper ",{"$f":"'A01'!C$37","v":1},"Note 2","Worksheet A01"]
["Dose","Dose","= ConcFish × AmntFish × Prop ÷ BW"]
[null,"Central ",{"$f":"C18*C34*C38/C$22","v":1.8987170361052077E-4},"mg/kg","Eq"]
[null,"Lower ",{"$f":"C19*C35*C39/C$22","v":9.5178861664830169E-7},"mg/kg","Eq"]
[null,"Upper ",1.8455899170900986E-2,"mg/kg","Eq"]

{"sheet":"F03b","index":33,"n_rows":49,"n_cols":5,"rows_kept":49,"cut":false,"hidden":false,"merged":[[36,0,39,0],[41,0,44,0],[45,0,48,0],[12,0,15,0],[16,0,19,0],[22,0,24,0],[27,0,28,0],[30,0,31,0],[32,0,33,0],[7,0,10,0],[0,0,0,4],[1,1,1,3],[2,1,2,3],[3,1,3,3],[4,1,4,3]]}
["Acute scenario for the consumption of contaminated Fish by Carnivorous mammal after an accidental spill of the pesticide into a pond"]
["Short Title","Fish consumption, accidental spill",null,null,"FishKcalPondSpillAcV6"]
["Predator","Carnivorous mammal"]
["Food Item (Prey)","Fish"]
["Duration","Acute"]
["Parameter/Assumption","Code / Range","Equation/   Value","Units","Reference/Designation"]
["Pond"]
["Concentration in pond water","ConcWat"]
[null,"Central ",{"$f":"B04b!Water_C","v":7.7310638297872335E-3},"mg/L","='B04b'!Water_C"]
[null,"Lower ",{"$f":"B04b!Water_L","v":3.8754266211604097E-4},null,"='B04b'!Water_L"]
[null,"Upper ",{"$f":"B04b!Water_U","v":0.13261313868613139},null,"='B04b'!Water_U"]
["Fish"]
["Bioconcentration factor","BCF"]
[null,"Central ",{"$f":"'B01'!$C$5","v":0.83},"L/kg","Section 3.2.3.5."]
[null,"Lower ",{"$f":"'B01'!$C$5","v":0.83},null,"Section 3.2.3.5."]
[null,"Upper ",{"$f":"'B01'!$C$5","v":0.83},null,"Section 3.2.3.5."]
["Concentration in fish","ConcFish","ConcWat × BCF"]
[null,"Central ",{"$f":"C9*C14","v":6.4167829787234038E-3},"mg/kg","Eq"]
[null,"Lower ",{"$f":"C10*C15","v":3.2166040955631397E-4},null,"Eq"]
[null,"Upper ",{"$f":"C11*C16","v":0.11006890510948905},null,"Eq"]
["Receptor"]
["Body weight","BW",{"$f":"'A02'!$C$92","v":5},"kg","U.S. EPA/ORD 1993"]
["Allometric coefficients for caloric requirement per day in kilocalories and BW in grams"]
[null,"alpha",{"$f":"'A02'!$C$93","v":0.61670000000000003},null,"U.S. EPA/ORD 1993"]
[null,"beta",{"$f":"'A02'!$C$94","v":0.86199999999999999},null,"U.S. EPA/ORD 1993"]
["Caloric requirement per day","KR",{"$f":"C24*(C22*1000)^C25","v":951.88852658889334},"kcal/day","Eq"]
["Caloric content of commodity (dry weight)","KCD",4.47,"kcal/gdw [Note 1]","WkMk Documentation"]
["Food consumed per day (dry weight)","AmntDry"," = KR ÷ KCD"]
[null,null,{"$f":"C26/C27","v":212.95045337559137},"gdry/day","Eq"]
["Water content of vegetation as a proportion","PropWater",0.7,"gwater/gfood","WkMk Documentation"]
["Dry weight content of vegetation as a proportion","PropDry"," = 1-PropWater"]
[null,null,{"$f":"1-C30","v":0.30000000000000004},"gdry/gfood","Eq"]
["Amount of fish consumed per day,  wet weight","AmntFish"," = (AmntDry ÷ PropDry) ÷ (1000g/kg)"]
[null,"Central ",{"$f":"(C29/C32)/1000","v":0.70983484458530455},"kgfood/day","Eq"]
[null,"Lower ",{"$f":"C34*0.3","v":0.21295045337559135},"Note 1","Eq"]
[null,"Upper ",{"$f":"C34*1.7","v":1.2067192357950176},"Note 1","Eq"]
["Proportion of diet that is contaminated","Prop"]
[null,"Central ",0.3,"Unitless","Scenario parameter"]
[null,"Lower ",0.1,null,"Scenario parameter"]
[null,"Upper ",1,null,"Scenario parameter"]
["Dose"]
["Toxic Equivalency Factor for formulation:  (See risk assessment if this has a value other than 1.)","TEF"]
[null,"Central ",{"$f":"'A01'!C$35","v":1},"Unitless","Worksheet A01"]
[null,"Lower ",{"$f":"'A01'!C$36","v":1},"Note 2","Worksheet A01"]
[null,"Upper ",{"$f":"'A01'!C$37","v":1},"Note 2","Worksheet A01"]
["Dose","Dose","= ConcFish × AmntFish × Prop ÷ BW"]
[null,"Central ",{"$f":"C18*C34*C38/C$22","v":2.7329136890638531E-4},"mg/kg","Eq"]
[null,"Lower ",{"$f":"C19*C35*C39/C$22","v":1.3699546009599091E-6},"mg/kg","Eq"]
[null,"Upper ",2.6564453011703387E-2,"mg/kg","Eq"]

{"sheet":"F03c","index":34,"n_rows":49,"n_cols":5,"rows_kept":49,"cut":false,"hidden":false,"merged":[[36,0,39,0],[41,0,44,0],[45,0,48,0],[12,0,15,0],[16,0,19,0],[22,0,24,0],[27,0,28,0],[30,0,31,0],[32,0,33,0],[7,0,10,0],[0,0,0,4],[1,1,1,3],[2,1,2,3],[3,1,3,3],[4,1,4,3]]}
["Acute scenario for the consumption of contaminated Fish by Bird (piscivorous) after an accidental spill of the pesticide into a pond"]
["Short Title","Fish consumption, accidental spill",null,null,"FishKcalPondSpillAcV6"]
["Predator","Bird (piscivorous)"]
["Food Item (Prey)","Fish"]
["Duration","Acute"]
["Parameter/Assumption","Code / Range","Equation/   Value","Units","Reference/Designation"]
["Pond"]
["Concentration in pond water","ConcWat"]
[null,"Central ",{"$f":"B04b!Water_C","v":7.7310638297872335E-3},"mg/L","='B04b'!Water_C"]
[null,"Lower ",{"$f":"B04b!Water_L","v":3.8754266211604097E-4},null,"='B04b'!Water_L"]
[null,"Upper ",{"$f":"B04b!Water_U","v":0.13261313868613139},null,"='B04b'!Water_U"]
["Fish"]
["Bioconcentration factor","BCF"]
[null,"Central ",{"$f":"'B01'!$C$5","v":0.83},"L/kg","Section 3.2.3.5."]
[null,"Lower ",{"$f":"'B01'!$C$5","v":0.83},null,"Section 3.2.3.5."]
[null,"Upper ",{"$f":"'B01'!$C$5","v":0.83},null,"Section 3.2.3.5."]
["Concentration in fish","ConcFish","ConcWat × BCF"]
[null,"Central ",{"$f":"C9*C14","v":6.4167829787234038E-3},"mg/kg","Eq"]
[null,"Lower ",{"$f":"C10*C15","v":3.2166040955631397E-4},null,"Eq"]
[null,"Upper ",{"$f":"C11*C16","v":0.11006890510948905},null,"Eq"]
["Receptor"]
["Body weight","BW",{"$f":"'A02'!$C$47","v":2.4},"kg","Sibley 2000"]
["Allometric coefficients for caloric requirement per day in kilocalories and BW in grams"]
[null,"alpha",{"$f":"'A02'!$C$50","v":1.9159999999999999},null,"U.S. EPA/ORD 1993"]
[null,"beta",{"$f":"'A02'!$C$51","v":0.70399999999999996},null,"U.S. EPA/ORD 1993"]
["Caloric requirement per day","KR",{"$f":"C24*(C22*1000)^C25","v":459.26591923752829},"kcal/day","Eq"]
["Caloric content of commodity (dry weight)","KCD",3.87,"kcal/gdw [Note 1]","WkMk Documentation"]
["Food consumed per day (dry weight)","AmntDry"," = KR ÷ KCD"]
[null,null,{"$f":"C26/C27","v":118.67336414406415},"gdry/day","Eq"]
["Water content of vegetation as a proportion","PropWater",0.7,"gwater/gfood","WkMk Documentation"]
["Dry weight content of vegetation as a proportion","PropDry"," = 1-PropWater"]
[null,null,{"$f":"1-C30","v":0.30000000000000004},"gdry/gfood","Eq"]
["Amount of fish consumed per day,  wet weight","AmntFish"," = (AmntDry ÷ PropDry) ÷ (1000g/kg)"]
[null,"Central ",{"$f":"(C29/C32)/1000","v":0.39557788048021375},"kgfood/day","Eq"]
[null,"Lower ",{"$f":"C34*0.3","v":0.11867336414406413},"Note 1","Eq"]
[null,"Upper ",{"$f":"C34*1.7","v":0.67248239681636335},"Note 1","Eq"]
["Proportion of diet that is contaminated","Prop"]
[null,"Central ",0.3,"Unitless","Scenario parameter"]
[null,"Lower ",0.1,null,"Scenario parameter"]
[null,"Upper ",1,null,"Scenario parameter"]
["Dose"]
["Toxic Equivalency Factor for formulation:  (See risk assessment if this has a value other than 1.)","TEF"]
[null,"Central ",{"$f":"'A01'!C$35","v":1},"Unitless","Worksheet A01"]
[null,"Lower ",{"$f":"'A01'!C$36","v":1},"Note 2","Worksheet A01"]
[null,"Upper ",{"$f":"'A01'!C$37","v":1},"Note 2","Worksheet A01"]
["Dose","Dose","= ConcFish × AmntFish × Prop ÷ BW"]
[null,"Central ",{"$f":"C18*C34*C38/C$22","v":3.1729217627811455E-4},"mg/kg","Eq"]
[null,"Lower ",{"$f":"C19*C35*C39/C$22","v":1.5905217880835525E-6},"mg/kg","Eq"]
[null,"Upper ",3.0841417134575857E-2,"mg/kg","Eq"]

{"sheet":"F09a","index":35,"n_rows":44,"n_cols":5,"rows_kept":44,"cut":false,"hidden":false,"merged":[[36,0,39,0],[40,0,43,0],[7,0,10,0],[12,0,15,0],[16,0,19,0],[22,0,24,0],[27,0,30,0],[31,0,34,0],[0,0,0,4],[1,1,1,3],[2,1,2,3],[3,1,3,3],[4,1,4,3]]}
[" acute scenario for the consumption of contaminated Fish by Large Carnivorous Mammal after an accidental spill of the pesticide into a pond"]
["Short Title","Fish consumption, accidental spill",null,null,"FishKcalAmb"]
["Predator","Large Carnivorous Mammal"]
["Food Item (Prey)","Fish"]
["Duration","acute"]
["Parameter/Assumption","Code / Range","Equation/   Value","Units","Reference/Designation"]
["Surface Water"]
["Concentration in water","ConcWat","ApR × WCR"]
[null,"Central ",{"$f":"B04a!C18","v":7.8232419610214422E-4},"mg/L","B04a, acute"]
[null,"Lower ",{"$f":"B04a!C19","v":1.5686534648805793E-4},null,"B04a, acute"]
[null,"Upper ",{"$f":"B04a!C20","v":2.6838859282336332E-3},null,"B04a, acute"]
["Fish"]
["Bioconcentration factor","BCF"]
[null,"Central ",{"$f":"'B01'!$C$5","v":0.83},"L/kg","Section 3.2.3.5."]
[null,"Lower ",{"$f":"'B01'!$C$5","v":0.83},null,"Section 3.2.3.5."]
[null,"Upper ",{"$f":"'B01'!$C$5","v":0.83},null,"Section 3.2.3.5."]
["Concentration in fish","ConcFish","ConcWat × BCF"]
[null,"Central ",{"$f":"C9*C14","v":6.4932908276477965E-4},"mg/kg","Eq"]
[null,"Lower ",{"$f":"C10*C15","v":1.3019823758508807E-4},null,"Eq"]
[null,"Upper ",{"$f":"C11*C16","v":2.2276253204339155E-3},null,"Eq"]
["Receptor"]
["Body weight","BW",{"$f":"'A02'!$C$97","v":70},"kg","Reid 2006"]
["Allometric coefficients for caloric requirement per day in kilocalories and BW in grams"]
[null,"alpha",{"$f":"'A02'!$C$98","v":0.61670000000000003},null,"U.S. EPA/ORD 1993"]
[null,"beta",{"$f":"'A02'!$C$99","v":0.86199999999999999},null,"U.S. EPA/ORD 1993"]
["Caloric requirement per day","KR",{"$f":"C24*(C22*1000)^C25","v":9258.6668828796119},"kcal/day","Eq"]
["Caloric content of prey (wet  weight)","KCW",{"$f":"'A02'!$C$69","v":1.2},"kcal/g","U.S. EPA/ORD 1993"]
["Amount of food/prey consumed per day,  wet weight","Amnt","(KR ÷ KCW)/1000 g/kg"]
[null,"Central ",{"$f":"(C26/C27)/1000","v":7.7155557357330098},"kg","Eq"]
[null,"Lower ",{"$f":"C$29*0.3","v":2.3146667207199028},null,"Eq"]
[null,"Upper ",{"$f":"C$29*1.7","v":13.116444750746115},null,"Eq"]
["Proportion of diet that is contaminated","Prop"]
[null,"Central ",0.3,"Unitless","Scenario parameter"]
[null,"Lower ",0.1,null,"Scenario parameter"]
[null,"Upper ",1,null,"Scenario parameter"]
["Dose"]
["Toxic Equivalency Factor for formulation:  (See risk assessment if this has a value other than 1.)","TEF"]
[null,"Central ",{"$f":"'A01'!C$35","v":1},"Unitless","Worksheet A01"]
[null,"Lower ",{"$f":"'A01'!C$36","v":1},null,"Worksheet A01"]
[null,"Upper ",{"$f":"'A01'!C$37","v":1},null,"Worksheet A01"]
["Dose","Dose","ConcFish × Amnt × Prop × TEF ÷ BW"]
[null,"Central ",{"$f":"C18*C29*C33*C38/C$22","v":2.1471148838160213E-5},"mg/kg","Eq"]
[null,"Lower ",{"$f":"C19*C30*C34*C39/C$22","v":4.3052218233512371E-7},"mg/kg","Eq"]
[null,"Upper ",4.1740749201192237E-4,"mg/kg","Eq"]

{"sheet":"F09b","index":36,"n_rows":44,"n_cols":5,"rows_kept":44,"cut":false,"hidden":false,"merged":[[36,0,39,0],[40,0,43,0],[7,0,10,0],[12,0,15,0],[16,0,19,0],[22,0,24,0],[27,0,30,0],[31,0,34,0],[0,0,0,4],[1,1,1,3],[2,1,2,3],[3,1,3,3],[4,1,4,3]]}
[" acute scenario for the consumption of contaminated Fish by Carnivorous mammal after an accidental spill of the pesticide into a pond"]
["Short Title","Fish consumption, accidental spill",null,null,"FishKcalAmb"]
["Predator","Carnivorous mammal"]
["Food Item (Prey)","Fish"]
["Duration","acute"]
["Parameter/Assumption","Code / Range","Equation/   Value","Units","Reference/Designation"]
["Surface Water"]
["Concentration in water","ConcWat","ApR × WCR"]
[null,"Central ",{"$f":"B04a!C18","v":7.8232419610214422E-4},"mg/L","B04a, acute"]
[null,"Lower ",{"$f":"B04a!C19","v":1.5686534648805793E-4},null,"B04a, acute"]
[null,"Upper ",{"$f":"B04a!C20","v":2.6838859282336332E-3},null,"B04a, acute"]
["Fish"]
["Bioconcentration factor","BCF"]
[null,"Central ",{"$f":"'B01'!$C$5","v":0.83},"L/kg","Section 3.2.3.5."]
[null,"Lower ",{"$f":"'B01'!$C$5","v":0.83},null,"Section 3.2.3.5."]
[null,"Upper ",{"$f":"'B01'!$C$5","v":0.83},null,"Section 3.2.3.5."]
["Concentration in fish","ConcFish","ConcWat × BCF"]
[null,"Central ",{"$f":"C9*C14","v":6.4932908276477965E-4},"mg/kg","Eq"]
[null,"Lower ",{"$f":"C10*C15","v":1.3019823758508807E-4},null,"Eq"]
[null,"Upper ",{"$f":"C11*C16","v":2.2276253204339155E-3},null,"Eq"]
["Receptor"]
["Body weight","BW",{"$f":"'A02'!$C$92","v":5},"kg","U.S. EPA/ORD 1993"]
["Allometric coefficients for caloric requirement per day in kilocalories and BW in grams"]
[null,"alpha",{"$f":"'A02'!$C$93","v":0.61670000000000003},null,"U.S. EPA/ORD 1993"]
[null,"beta",{"$f":"'A02'!$C$94","v":0.86199999999999999},null,"U.S. EPA/ORD 1993"]
["Caloric requirement per day","KR",{"$f":"C24*(C22*1000)^C25","v":951.88852658889334},"kcal/day","Eq"]
["Caloric content of prey (wet  weight)","KCW",{"$f":"'A02'!$C$69","v":1.2},"kcal/g","U.S. EPA/ORD 1993"]
["Amount of food/prey consumed per day,  wet weight","Amnt","(KR ÷ KCW)/1000 g/kg"]
[null,"Central ",{"$f":"(C26/C27)/1000","v":0.7932404388240778},"kg","Eq"]
[null,"Lower ",{"$f":"C$29*0.3","v":0.23797213164722333},null,"Eq"]
[null,"Upper ",{"$f":"C$29*1.7","v":1.3485087460009322},null,"Eq"]
["Proportion of diet that is contaminated","Prop"]
[null,"Central ",0.3,"Unitless","Scenario parameter"]
[null,"Lower ",0.1,null,"Scenario parameter"]
[null,"Upper ",1,null,"Scenario parameter"]
["Dose"]
["Toxic Equivalency Factor for formulation:  (See risk assessment if this has a value other than 1.)","TEF"]
[null,"Central ",{"$f":"'A01'!C$35","v":1},"Unitless","Worksheet A01"]
[null,"Lower ",{"$f":"'A01'!C$36","v":1},null,"Worksheet A01"]
[null,"Upper ",{"$f":"'A01'!C$37","v":1},null,"Worksheet A01"]
["Dose","Dose","ConcFish × Amnt × Prop × TEF ÷ BW"]
[null,"Central ",{"$f":"C18*C29*C33*C38/C$22","v":3.0904445193214183E-5},"mg/kg","Eq"]
[null,"Lower ",{"$f":"C19*C30*C34*C39/C$22","v":6.1967104269670076E-7},"mg/kg","Eq"]
[null,"Upper ",6.0079444548365277E-4,"mg/kg","Eq"]

{"sheet":"F09c","index":37,"n_rows":44,"n_cols":5,"rows_kept":44,"cut":false,"hidden":false,"merged":[[36,0,39,0],[40,0,43,0],[7,0,10,0],[12,0,15,0],[16,0,19,0],[22,0,24,0],[27,0,30,0],[31,0,34,0],[0,0,0,4],[1,1,1,3],[2,1,2,3],[3,1,3,3],[4,1,4,3]]}
[" acute scenario for the consumption of contaminated Fish by Bird (piscivorous) after an accidental spill of the pesticide into a pond"]
["Short Title","Fish consumption, accidental spill",null,null,"FishKcalAmb"]
["Predator","Bird (piscivorous)"]
["Food Item (Prey)","Fish"]
["Duration","acute"]
["Parameter/Assumption","Code / Range","Equation/   Value","Units","Reference/Designation"]
["Surface Water"]
["Concentration in water","ConcWat","ApR × WCR"]
[null,"Central ",{"$f":"B04a!C18","v":7.8232419610214422E-4},"mg/L","B04a, acute"]
[null,"Lower ",{"$f":"B04a!C19","v":1.5686534648805793E-4},null,"B04a, acute"]
[null,"Upper ",{"$f":"B04a!C20","v":2.6838859282336332E-3},null,"B04a, acute"]
["Fish"]
["Bioconcentration factor","BCF"]
[null,"Central ",{"$f":"'B01'!$C$5","v":0.83},"L/kg","Section 3.2.3.5."]
[null,"Lower ",{"$f":"'B01'!$C$5","v":0.83},null,"Section 3.2.3.5."]
[null,"Upper ",{"$f":"'B01'!$C$5","v":0.83},null,"Section 3.2.3.5."]
["Concentration in fish","ConcFish","ConcWat × BCF"]
[null,"Central ",{"$f":"C9*C14","v":6.4932908276477965E-4},"mg/kg","Eq"]
[null,"Lower ",{"$f":"C10*C15","v":1.3019823758508807E-4},null,"Eq"]
[null,"Upper ",{"$f":"C11*C16","v":2.2276253204339155E-3},null,"Eq"]
["Receptor"]
["Body weight","BW",{"$f":"'A02'!$C$47","v":2.4},"kg","Sibley 2000"]
["Allometric coefficients for caloric requirement per day in kilocalories and BW in grams"]
[null,"alpha",{"$f":"'A02'!$C$50","v":1.9159999999999999},null,"U.S. EPA/ORD 1993"]
[null,"beta",{"$f":"'A02'!$C$51","v":0.70399999999999996},null,"U.S. EPA/ORD 1993"]
["Caloric requirement per day","KR",{"$f":"C24*(C22*1000)^C25","v":459.26591923752829},"kcal/day","Eq"]
["Caloric content of prey (wet  weight)","KCW",{"$f":"'A02'!$C$69","v":1.2},"kcal/g","U.S. EPA/ORD 1993"]
["Amount of food/prey consumed per day,  wet weight","Amnt","(KR ÷ KCW)/1000 g/kg"]
[null,"Central ",{"$f":"(C26/C27)/1000","v":0.38272159936460692},"kg","Eq"]
[null,"Lower ",{"$f":"C$29*0.3","v":0.11481647980938207},null,"Eq"]
[null,"Upper ",{"$f":"C$29*1.7","v":0.6506267189198317},null,"Eq"]
["Proportion of diet that is contaminated","Prop"]
[null,"Central ",0.3,"Unitless","Scenario parameter"]
[null,"Lower ",0.1,null,"Scenario parameter"]
[null,"Upper ",1,null,"Scenario parameter"]
["Dose"]
["Toxic Equivalency Factor for formulation:  (See risk assessment if this has a value other than 1.)","TEF"]
[null,"Central ",{"$f":"'A01'!C$35","v":1},"Unitless","Worksheet A01"]
[null,"Lower ",{"$f":"'A01'!C$36","v":1},null,"Worksheet A01"]
[null,"Upper ",{"$f":"'A01'!C$37","v":1},null,"Worksheet A01"]
["Dose","Dose","ConcFish × Amnt × Prop × TEF ÷ BW"]
[null,"Central ",{"$f":"C18*C29*C33*C38/C$22","v":3.1064033133711208E-5},"mg/kg","Eq"]
[null,"Lower ",{"$f":"C19*C30*C34*C39/C$22","v":6.2287097153772483E-7},"mg/kg","Eq"]
[null,"Upper ",6.0389689717360725E-4,"mg/kg","Eq"]

{"sheet":"F12a","index":38,"n_rows":19,"n_cols":5,"rows_kept":19,"cut":false,"hidden":false,"merged":[[10,0,12,0],[13,0,14,0],[15,0,18,0],[0,0,0,4],[1,1,1,3],[2,1,2,3],[3,1,3,3],[5,0,8,0]]}
["Consumption of contaminated water, Small Mammal, chronic exposure"]
["Short Title","Water consumption",null,null,"WatAmbAllo"]
["Receptor","Small Mammal"]
["Duration","chronic"]
["Parameter/Assumption","Code / Range","Equation/   Value","Units","Reference/Designation"]
["Concentration in water","ConcWat","ApR × WCR × TEF"]
[null,"Central ",{"$f":"B04a!C22","v":2.5081227512977251E-5},"mg/L","B04a, chronic"]
[null,"Lower ",{"$f":"B04a!C23","v":1.257271430364723E-6},null,"B04a, chronic"]
[null,"Upper ",{"$f":"B04a!C24","v":1.7209014516440314E-4},null,"B04a, chronic"]
["Body weight","BW",{"$f":"'A02'!$C$116","v":0.02},"kg","Default"]
["Allometric coefficients for water consumption per day in liters and BW in kilograms"]
[null,"alpha",{"$f":"'A02'!$C$124","v":9.9000000000000005E-2},null,"U.S. EPA/ORD 1993"]
[null,"beta",{"$f":"'A02'!$C$125","v":0.9},null,"U.S. EPA/ORD 1993"]
["Amount of water consumed per day",null,"Amnt = alpha BW beta"]
[null,"Amnt",{"$f":"C12*(C10^C13)","v":2.9279401205240612E-3},"liters","Eq"]
["Dose","Dose","ConcWat  × Amnt ÷ BW"]
[null,"Central ",{"$f":"C7*C$15/C$10","v":3.6718166153619003E-6},"mg/kg","Eq"]
[null,"Lower ",{"$f":"C8*C$15/C$10","v":1.8406077316767729E-7},"mg/kg","Eq"]
[null,"Upper ",{"$f":"C9*C$15/C$10","v":2.5193482018683283E-5},"mg/kg","Eq"]

{"sheet":"F12b","index":39,"n_rows":19,"n_cols":5,"rows_kept":19,"cut":false,"hidden":false,"merged":[[10,0,12,0],[13,0,14,0],[15,0,18,0],[0,0,0,4],[1,1,1,3],[2,1,2,3],[3,1,3,3],[5,0,8,0]]}
["Consumption of contaminated water, 400 gram mammal (e.g., squirrel), chronic exposure"]
["Short Title","Water consumption",null,null,"WatAmbAllo"]
["Receptor","400 gram mammal (e.g., squirrel)"]
["Duration","chronic"]
["Parameter/Assumption","Code / Range","Equation/   Value","Units","Reference/Designation"]
["Concentration in water","ConcWat","ApR × WCR × TEF"]
[null,"Central ",{"$f":"B04a!C22","v":2.5081227512977251E-5},"mg/L","B04a, chronic"]
[null,"Lower ",{"$f":"B04a!C23","v":1.257271430364723E-6},null,"B04a, chronic"]
[null,"Upper ",{"$f":"B04a!C24","v":1.7209014516440314E-4},null,"B04a, chronic"]
["Body weight","BW",{"$f":"'A02'!$C$85","v":0.4},"kg","Default"]
["Allometric coefficients for water consumption per day in liters and BW in kilograms"]
[null,"alpha",{"$f":"'A02'!$C$90","v":9.9000000000000005E-2},null,"U.S. EPA/ORD 1993"]
[null,"beta",{"$f":"'A02'!$C$91","v":0.9},null,"U.S. EPA/ORD 1993"]
["Amount of water consumed per day",null,"Amnt = alpha BW beta"]
[null,"Amnt",{"$f":"C12*(C10^C13)","v":4.3399945764854612E-2},"liters","Eq"]
["Dose","Dose","ConcWat  × Amnt ÷ BW"]
[null,"Central ",{"$f":"C7*C$15/C$10","v":2.7213097844479801E-6},"mg/kg","Eq"]
[null,"Lower ",{"$f":"C8*C$15/C$10","v":1.364137797238254E-7},"mg/kg","Eq"]
[null,"Upper ",{"$f":"C9*C$15/C$10","v":1.8671757417002633E-5},"mg/kg","Eq"]

{"sheet":"F12c","index":40,"n_rows":19,"n_cols":5,"rows_kept":19,"cut":false,"hidden":false,"merged":[[10,0,12,0],[13,0,14,0],[15,0,18,0],[0,0,0,4],[1,1,1,3],[2,1,2,3],[3,1,3,3],[5,0,8,0]]}
["Consumption of contaminated water, Carnivorous mammal, chronic exposure"]
["Short Title","Water consumption",null,null,"WatAmbAllo"]
["Receptor","Carnivorous mammal"]
["Duration","chronic"]
["Parameter/Assumption","Code / Range","Equation/   Value","Units","Reference/Designation"]
["Concentration in water","ConcWat","ApR × WCR × TEF"]
[null,"Central ",{"$f":"B04a!C22","v":2.5081227512977251E-5},"mg/L","B04a, chronic"]
[null,"Lower ",{"$f":"B04a!C23","v":1.257271430364723E-6},null,"B04a, chronic"]
[null,"Upper ",{"$f":"B04a!C24","v":1.7209014516440314E-4},null,"B04a, chronic"]
["Body weight","BW",{"$f":"'A02'!$C$92","v":5},"kg","U.S. EPA/ORD 1993"]
["Allometric coefficients for water consumption per day in liters and BW in kilograms"]
[null,"alpha",{"$f":"'A02'!$C$95","v":9.9000000000000005E-2},null,"U.S. EPA/ORD 1993"]
[null,"beta",{"$f":"'A02'!$C$96","v":0.9},null,"U.S. EPA/ORD 1993"]
["Amount of water consumed per day",null,"Amnt = alpha BW beta"]
[null,"Amnt",{"$f":"C12*(C10^C13)","v":0.42141326164778842},"liters","Eq"]
["Dose","Dose","ConcWat  × Amnt ÷ BW"]
[null,"Central ",{"$f":"C7*C$15/C$10","v":2.1139123784747984E-6},"mg/kg","Eq"]
[null,"Lower ",{"$f":"C8*C$15/C$10","v":1.0596617084931564E-7},"mg/kg","Eq"]
[null,"Upper ",{"$f":"C9*C$15/C$10","v":1.4504213874234502E-5},"mg/kg","Eq"]

{"sheet":"F12d","index":41,"n_rows":19,"n_cols":5,"rows_kept":19,"cut":false,"hidden":false,"merged":[[10,0,12,0],[13,0,14,0],[15,0,18,0],[0,0,0,4],[1,1,1,3],[2,1,2,3],[3,1,3,3],[5,0,8,0]]}
["Consumption of contaminated water, Large Mammal, chronic exposure"]
["Short Title","Water consumption",null,null,"WatAmbAllo"]
["Receptor","Large Mammal"]
["Duration","chronic"]
["Parameter/Assumption","Code / Range","Equation/   Value","Units","Reference/Designation"]
["Concentration in water","ConcWat","ApR × WCR × TEF"]
[null,"Central ",{"$f":"B04a!C22","v":2.5081227512977251E-5},"mg/L","B04a, chronic"]
[null,"Lower ",{"$f":"B04a!C23","v":1.257271430364723E-6},null,"B04a, chronic"]
[null,"Upper ",{"$f":"B04a!C24","v":1.7209014516440314E-4},null,"B04a, chronic"]
["Body weight","BW",{"$f":"'A02'!$C$106","v":70},"kg","Default"]
["Allometric coefficients for water consumption per day in liters and BW in kilograms"]
[null,"alpha",{"$f":"'A02'!$C$109","v":9.9000000000000005E-2},null,"U.S. EPA/ORD 1993"]
[null,"beta",{"$f":"'A02'!$C$110","v":0.9},null,"U.S. EPA/ORD 1993"]
["Amount of water consumed per day",null,"Amnt = alpha BW beta"]
[null,"Amnt",{"$f":"C12*(C10^C13)","v":4.5313064115862725},"liters","Eq"]
["Dose","Dose","ConcWat  × Amnt ÷ BW"]
[null,"Central ",{"$f":"C7*C$15/C$10","v":1.6235818148572548E-6},"mg/kg","Eq"]
[null,"Lower ",{"$f":"C8*C$15/C$10","v":8.138688705022732E-8},"mg/kg","Eq"]
[null,"Upper ",{"$f":"C9*C$15/C$10","v":1.1139902545061031E-5},"mg/kg","Eq"]

{"sheet":"F12e","index":42,"n_rows":19,"n_cols":5,"rows_kept":19,"cut":false,"hidden":false,"merged":[[10,0,12,0],[13,0,14,0],[15,0,18,0],[0,0,0,4],[1,1,1,3],[2,1,2,3],[3,1,3,3],[5,0,8,0]]}
["Consumption of contaminated water, Small Bird, chronic exposure"]
["Short Title","Water consumption",null,null,"WatAmbAllo"]
["Receptor","Small Bird"]
["Duration","chronic"]
["Parameter/Assumption","Code / Range","Equation/   Value","Units","Reference/Designation"]
["Concentration in water","ConcWat","ApR × WCR × TEF"]
[null,"Central ",{"$f":"B04a!C22","v":2.5081227512977251E-5},"mg/L","B04a, chronic"]
[null,"Lower ",{"$f":"B04a!C23","v":1.257271430364723E-6},null,"B04a, chronic"]
[null,"Upper ",{"$f":"B04a!C24","v":1.7209014516440314E-4},null,"B04a, chronic"]
["Body weight","BW",{"$f":"'A02'!$C$54","v":0.01},"kg","Default"]
["Allometric coefficients for water consumption per day in liters and BW in kilograms"]
[null,"alpha",{"$f":"'A02'!$C$57","v":5.8999999999999997E-2},null,"U.S. EPA/ORD 1993"]
[null,"beta",{"$f":"'A02'!$C$58","v":0.67},null,"U.S. EPA/ORD 1993"]
["Amount of water consumed per day",null,"Amnt = alpha BW beta"]
[null,"Amnt",{"$f":"C12*(C10^C13)","v":2.6968203187277624E-3},"liters","Eq"]
["Dose","Dose","ConcWat  × Amnt ÷ BW"]
[null,"Central ",{"$f":"C7*C$15/C$10","v":6.763956397563083E-6},"mg/kg","Eq"]
[null,"Lower ",{"$f":"C8*C$15/C$10","v":3.3906351395635023E-7},"mg/kg","Eq"]
[null,"Upper ",{"$f":"C9*C$15/C$10","v":4.6409620013217256E-5},"mg/kg","Eq"]

{"sheet":"F12f","index":43,"n_rows":19,"n_cols":5,"rows_kept":19,"cut":false,"hidden":false,"merged":[[10,0,12,0],[13,0,14,0],[15,0,18,0],[0,0,0,4],[1,1,1,3],[2,1,2,3],[3,1,3,3],[5,0,8,0]]}
["Consumption of contaminated water, Large Bird, chronic exposure"]
["Short Title","Water consumption",null,null,"WatAmbAllo"]
["Receptor","Large Bird"]
["Duration","chronic"]
["Parameter/Assumption","Code / Range","Equation/   Value","Units","Reference/Designation"]
["Concentration in water","ConcWat"]
[null,"Central ",{"$f":"B04a!C22","v":2.5081227512977251E-5},"mg/L","B04a, chronic"]
[null,"Lower ",{"$f":"B04a!C23","v":1.257271430364723E-6},null,"B04a, chronic"]
[null,"Upper ",{"$f":"B04a!C24","v":1.7209014516440314E-4},null,"B04a, chronic"]
["Body weight","BW",{"$f":"'A02'!$C$38","v":4},"kg","Default"]
["Allometric coefficients for water consumption per day in liters and BW in kilograms"]
[null,"alpha",{"$f":"'A02'!$C$41","v":5.8999999999999997E-2},null,"U.S. EPA/ORD 1993"]
[null,"beta",{"$f":"'A02'!$C$42","v":0.67},null,"U.S. EPA/ORD 1993"]
["Amount of water consumed per day",null,"Amnt = alpha BW beta"]
[null,"Amnt",{"$f":"C12*(C10^C13)","v":0.14935927808849303},"liters","Eq"]
["Dose","Dose","ConcWat  × Amnt ÷ BW"]
[null,"Central ",{"$f":"C7*C$15/C$10","v":9.3652850872788296E-7},"mg/kg","Eq"]
[null,"Lower ",{"$f":"C8*C$15/C$10","v":4.6946288300140515E-8},"mg/kg","Eq"]
[null,"Upper ",{"$f":"C9*C$15/C$10","v":6.4258149619748052E-6},"mg/kg","Eq"]

{"sheet":"G01","index":44,"n_rows":74,"n_cols":10,"rows_kept":74,"cut":false,"hidden":false,"merged":[[2,5,3,5],[0,0,0,4],[1,2,1,4],[2,0,3,0],[2,1,3,1],[2,2,2,4]]}
["Summary of Exposure Assessments for the Terrestrial Animals",null,null,null,null,"G01V6"]
["Application Rate:",{"$f":"'A01'!ApRt_C","v":2}," lb a.e./acre",null,null,"G01V6"]
["Scenario","Receptor","mg/kg/day or mg/kg/event",null,null,"Detail Worksheet"]
[null,null,"Central","Lower","Upper"]
["Accidental Acute Exposures"]
["   Direct Spray",null,null,null,null,null,null,null,null,"Spray: Partial Abs"]
["first-order absorption","Small mammal (20g)","No exposure scenario",null,null,null,null,null,null,"Spray: 100% Abs"]
["100% absorption","Small mammal (20g)","No exposure scenario"]
["   Contaminated Water",null,null,null,null,null,null,null,null,"Spill: Sm Mam"]
["Spill","Small mammal (20g)",{"$f":"F02a!Dose_C","v":1.131804598078322E-3},{"$f":"F02a!Dose_L","v":5.6735085441212832E-5},{"$f":"F02a!Dose_U","v":1.941416646338728E-2},"F02a",null,null,null,"Spill: Med Mam"]
["Spill","Larger Mammal (400g)",{"$f":"F02b!Dose_C","v":8.3881937729348777E-4},{"$f":"F02b!Dose_L","v":4.204832629350889E-5},{"$f":"F02b!Dose_U","v":1.4388507566713112E-2},"F02b",null,null,null,"Spill: Canid"]
["Spill","Canid (5 kg)",{"$f":"F02c!Dose_C","v":6.5159456490357609E-4},{"$f":"F02c!Dose_L","v":3.2663123453997522E-5},{"$f":"F02c!Dose_U","v":1.1176987062214629E-2},"F02c",null,null,null,"Spill: Lrg Mam"]
["Spill","Large Mammal (70g)",{"$f":"F02d!Dose_C","v":5.0045455857568018E-4},{"$f":"F02d!Dose_L","v":2.5086779280137554E-5},{"$f":"F02d!Dose_U","v":8.5844395084149535E-3},"F02d",null,null,null,"Spill: Sm Brd"]
["Spill","Small bird (10g)",{"$f":"F02e!Dose_C","v":2.0849290021551481E-3},{"$f":"F02e!Dose_L","v":1.0451329255683871E-4},{"$f":"F02e!Dose_U","v":3.5763380693902183E-2},"F02e",null,null,null,"Spill: Lrg Brd"]
["Spill","Large Bird (4 kg)",{"$f":"F02f!Dose_C","v":2.8867652811827033E-4},{"$f":"F02f!Dose_L","v":1.4470773060536164E-5},{"$f":"F02f!Dose_U","v":4.9517506648024479E-3},"F02f"]
["   Consumption of contaminated Fish",null,null,null,null,null,null,null,null,"Fish: Bear"]
["Spill","Large Mammalian Carnivore (70 kg)",{"$f":"F03a!Dose_C","v":1.8987170361052077E-4},{"$f":"F03a!Dose_L","v":9.5178861664830169E-7},{"$f":"F03a!Dose_U","v":1.8455899170900986E-2},"F03a",null,null,null,"Fish: Fox"]
["Spill","Canid (5 kg)",{"$f":"F03b!Dose_C","v":2.7329136890638531E-4},{"$f":"F03b!Dose_L","v":1.3699546009599091E-6},{"$f":"F03b!Dose_U","v":2.6564453011703387E-2},"F03b",null,null,null,"Fish: Bird"]
["Spill","Fish-eating bird (2.4 kg)",{"$f":"F03c!Dose_C","v":3.1729217627811455E-4},{"$f":"F03c!Dose_L","v":1.5905217880835525E-6},{"$f":"F03c!Dose_U","v":3.0841417134575857E-2},"F03c"]
["Non-Accidental Acute Exposures"]
["   Contaminated Fruit (Lowest Residue Rate)"]
[null,"Small mammal (20g)","No exposure scenario",null,null,null,null,null,null,"Grass: Sm Mam"]
[null,"Larger Mammal (400g)","No exposure scenario",null,null,null,null,null,null,"Grass: Med Mam"]
[null,"Large Mammal (70g)","No exposure scenario",null,null,null,null,null,null,"Grass: Lrg Mam"]
[null,"Small bird (10g)","No exposure scenario",null,null,null,null,null,null,"Grass: Sm Brd"]
[null,"Large Bird (4 kg)","No exposure scenario",null,null,null,null,null,null,"Grass: Lrg Brd"]
["   Contaminated Vegetation (Short Grass - Highest Residue Rate)"]
[null,"Small mammal (20g)","No exposure scenario",null,null,null,null,null,null,"Veg: Sm Mam"]
[null,"Larger Mammal (400g)","No exposure scenario",null,null,null,null,null,null,"Veg: Med Mam"]
[null,"Large Mammal","No exposure scenario",null,null,null,null,null,null,"Veg: Lrg Mam"]
[null,"Small bird (10g)","No exposure scenario",null,null,null,null,null,null,"Veg: Sm Brd"]
[null,"Large Bird (4 kg)","No exposure scenario",null,null,null,null,null,null,"Veg: Lrg Brd"]
["   Contaminated Water"]
[null,"Small mammal (20g)","No exposure scenario",null,null,null,null,null,null,"Water: Sm Mam"]
[null,"Larger Mammal (400g)","No exposure scenario",null,null,null,null,null,null,"Water: Med Mam"]
[null,"Canid (5 kg)","No exposure scenario",null,null,null,null,null,null,"Water: Canid"]
[null,"Large Mammal (70g)","No exposure scenario",null,null,null,null,null,null,"Water: Lrg Mam"]
[null,"Small bird (10g)","No exposure scenario",null,null,null,null,null,null,"Water: Sm Brd"]
[null,"Large Bird (4 kg)","No exposure scenario",null,null,null,null,null,null,"Water: Lrg Brd"]
["   Contaminated Insects"]
[null,"Small mammal (20g)","No exposure scenario",null,null,null,null,null,null,"Insects: Sm Mam"]
[null,"Larger Mammal (400g)","No exposure scenario",null,null,null,null,null,null,"Insects: Med Mam"]
[null,"Small bird (10g)","No exposure scenario",null,null,null,null,null,null,"Insects: Sm Brd"]
["   Consumption of small mammal (after direct spray) by predator"]
[null,"Canid (5 kg)","No exposure scenario",null,null,null,null,null,null,"Canid Eats Sm Mam"]
[null,"Carnivorous bird (640 g)","No exposure scenario",null,null,null,null,null,null,"Bird Eats Sm Mam"]
["   Consumption of contaminated Fish"]
[null,"Large Mammalian Carnivore (70 kg)",{"$f":"F09a!Dose_C","v":2.1471148838160213E-5},{"$f":"F09a!Dose_L","v":4.3052218233512371E-7},{"$f":"F09a!Dose_U","v":4.1740749201192237E-4},"F09a",null,null,null,"Fish: Lrg Mam"]
[null,"Canid (5 kg)",{"$f":"F09b!Dose_C","v":3.0904445193214183E-5},{"$f":"F09b!Dose_L","v":6.1967104269670076E-7},{"$f":"F09b!Dose_U","v":6.0079444548365277E-4},"F09b",null,null,null,"Fish: Canid"]
[null,"Fish-eating bird (2.4 kg)",{"$f":"F09c!Dose_C","v":3.1064033133711208E-5},{"$f":"F09c!Dose_L","v":6.2287097153772483E-7},{"$f":"F09c!Dose_U","v":6.0389689717360725E-4},"F09c",null,null,null,"Fish: Brd"]
["Chronic/Longer Term Exposures"]
["   Contaminated Fruit (Lowest Residue Rate)"]
[null,"Small mammal (20g)","No exposure scenario",null,null,null,null,null,"Grass: Sm Mam"]
[null,"Larger Mammal (400g)","No exposure scenario",null,null,null,null,null,"Grass: Med Mam"]
[null,"Large Mammal (70g)","No exposure scenario",null,null,null,null,null,"Grass: Lrg Mam"]
[null,"Small bird (10g)","No exposure scenario",null,null,null,null,null,"Grass: Sm Brd"]
[null,"Large Bird (4 kg)","No exposure scenario",null,null,null,null,null,"Grass: Lrg Brd"]
["   Contaminated Vegetation (Short Grass - Highest Residue Rate)"]
[null,"Small mammal (20g)","No exposure scenario",null,null,null,null,null,"Veg: Sm Mam"]
[null,"Larger Mammal (400g)","No exposure scenario",null,null,null,null,null,"Veg: Med Mam"]
[null,"Large Mammal (70g)","No exposure scenario",null,null,null,null,null,"Veg: Lrg Mam"]
[null,"Small bird (10g)","No exposure scenario",null,null,null,null,null,"Veg: Sm Brd"]
[null,"Large Bird (4 kg)","No exposure scenario",null,null,null,null,null,"Veg: Lrg Brd"]
["   Contaminated Water"]
[null,"Small mammal (20g)",{"$f":"F12a!Dose_C","v":3.6718166153619003E-6},{"$f":"F12a!Dose_L","v":1.8406077316767729E-7},{"$f":"F12a!Dose_U","v":2.5193482018683283E-5},"F12a",null,null,"Water: Sm Mam"]
[null,"Larger Mammal (400g)",{"$f":"F12b!Dose_C","v":2.7213097844479801E-6},{"$f":"F12b!Dose_L","v":1.364137797238254E-7},{"$f":"F12b!Dose_U","v":1.8671757417002633E-5},"F12b",null,null,"Water: Med Mam"]
[null,"Canid (5 kg)",{"$f":"F12c!Dose_C","v":2.1139123784747984E-6},{"$f":"F12c!Dose_L","v":1.0596617084931564E-7},{"$f":"F12c!Dose_U","v":1.4504213874234502E-5},"F12c",null,null,"Water: Canid"]
[null,"Large Mammal (70g)",{"$f":"F12d!Dose_C","v":1.6235818148572548E-6},{"$f":"F12d!Dose_L","v":8.138688705022732E-8},{"$f":"F12d!Dose_U","v":1.1139902545061031E-5},"F12d",null,null,"Water: Lrg Mam"]
[null,"Small bird (10g)",{"$f":"F12e!Dose_C","v":6.763956397563083E-6},{"$f":"F12e!Dose_L","v":3.3906351395635023E-7},{"$f":"F12e!Dose_U","v":4.6409620013217256E-5},"F12e",null,null,"Water: Sm Brd"]
[null,"Large Bird (4 kg)",{"$f":"F12f!Dose_C","v":9.3652850872788296E-7},{"$f":"F12f!Dose_L","v":4.6946288300140515E-8},{"$f":"F12f!Dose_U","v":6.4258149619748052E-6},"F12f",null,null,"Water: Lrg Brd"]
[]
[null,null,null,null,null,null,null,null,"Fish: Lrg Mam"]
[null,null,null,null,null,null,null,null,"Fish: Canid"]
[null,null,null,null,null,null,null,null,"Fish: Brd"]

{"sheet":"G02","index":45,"n_rows":74,"n_cols":10,"rows_kept":74,"cut":false,"hidden":false,"merged":[[2,5,3,5],[0,0,0,4],[1,2,1,4],[2,0,3,0],[2,1,3,1],[2,2,2,4]]}
["Summary of Hazard Quotients (Toxicity) for the Terrestrial Animals",null,null,null,null,"G01V6"]
["Application Rate:",{"$f":"'A01'!ApRt_C","v":2}," lb a.e./acre",null,null,"G01V6"]
["Scenario","Receptor","Hazard Quotients",null,null,"Toxicity Value"]
[null,null,"Central","Lower","Upper"]
["Accidental Acute Exposures"]
["   Direct Spray",null,null,null,null,null,null,null,null,"Spray: Partial Abs"]
["first-order absorption","Small mammal (20g)","No exposure scenario",null,null,null,null,null,null,"Spray: 100% Abs"]
["100% absorption","Small mammal (20g)","No exposure scenario"]
["   Contaminated Water",null,null,null,null,null,null,null,null,"Spill: Sm Mam"]
["Spill","Small mammal (20g)",{"$f":"F02a!$C$22/$F$10","v":4.5272183923132884E-5},{"$f":"F02a!$C$23/$F$10","v":2.2694034176485132E-6},{"$f":"F02a!$C$24/$F$10","v":7.7656665853549124E-4},{"$f":"'B02'!$E$5","v":25},"NOAEL",null,null,"Spill: Med Mam"]
["Spill","Larger Mammal (400g)",{"$f":"F02b!$C$22/$F$11","v":3.3552775091739509E-5},{"$f":"F02b!$C$23/$F$11","v":1.6819330517403556E-6},{"$f":"F02b!$C$24/$F$11","v":5.755403026685245E-4},{"$f":"'B02'!$E$5","v":25},"NOAEL",null,null,"Spill: Canid"]
["Spill","Canid (5 kg)",{"$f":"F02c!$C$22/$F$12","v":2.6063782596143042E-5},{"$f":"F02c!$C$23/$F$12","v":1.3065249381599009E-6},{"$f":"F02c!$C$24/$F$12","v":4.4707948248858513E-4},{"$f":"'B02'!$E$5","v":25},"NOAEL",null,null,"Spill: Lrg Mam"]
["Spill","Large Mammal (70g)",{"$f":"F02d!$C$22/$F$13","v":2.0018182343027207E-5},{"$f":"F02d!$C$23/$F$13","v":1.0034711712055022E-6},{"$f":"F02d!$C$24/$F$13","v":3.4337758033659813E-4},{"$f":"'B02'!$E$5","v":25},"NOAEL",null,null,"Spill: Sm Brd"]
["Spill","Small bird (10g)",{"$f":"F02e!$C$22/$F$14","v":1.7973525880647828E-5},{"$f":"F02e!$C$23/$F$14","v":9.0097665997274742E-7},{"$f":"F02e!$C$24/$F$14","v":3.0830500598191536E-4},{"$f":"'B02'!$E$15","v":116},"LOAEL",null,null,"Spill: Lrg Brd"]
["Spill","Large Bird (4 kg)",{"$f":"F02f!$C$22/$F$15","v":2.4885907596402614E-6},{"$f":"F02f!$C$23/$F$15","v":1.2474804362531175E-7},{"$f":"F02f!$C$24/$F$15","v":4.2687505731055585E-5},{"$f":"'B02'!$E$15","v":116},"LOAEL"]
["   Consumption of contaminated Fish",null,null,null,null,null,null,null,null,"Fish: Bear"]
["Spill","Large Mammalian Carnivore (70 kg)",{"$f":"F03a!$C$47/$F$17","v":7.5948681444208309E-6},{"$f":"F03a!$C$48/$F$17","v":3.8071544665932067E-8},{"$f":"F03a!$C$49/$F$17","v":7.3823596683603946E-4},{"$f":"'B02'!$E$5","v":25},"NOAEL",null,null,"Fish: Fox"]
["Spill","Canid (5 kg)",{"$f":"F03b!$C$47/$F$18","v":1.0931654756255413E-5},{"$f":"F03b!$C$48/$F$18","v":5.4798184038396365E-8},{"$f":"F03b!$C$49/$F$18","v":1.0625781204681355E-3},{"$f":"'B02'!$E$5","v":25},"NOAEL",null,null,"Fish: Bird"]
["Spill","Fish-eating bird (2.4 kg)","Toxicity data not available.",null,null,"N/A"]
["Non-Accidental Acute Exposures"]
["   Contaminated Fruit (Lowest Residue Rate)"]
[null,"Small mammal (20g)","No exposure scenario",null,null,null,null,null,null,"Grass: Sm Mam"]
[null,"Larger Mammal (400g)","No exposure scenario",null,null,null,null,null,null,"Grass: Med Mam"]
[null,"Large Mammal (70g)","No exposure scenario",null,null,null,null,null,null,"Grass: Lrg Mam"]
[null,"Small bird (10g)","No exposure scenario",null,null,null,null,null,null,"Grass: Sm Brd"]
[null,"Large Bird (4 kg)","No exposure scenario",null,null,null,null,null,null,"Grass: Lrg Brd"]
["   Contaminated Vegetation (Short Grass - Highest Residue Rate)"]
[null,"Small mammal (20g)","No exposure scenario",null,null,null,null,null,null,"Veg: Sm Mam"]
[null,"Larger Mammal (400g)","No exposure scenario",null,null,null,null,null,null,"Veg: Med Mam"]
[null,"Large Mammal","No exposure scenario",null,null,null,null,null,null,"Veg: Lrg Mam"]
[null,"Small bird (10g)","No exposure scenario",null,null,null,null,null,null,"Veg: Sm Brd"]
[null,"Large Bird (4 kg)","No exposure scenario",null,null,null,null,null,null,"Veg: Lrg Brd"]
["   Contaminated Water"]
[null,"Small mammal (20g)","No exposure scenario",null,null,null,null,null,null,"Water: Sm Mam"]
[null,"Larger Mammal (400g)","No exposure scenario",null,null,null,null,null,null,"Water: Med Mam"]
[null,"Canid (5 kg)","No exposure scenario",null,null,null,null,null,null,"Water: Canid"]
[null,"Large Mammal (70g)","No exposure scenario",null,null,null,null,null,null,"Water: Lrg Mam"]
[null,"Small bird (10g)","No exposure scenario",null,null,null,null,null,null,"Water: Sm Brd"]
[null,"Large Bird (4 kg)","No exposure scenario",null,null,null,null,null,null,"Water: Lrg Brd"]
["   Contaminated Insects"]
[null,"Small mammal (20g)","No exposure scenario",null,null,null,null,null,null,"Insects: Sm Mam"]
[null,"Larger Mammal (400g)","No exposure scenario",null,null,null,null,null,null,"Insects: Med Mam"]
[null,"Small bird (10g)","No exposure scenario",null,null,null,null,null,null,"Insects: Sm Brd"]
["   Consumption of small mammal (after direct spray) by predator"]
[null,"Canid (5 kg)","No exposure scenario",null,null,null,null,null,null,"Canid Eats Sm Mam"]
[null,"Carnivorous bird (640 g)","No exposure scenario",null,null,null,null,null,null,"Bird Eats Sm Mam"]
["   Consumption of contaminated Fish"]
[null,"Large Mammalian Carnivore (70 kg)",{"$f":"F09a!$C$42/$F$48","v":8.5884595352640851E-7},{"$f":"F09a!$C$43/$F$48","v":1.722088729340495E-8},{"$f":"F09a!$C$44/$F$48","v":1.6696299680476893E-5},{"$f":"'B02'!$E$5","v":25},"NOAEL",null,null,"Fish: Lrg Mam"]
[null,"Canid (5 kg)",{"$f":"F09b!$C$42/$F$49","v":1.2361778077285673E-6},{"$f":"F09b!$C$43/$F$49","v":2.4786841707868029E-8},{"$f":"F09b!$C$44/$F$49","v":2.403177781934611E-5},{"$f":"'B02'!$E$5","v":25},"NOAEL",null,null,"Fish: Canid"]
[null,"Fish-eating bird (2.4 kg)",{"$f":"F09c!$C$42/$F$50","v":2.677933890837173E-7},{"$f":"F09c!$C$43/$F$50","v":5.369577340842455E-9},{"$f":"F09c!$C$44/$F$50","v":5.2060077342552349E-6},{"$f":"'B02'!$E$15","v":116},"LOAEL",null,null,"Fish: Brd"]
["Chronic/Longer Term Exposures"]
["   Contaminated Fruit (Lowest Residue Rate)"]
[null,"Small mammal (20g)","No exposure scenario",null,null,null,null,null,"Grass: Sm Mam"]
[null,"Larger Mammal (400g)","No exposure scenario",null,null,null,null,null,"Grass: Med Mam"]
[null,"Large Mammal (70g)","No exposure scenario",null,null,null,null,null,"Grass: Lrg Mam"]
[null,"Small bird (10g)","No exposure scenario",null,null,null,null,null,"Grass: Sm Brd"]
[null,"Large Bird (4 kg)","No exposure scenario",null,null,null,null,null,"Grass: Lrg Brd"]
["   Contaminated Vegetation (Short Grass - Highest Residue Rate)"]
[null,"Small mammal (20g)","No exposure scenario",null,null,null,null,null,"Veg: Sm Mam"]
[null,"Larger Mammal (400g)","No exposure scenario",null,null,null,null,null,"Veg: Med Mam"]
[null,"Large Mammal (70g)","No exposure scenario",null,null,null,null,null,"Veg: Lrg Mam"]
[null,"Small bird (10g)","No exposure scenario",null,null,null,null,null,"Veg: Sm Brd"]
[null,"Large Bird (4 kg)","No exposure scenario",null,null,null,null,null,"Veg: Lrg Brd"]
["   Contaminated Water"]
[null,"Small mammal (20g)",{"$f":"F12a!$C$17/$F$65","v":3.0598471794682502E-7},{"$f":"F12a!$C$18/$F$65","v":1.5338397763973107E-8},{"$f":"F12a!$C$19/$F$65","v":2.0994568348902734E-6},{"$f":"'B02'!$E$6","v":12},"NOAEL",null,"Water: Sm Mam"]
[null,"Larger Mammal (400g)",{"$f":"F12b!$C$17/$F$66","v":2.2677581537066501E-7},{"$f":"F12b!$C$18/$F$66","v":1.136781497698545E-8},{"$f":"F12b!$C$19/$F$66","v":1.5559797847502194E-6},{"$f":"'B02'!$E$6","v":12},"NOAEL",null,"Water: Med Mam"]
[null,"Canid (5 kg)",{"$f":"F12c!$C$17/$F$67","v":1.7615936487289986E-7},{"$f":"F12c!$C$18/$F$67","v":8.8305142374429695E-9},{"$f":"F12c!$C$19/$F$67","v":1.2086844895195418E-6},{"$f":"'B02'!$E$6","v":12},"NOAEL",null,"Water: Canid"]
[null,"Large Mammal (70g)",{"$f":"F12d!$C$17/$F$68","v":1.3529848457143789E-7},{"$f":"F12d!$C$18/$F$68","v":6.7822405875189436E-9},{"$f":"F12d!$C$19/$F$68","v":9.2832521208841928E-7},{"$f":"'B02'!$E$6","v":12},"NOAEL",null,"Water: Lrg Mam"]
[null,"Small bird (10g)","Toxicity data not available.",null,null,"N/A",null,null,"Water: Sm Brd"]
[null,"Large Bird (4 kg)","Toxicity data not available.",null,null,"N/A",null,null,"Water: Lrg Brd"]
[]
[null,null,null,null,null,null,null,null,"Fish: Lrg Mam"]
[null,null,null,null,null,null,null,null,"Fish: Canid"]
[null,null,null,null,null,null,null,null,"Fish: Brd"]

{"sheet":"G03","index":46,"n_rows":42,"n_cols":10,"rows_kept":42,"cut":false,"hidden":false,"merged":[[7,6,8,6],[0,0,0,5],[2,2,2,4],[7,0,8,0],[7,1,8,1],[7,2,7,4],[7,5,8,5]]}
["Worksheet G03: Summary of Hazard Quotients for Aquatic Species"]
["Application Rate:",1," lb a.e./acre",null,null,"AqToxSumV6"]
["Exposures",null,"Concentrations (mg/L)"]
[null,"Scenario","Central","Lower","Upper","Worksheet"]
[null,"Accidental Spill",{"$f":"B04b!Water_C","v":7.7310638297872335E-3},{"$f":"B04b!Water_L","v":3.8754266211604097E-4},{"$f":"B04b!Water_U","v":0.13261313868613139},"B04b"]
[null,"Peak EEC",{"$f":"B04a!Acute_C","v":7.8232419610214422E-4},{"$f":"B04a!Acute_L","v":1.5686534648805793E-4},{"$f":"B04a!Acute_U","v":2.6838859282336332E-3},"B04a, peak"]
[null,"Chronic",{"$f":"B04a!Chronic_C","v":2.5081227512977251E-5},{"$f":"B04a!Chronic_L","v":1.257271430364723E-6},{"$f":"B04a!Chronic_U","v":1.7209014516440314E-4},"B04a, chronic"]
["Receptor","Type","Hazard Quotients",null,null,"Toxicity Value","Toxicity Endpoint"]
[null,null,"Central","Lower","Upper"]
["Accidental Acute Exposures"]
["Fish","Sensitive",{"$f":"C$5/$F11","v":4.2950354609929076E-2},2.1530147895335609E-3,0.7367396593673966,{"$f":"'B02'!$E$7","v":0.18},"NOAEC*",null,null,"Fish Sn"]
[null,"Tolerant",1.2271529888551165E-2,6.1514708272387454E-4,0.2104970455335419,{"$f":"'B02'!$E$8","v":0.63},"NOAEC*",null,null,"Fish Tl"]
["Amphibian","Sensitive","No toxicity data.",null,null,"N/A",null,null,null,"Amph Sn"]
[null,"Tolerant","No toxicity data.",null,null,"N/A",null,null,null,"Amph To"]
["Invertebrate","Sensitive",1.4056479690522242E-2,7.0462302202916531E-4,0.24111479761114796,{"$f":"'B02'!$E$9","v":0.55000000000000004},"NOAEC*",null,null,"Invt Sn"]
[null,"Tolerant",1.4056479690522242E-2,7.0462302202916531E-4,0.24111479761114796,{"$f":"'B02'!$E$10","v":0.55000000000000004},"NOAEC*",null,null,"Invt Tl"]
["Macrophyte","Sensitive","No toxicity data.",null,null,"N/A",null,null,null,"Plant Sn"]
[null,"Tolerant","No toxicity data.",null,null,"N/A",null,null,null,"Plant Tl"]
["Algae","Sensitive",{"$f":"C$5/$F19","v":2.1475177304964538E-2},1.0765073947667804E-3,0.3683698296836983,{"$f":"'B02'!$E$16","v":0.36},"NOAEC",null,null,"Algae Sn"]
[null,"Tolerant",1.189394435351882E-2,5.9621948017852459E-4,0.20402021336327905,{"$f":"'B02'!$E$17","v":0.65},"NOAEC",null,null,"Algae Tl"]
["Non-Accidental Acute Exposures"]
["Fish","Sensitive",{"$f":"C$6/$F22","v":4.3462455339008015E-3},8.7147414715587745E-4,1.491047737907574E-2,{"$f":"'B02'!$E$7","v":0.18},"NOAEC*"]
[null,"Tolerant",1.2417844382573717E-3,2.4899261347310783E-4,4.2601363940216403E-3,{"$f":"'B02'!$E$8","v":0.63},"NOAEC*"]
["Amphibian","Sensitive","No toxicity data.",null,null,"N/A"]
[null,"Tolerant","No toxicity data.",null,null,"N/A"]
["Invertebrate","Sensitive",1.4224076292766257E-3,2.8520972088737803E-4,4.8797925967884234E-3,{"$f":"'B02'!$E$9","v":0.55000000000000004},"NOAEC*"]
[null,"Tolerant",1.4224076292766257E-3,2.8520972088737803E-4,4.8797925967884234E-3,{"$f":"'B02'!$E$10","v":0.55000000000000004},"NOAEC*"]
["Macrophyte","Sensitive","No toxicity data.",null,null,"N/A"]
[null,"Tolerant","No toxicity data.",null,null,"N/A"]
["Algae","Sensitive",{"$f":"C$6/$F30","v":2.1731227669504007E-3},4.3573707357793872E-4,7.4552386895378698E-3,{"$f":"'B02'!$E$16","v":0.36},"NOAEC"]
[null,"Tolerant",1.203575686310991E-3,2.4133130228931989E-4,4.1290552742055892E-3,{"$f":"'B02'!$E$17","v":0.65},"NOAEC"]
["Chronic/Longer Term Exposures"]
["Fish","Sensitive",{"$f":"C$7/$F33","v":1.3934015284987363E-4},6.9848412798040172E-6,9.5605636202446189E-4,{"$f":"'B02'!$E$11","v":0.18},"NOAEC"]
[null,"Tolerant",1.3934015284987363E-4,6.9848412798040172E-6,9.5605636202446189E-4,{"$f":"'B02'!$E$12","v":0.18},"NOAEC"]
["Amphibian","Sensitive","No toxicity data.",null,null,"N/A"]
[null,"Tolerant","No toxicity data.",null,null,"N/A"]
["Invertebrate","Sensitive",4.3243495712029739E-4,2.1677093626977982E-5,2.9670714683517779E-3,{"$f":"'B02'!$E$13","v":5.8000000000000003E-2},"NOAEC"]
[null,"Tolerant",4.3243495712029739E-4,2.1677093626977982E-5,2.9670714683517779E-3,{"$f":"'B02'!$E$14","v":5.8000000000000003E-2},"NOAEC"]
["Macrophyte","Sensitive","No toxicity data.",null,null,"N/A"]
[null,"Tolerant","No toxicity data.",null,null,"N/A"]
["Algae","Sensitive",{"$f":"C$7/$F41","v":6.9670076424936816E-5},3.4924206399020086E-6,4.7802818101223095E-4,{"$f":"'B02'!$E$16","v":0.36},"NOAEC"]
[null,"Tolerant",3.8586503866118845E-5,1.9342637390226506E-6,2.6475406948369714E-4,{"$f":"'B02'!$E$17","v":0.65},"NOAEC"]

{"sheet":"References","index":47,"n_rows":41,"n_cols":2,"rows_kept":41,"cut":false,"hidden":false,"merged":[[0,0,0,1]]}
["References cited in workbook"]
["Citation","Full Reference"]
["Boxenbaum and D’Souza 1990","Boxenbaum J; D'Souza R.  1990.  Interspecies pharmacokinetic scaling, biological design and neoteny.  Adv. Drug Res.  19: 139-195."]
["Burnmaster 1998","Burnmaster DE.  1998.  Lognormal distribution for total water intake and tap water intake by pregnant and lactating women in the United States.  Risk Analysis.  18(5): 215-219"]
["Dunning 1993","Dunning JB.  1993.  CRC Handbook of Avian Body Masses.  CRC Press, Boca Raton FL, 371 pp."]
["Durkin et al. 1995","Durkin PR; Rubin L; Withey J; Meylan W.  1995.  Methods of assessing dermal absorption with emphasis on uptake from contaminated vegetation.  Toxicol. Indust. Health.  11(1): 63-79."]
["Harris and Solomon 1992","Harris SA; Solomon KR.  1992.  Human exposure to 2,4-D following controlled activities on recently sprayed turf.  J. Environ. Sci. Health.  B27(1): 9-22."]
["Hoerger and Kenaga 1972","Hoerger F; Kenaga EE.  1972.  Pesticide residues on plants: Correlation of representative data as a basis for estimation of their magnitude in the environment.  In: Environmental Quality and Safety, Volume I:  Global Aspects of Toxicology and Technology as Applied to the Environment.  F. Coulston and F. Kerte (eds.).  Academic Press, New York, NY.  pp. 9-28."]
["ICRP 1975","ICRP (International Commission on Radiologic Protection).  1975. Report of the Task Group on Reference Man.  Recommendations of the International Commission on Radiological Protection (ICRP) Publ. No. 23.   Pergamon Press, New York, NY."]
["Knisel et al. 1992","Knisel WG; Davis FM; Leonard RA.  1992.  GLEAMS Version 2.0 User Manual. U.S. Department of Agriculture, Agricultural Research Service, Southeast Watershed Research Laboratory, Tifton, GA.  202pp"]
["Manugistics 1995","Manugistics.  1995.  Statgraphics Plus for Windows. Version 3.  Available from Manugistics, Inc.  Rockville, Maryland."]
["Mason and Johnson 1987","Mason RW; Johnson BL.  1987.  Ergonomic factors in chemical hazard control.  In: Handbook of Human Factors.  Salveny, G; ed.  John Wiley and Sons, New York, NY.  pp. 772-741."]
["Mendenhall and Scheaffer 1973","Mendenhall W; Scheaffer RF.  1973.  Mathematical Statistics with Applications.  Duxbury Press, North Scituate, Massachusetts. 461 pp. plus appendices."]
["Ruffle et al. 1994","Ruffle B; Burmaster DE; Anderson PD; Gordon HD.  1994.  Lognormal distributions for fish consumption by the general U.S. population.  Risk Analy.  14(4): 395-404."]
["SERA 1997","SERA (Syracuse Environmental Research Associates, Inc.).  1997. Reevaluation of Methods for Assessing Worker Exposure to Pesticides, SERA TR 96-21-08-01, draft dated December 31, 1997.  Prepared under USDA/FS Contract 53-3187-5-12.  Syracuse Environmental Research Associates, Inc., Fayetteville, NY."]
["SERA 2007","SERA (Syracuse Environmental Research Associates, Inc.).  2007. Preparation of Environmental Documentation and Risk Assessments, SERA MD 2007-01a, draft dated July 2001.  Syracuse Environmental Research Associates, Inc., Fayetteville, NY.  Available at www.sera-inc.com."]
["Teske et al. 2001","Teske ME; Bird SL; Esterly DM; Ray SL; Perry SG.  2001.  A User’s Guide for AgDRIFT 2.0: A Tiered Approach for the Assesment of Spray Drift.  Continuum Dynamics, Inc. Public Use Version.  C.D.I. Report No. 01-01.  Available, with executable model at: http://www.agdrift.com"]
["USDA 1989a","USDA (U.S. Department of Agriculture/Forest Service).  1989a.  Final Environmental Impact Statement: Vegetation Management in the Coastal Plain/Piedmont, Management Bulletin R8-MB-23, dated January, 1989.  1213 pp."]
["USDA 1989b","USDA (U.S. Department of Agriculture/Forest Service).  1989b.  Draft Environmental Impact Statement: Vegetation Management in the Ozark/Ouachita Mountains, Management Bulletin R8-MB-23, dated June, 1989.  499 pp."]
["USDA 1989c","USDA (U.S. Department of Agriculture/Forest Service).  1989c.  Final Environmental Impact Statement: Vegetation Management in the Appalachian Mountains, Management Bulletin R8-MB-38, dated July, 1989. 1104 pp."]
["U.S. EPA/OPP 1999","U.S. EPA/OPP ((U.S. Environmental Protection Agency/Office of Pesticide Programs).  1999.  ECOFRAM:  Terrestrial ECOFRAM Terrestrial Draft Report.  Ecological Committee on FIFRA Risk Assessment Methods(ECOFRAM).  Report dated May 10, 1999.  Available at:  http://www.epa.gov/oppefed1/ ecorisk/terrreport.pdf."]
["U.S. EPA/ORD 1992","U.S. EPA/ORD (U.S. Environmental Protection Agency/Office of Research and Development).  1992.  Dermal Exposure Assessment: Principles and Applications.  EPA/600/8-91/011B.  Interim Report.  Exposure Assessment Group, Office of Health and Environmental Assessment, Washington, DC."]
["U.S. EPA/ORD 1993","U.S. EPA/ORD (U.S. Environmental Protection Agency/Office of Research and Development).  1993.  Wildlife Exposure Factors Handbook.  Volumes 1 and 2.  EPA/600/R-93/187a,b.  Pagination not continuous.  Available NTIS: PB94-174778 and PB94-174779."]
["U.S. EPA/ORD 1996","U.S. EPA (U.S. Environmental Protection Agency/Office of Research and Development).  1996.  Exposure Factors Handbook. National Center for Environmental Assessment, U.S. EPA, Washington, DC.  EPA/600/P-95/002Ba-c.  Avail. NTIS: PB97-117683, 97-117691, PB97-117709."]
["Wolfram Research 1997","Wolfram Research.  1997. Mathematica Version 3.0.1.  Available from Wolfram Research, Inc.  Champaign, IL."]
["N/A","Not applicable"]
["Fletcher et al. 1994","Fletcher JS; Nellessen JE; Pfleeger TG. 1994. Literature review and evaluation of the EPA food-chain (Kenega) nomogram, an instrument for estimating pesticide residues on plants. Environ.  Toxicol. Chem. 13(9):1383-1391."]
["U.S. EPA/ORD 1985","U.S. EPA/ORD (U.S. Environmental Protection Agency/Office of Research and Development).  1985. Development of Statistical Distributions or Ranges of Standard Factors Used in Exposure Assessments,  Report prepared by GCA Corp., Chapel Hill.  Available from NTIS: PB85-242667."]
["Default","These are plausible default values that are typically used in SERA risk assessments."]
["U.S. EPA/ORD 1997","U.S. EPA (U.S. Environmental Protection Agency/Office of Research and Development).  1996.  Exposure Factors Handbook. National Center for Environmental Assessment, U.S. EPA, Washington, DC.  EPA/600/P-95/002Fa.  Available at: http://rais.ornl.gov/homepage/EFH_Final_1997_EPA600P95002Fa.pdf"]
["SERA 2005","SERA (Syracuse Environmental Research Associates, Inc.).  2005. Hexazinone - Human Health and Ecological Risk Assessment– Final Report, SERA SERA TR 05-43-20-03d, Final Report dated October 25, 2005.  Available at: http://www.fs.fed.us/foresthealth/pesticide/risk.shtml."]
["Humphery and Dykes 2008","Humphrey JAC; Dykes ES.  2008.  Thermal energy conduction in a honey bee comb due to cell-heating bees.  J Theoretical Biology.  250 (1): 194-208."]
["Reichle et al. 1973","Reichle DE, Goldstein RA; Van Hook RI; Dodson DJ.  1973.  Analysis of Insect Consumption in a Forest Canopy.  Ecology.  54: 1076-1084."]
["Waldbauer 1968","Waldbauer GP.  1968.  The consumption and utilization of food by insects.  Advan Insect Physiol.  5: 229-288"]
["Ratnapalan et al. 2003","Ratnapalan S; Potylitsina Y; Tan LH; Roifman M; Koren G.  2003.  Measuring a toddler's mouthful: toxicologic considerations.  J Pediatr.  142(6):729-30."]
["SERA 2010","SERA (Syracuse Environmental Research Associates, Inc.).  2010. Strychnine Human Health and Ecological Risk Assessment, SERA TR-052-17-02a, draft dated February 22, 2010.  Syracuse Environmental Research Associates, Inc., Manlius, NY.  Available at www.sera-inc.com."]
["Winston 1987","Winston ML.  1987.  The Biology of the Honey Bee.  Harvard University Press, Cambridge, MA.  ISBN 0-674-07409-2  280 pp."]
["Budavari  1989","Budavari S. (Ed).  1989.  The Merck Index: An Encyclopedia of Chemicals, Drugs,and Biologicals, 11th ed.  Merck & Co., Inc., Rahway, New Jersey."]
["Sibley 2000","Sibley DA.  2000.  The Sibley Guide to Birds.  National Audubon Society, Chanticleer Press Edition.  Alfred A. Knopf Inc., New York.  545 pp."]
["Nagy 2005","Nagy KA.  2005.  Field metabolic rate and body size.  Journal of Experimental Biology.  208: 1621-1625."]
["Reid 2006"," Reid FA. 2006.  A Field Guide to Mammals of North America North of Mexico.  Fourth Edition.  The Peterson Field Guide Series.  Houghton Mifflin Company, Boston MA.  570 pp."]

{"sheet":"PlntRunoV5","index":48,"n_rows":31,"n_cols":5,"rows_kept":31,"cut":false,"hidden":true,"merged":[[15,0,18,0],[19,0,22,0],[24,0,24,1],[0,0,0,4],[2,1,2,3],[3,1,3,3],[4,1,4,4],[8,1,8,3],[10,0,13,0]]}
["Summary of Exposure Assessment and Risk Characterization for Terrestrial Plants from Runoff"]
["Short Title","Runoff to terrestrial plants"]
["Receptor","Terrestrial vegetation"]
["Duration","Acute"]
["User-Specified Gleams-Driver File","None"]
["Parameter/Assumption","Code / Range","Value","Units","Reference"]
["Worksheet Application Rate","ApRtWB",0.1,"lb/acre","Prog!ApRt"]
["Offsite Application Rates Inputs"]
["Run ID:","See Risk Assessment"]
["Application Rate Used in Run:","ApRtRun",1,"lb/acre"]
["Functional Off-site Application Rate","ApRtOffsite"]
[null,"Central",2.7E-2,"lb/acre"]
[null,"Lower",9.4999999999999998E-3]
[null,"Upper",5.7000000000000002E-2]
["Calculated Values"]
["Normalized Off-site Functional Application Rate ","NormApRtOffsite","ApRtOffsite / ApRtRun"]
[null,"Central",{"$f":"C12/C$10","v":2.7E-2},"Unitless","Eq"]
[null,"Lower",{"$f":"C13/C$10","v":9.4999999999999998E-3},null,"Eq"]
[null,"Upper",{"$f":"C14/C$10","v":5.7000000000000002E-2},null,"Eq"]
["Off-site Application Rate at Workbook Application Rate","ApRtWB","ApRtWB x NormApRtOffsite"]
[null,"Central",{"$f":"C17*C$7","v":2.7000000000000001E-3},"lb/acre","Eq"]
[null,"Lower",{"$f":"C18*C$7","v":9.5E-4},null,"Eq"]
[null,"Upper",{"$f":"C19*C$7","v":5.7000000000000002E-3},null,"Eq"]
["Toxicity Values  (seedling emergence) in units of lbs/acre"]
[null,null,"Sensitive","Tolerant"]
[null,"Endpoint"]
[null,null,3.7000000000000002E-3,0.37]
["Hazard Quotients"]
[null,"Central",{"$f":"IF(ISNUMBER(C$27), $C21/C$27, \"N/A\")","v":0.72972972972972971},7.2972972972972974E-3]
[null,"Lower",0.25675675675675674,2.5675675675675678E-3]
[null,"Upper",1.5405405405405406,1.5405405405405406E-2]